{"text_format":"3","workbook":"xlsx","n_sheets":15,"sheets":["Como usar este modelo","Lista de Estudantes","agosto","setembro","outubro","novembro","dezembro","janeiro","fevereiro","março","abril","maio","junho","julho","Rel. de Presenças do Estudante"],"not_rendered":{"defined_names":16},"read":"whole","date_system":"1900"}

{"sheet":"Como usar este modelo","index":0,"n_rows":25,"n_cols":5,"rows_kept":25,"merged":[[3,2,3,12],[4,4,4,12],[5,4,5,12],[6,4,6,12],[7,4,7,12],[8,4,8,7],[11,2,11,12],[12,4,12,12],[13,4,13,12],[14,4,14,12],[17,2,17,12],[18,4,18,12],[19,4,19,12],[20,4,20,12],[21,4,21,12],[24,2,24,12]]}
["COMO USAR ESTE MODELO"]
[]
[null,"ONDE COMEÇAR?"]
[null,null,"Há alguns passos que necessita de dar antes de poder começar a registar a presença de estudantes:"]
[{"$nulls":3},"1.","Adicionar os seus estudantes: Na folha Lista de Estudantes, introduza a informação de cada estudante, tal como os nomes dos tutores e dados de contacto. O ID de Estudante é uma entrada importante porque fornece um identificador único para cada estudante e é utilizado ao longo do livro para as várias listas pendentes de ID de Estudante para facilitar a introdução de dados. A informação que introduziu na Lista de Estudantes é utilizada em outras folhas também, tal como o Relatório de Presenças de Estudantes e as Presenças mensais."]
[{"$nulls":3},"2.","Alterar o ano letivo: Na folha de participação de agosto, clique no controlo giratório no canto superior direito para atualizar o ano letivo. Esta alteração irá atualizar o cabeçalho em todos os relatórios de Presenças mensais ao longo do livro. (Note que o botão de controlo giratório não irá imprimir.)"]
[{"$nulls":3},"3.","(Opcional) Altere as cores ao longo do livro:  Em primeiro lugar, navegue até à ultima folha, Relatório de Presenças do Estudante e, no separador Rever, no grupo Alterações, clique em Desproteger Folha.Em seguida, no separador Esquema de Página, no grupo Temas, clique em Cores e selecione outro conjunto de cores do tema da galeria de cores. Depois de efetuar as alterações de cor e quaisquer outras alterações no tema, volte à folha Relatório de Presenças do Estudante e, no separador Rever, no grupo Alterações, clique em Proteger Folha e, em seguida, clique em OK."]
[{"$nulls":4},"Sugestão: Crie um conjunto de cores de tema personalizado para condizer com as cores da escola! Para o fazer, no separador Esquema de Página, no grupo Temas, clique em Cores e, em seguida, junto da base da galeria de cores, clique em Criar Novas Cores de Tema.Para mais informação sobre como criar um conjunto de cores personalizado, leia o seguinte tópico de Ajuda:"]
[{"$nulls":4},"Personalize um tema de documento."]
[]
[null,"ADICIONEI OS MEUS ESTUDANTES, O QUE FAÇO DE SEGUIDA?"]
[null,null,"Depois dos seus alunos terem sido colocados na folha Lista de Estudantes, pode começar a registar as Presenças durante o ano letivo, utilizando os seguintes passos:"]
[{"$nulls":3},"1.","Para adicionar um estudante ao relatório de Presenças, clique num célula abaixo da coluna ID de Estudante e selecione um ID da lista. O nome do estudante será mostrado automaticamente depois de ser selecionado um ID."]
[{"$nulls":4},"Sugestão: Guarde os passos de introdução de dados! Após ter adicionado os estudantes para um mês, selecione os IDs de Estudante introduzidos, copie-os e, e em seguida, cole-os na coluna ID de Estudante para os meses restantes. "]
[{"$nulls":3},"2.","De seguida, introduza o relatório de Presenças para cada dia do mês, utilizando os tipos de Presenças fornecidos na Chave de Cores. As Presenças de estudantes são calculadas automaticamente pelo tipo de Presença para cada estudante na coluna Totais. As ausências totais para cada dia são calculadas automaticamente na base da tabela, na linha de Total."]
[]
[null,"COMO ADICIONO MAIS ESTUDANTES A UM RELATÓRIO DE PRESENÇAS MENSAL?"]
[null,null,"As folhas de relatório de Presenças mensal e a Lista de Estudantes são tabelas do Excel. Para adicionar novas linhas a qualquer tabela Excel, siga um dos seguintes passos:"]
[{"$nulls":3},"● ","Se a tabela não tiver uma linha de Total, comece por introduzir dados abaixo a tabela e irá expandir-se automaticamente ao premir Enter ou a tecla de Tabulação."]
[{"$nulls":3},"● ","Posicione o ponteiro de célula na última célula acima da linha de Total, tal como a célula Dias Ausente para o último estudante e, em seguida, pressione a tecla de Tabulação."]
[{"$nulls":3},"● ","Clique com o botão direito do rato dentro da tabela e, no menu de pop-up, aponte para Inserir, e, em seguida, clique em Linhas de Tabela Acima ou Linhas de Tabela Abaixo. "]
[{"$nulls":3},"● ","No canto inferior direito da tabela, posicione o rato na alça de dimensionamento e arraste para baixo, para aumentar o número de linhas da tabela disponíveis."]
[]
[null,"POSSO VER A PRESENÇAS DE UM ESTUDANTE AO LONGO DO ANO LETIVO?"]
[null,null,"A última folha neste livro, Relatório de Presenças de Estudantes, controla a Presenças do ano inteiro até ao presente. Para ver um relatório para um estudante específico, clique na célula abaixo de ID de Estudante e, em seguida, selecione um ID da lista pendente. A informação que introduziu anteriormente na folha de Lista de Estudantes será apresentada automaticamente. Tenha em consideração que, na primeira vez que utilizar o Relatório de Presenças de Estudantes, deverá introduzir a Escola, a Classificação,o Professor e a Sala. Esta informação não será alterada se selecionar outro estudante. "]

{"sheet":"Lista de Estudantes","index":1,"n_rows":8,"n_cols":19,"rows_kept":8}
["LISTA DE ESTUDANTES"]
[]
[null,"ID de Estudante","Nome do Estudante","Apelido do Estudante","Género","Data de Nascimento","Pai ou Tutor 1","Relação Pai/Tutor 1","Número de trabalho do Pai/Tutor 1","Número de casa do Pai/Tutor 1","Pai/Tutor 2","Relação Pai/Tutor 2","Número de trabalho do Pai/Tutor 2","Número de casa do Pai/Tutor 2","Contacto em Caso de Emergência","Relação do Contacto em Caso de Emergência","Número do Trabalho do Contacto em Caso de Emergência","Número de casa do Contacto em Caso de Emergência","Nome Completo do Estudante"]
[null,"S001","Paulo","Neves","M","1997-03-28","Isabel","Neves",1235550134,2345550134,"Carlos Grilo","Pai",1235550134,2345550134,"Nuno Farinha","Avô",7895550189,7895550134,{"$f":"ListaDeAlunos[[#This Row],[Nome do Estudante]]&\" \" &ListaDeAlunos[[#This Row],[Apelido do Estudante]]","v":"Paulo Neves"}]
[null,"S002","Estudante",2,{"$nulls":14},{"$f":"ListaDeAlunos[[#This Row],[Nome do Estudante]]&\" \" &ListaDeAlunos[[#This Row],[Apelido do Estudante]]","v":"Estudante 2"}]
[null,"S003","Estudante",3,{"$nulls":14},{"$f":"ListaDeAlunos[[#This Row],[Nome do Estudante]]&\" \" &ListaDeAlunos[[#This Row],[Apelido do Estudante]]","v":"Estudante 3"}]
[null,"S004","Estudante",4,{"$nulls":14},{"$f":"ListaDeAlunos[[#This Row],[Nome do Estudante]]&\" \" &ListaDeAlunos[[#This Row],[Apelido do Estudante]]","v":"Estudante 4"}]
[null,"S005","Estudante",5,{"$nulls":14},{"$f":"ListaDeAlunos[[#This Row],[Nome do Estudante]]&\" \" &ListaDeAlunos[[#This Row],[Apelido do Estudante]]","v":"Estudante 5"}]

{"sheet":"agosto","index":2,"n_rows":12,"n_cols":39,"rows_kept":12,"merged":[[4,34,4,38]]}
["RELATÓRIO DE PRESENÇAS DOS ESTUDANTES",{"$nulls":36},"Início do Ano Letivo:",2012]
[]
[null,null,"CHAVE DE CORES ","T","Atrasado",null,null,"E","Justificado",null,null,"U","Não justificado",null,null,"P","Presente",null,null,"N","Não há Escola"]
[]
[null,{"$f":"DATE(CalendárioAnual,8,1)","v":"2012-08-01"},null,{"$f":"TEXT(WEEKDAY(DATE(CalendárioAnual,8,1),1),\"ddd\")","v":"qua"},{"$f":"TEXT(WEEKDAY(DATE(CalendárioAnual,8,2),1),\"ddd\")","v":"qui"},{"$f":"TEXT(WEEKDAY(DATE(CalendárioAnual,8,3),1),\"ddd\")","v":"sex"},{"$f":"TEXT(WEEKDAY(DATE(CalendárioAnual,8,4),1),\"ddd\")","v":"sáb"},{"$f":"TEXT(WEEKDAY(DATE(CalendárioAnual,8,5),1),\"ddd\")","v":"dom"},{"$f":"TEXT(WEEKDAY(DATE(CalendárioAnual,8,6),1),\"ddd\")","v":"seg"},{"$f":"TEXT(WEEKDAY(DATE(CalendárioAnual,8,7),1),\"ddd\")","v":"ter"},{"$f":"TEXT(WEEKDAY(DATE(CalendárioAnual,8,8),1),\"ddd\")","v":"qua"},{"$f":"TEXT(WEEKDAY(DATE(CalendárioAnual,8,9),1),\"ddd\")","v":"qui"},{"$f":"TEXT(WEEKDAY(DATE(CalendárioAnual,8,10),1),\"ddd\")","v":"sex"},{"$f":"TEXT(WEEKDAY(DATE(CalendárioAnual,8,11),1),\"ddd\")","v":"sáb"},{"$f":"TEXT(WEEKDAY(DATE(CalendárioAnual,8,12),1),\"ddd\")","v":"dom"},{"$f":"TEXT(WEEKDAY(DATE(CalendárioAnual,8,13),1),\"ddd\")","v":"seg"},{"$f":"TEXT(WEEKDAY(DATE(CalendárioAnual,8,14),1),\"ddd\")","v":"ter"},{"$f":"TEXT(WEEKDAY(DATE(CalendárioAnual,8,15),1),\"ddd\")","v":"qua"},{"$f":"TEXT(WEEKDAY(DATE(CalendárioAnual,8,16),1),\"ddd\")","v":"qui"},{"$f":"TEXT(WEEKDAY(DATE(CalendárioAnual,8,17),1),\"ddd\")","v":"sex"},{"$f":"TEXT(WEEKDAY(DATE(CalendárioAnual,8,18),1),\"ddd\")","v":"sáb"},{"$f":"TEXT(WEEKDAY(DATE(CalendárioAnual,8,19),1),\"ddd\")","v":"dom"},{"$f":"TEXT(WEEKDAY(DATE(CalendárioAnual,8,20),1),\"ddd\")","v":"seg"},{"$f":"TEXT(WEEKDAY(DATE(CalendárioAnual,8,21),1),\"ddd\")","v":"ter"},{"$f":"TEXT(WEEKDAY(DATE(CalendárioAnual,8,22),1),\"ddd\")","v":"qua"},{"$f":"TEXT(WEEKDAY(DATE(CalendárioAnual,8,23),1),\"ddd\")","v":"qui"},{"$f":"TEXT(WEEKDAY(DATE(CalendárioAnual,8,24),1),\"ddd\")","v":"sex"},{"$f":"TEXT(WEEKDAY(DATE(CalendárioAnual,8,25),1),\"ddd\")","v":"sáb"},{"$f":"TEXT(WEEKDAY(DATE(CalendárioAnual,8,26),1),\"ddd\")","v":"dom"},{"$f":"TEXT(WEEKDAY(DATE(CalendárioAnual,8,27),1),\"ddd\")","v":"seg"},{"$f":"TEXT(WEEKDAY(DATE(CalendárioAnual,8,28),1),\"ddd\")","v":"ter"},{"$f":"TEXT(WEEKDAY(DATE(CalendárioAnual,8,29),1),\"ddd\")","v":"qua"},{"$f":"TEXT(WEEKDAY(DATE(CalendárioAnual,8,30),1),\"ddd\")","v":"qui"},{"$f":"TEXT(WEEKDAY(DATE(CalendárioAnual,8,31),1),\"ddd\")","v":"sex"},"Totais"]
[null,"ID de Estudante","Nome do Estudante","1","2","3","4","5","6","7","8","9","10","11","12","13","14","15","16","17","18","19","20","21","22","23","24","25","26","27","28","29","30","31","T","E","U","P","Dias de Ausência"]
[null,"S001",{"$f":"IFERROR(VLOOKUP(PresençasEmAgosto[[#This Row],[ID de Estudante]],ListaDeAlunos[],18,FALSE),\"\")","v":"Paulo Neves"},"P","P","T","T","P","N","N","P","P","E","P","P","N","N","P","P","P","P","P","N","N","P","P","P","P","P","N","N","P","P","P",{"$f":"COUNTIF(PresençasEmAgosto[[#This Row],[1]:[31]],Código1)","v":2},{"$f":"COUNTIF(PresençasEmAgosto[[#This Row],[1]:[31]],Código2)","v":1},{"$f":"COUNTIF(PresençasEmAgosto[[#This Row],[1]:[31]],Código3)","v":0},{"$f":"COUNTIF(PresençasEmAgosto[[#This Row],[1]:[31]],Código4)","v":20},{"$f":"SUM(PresençasEmAgosto[[#This Row],[E]:[U]])","v":1}]
[null,"S002",{"$f":"IFERROR(VLOOKUP(PresençasEmAgosto[[#This Row],[ID de Estudante]],ListaDeAlunos[],18,FALSE),\"\")","v":"Estudante 2"},"P","U","P","P","P","N","N","P","E","E","E","E","N","N","P","P","P","P","P","N","N","P","P","P","T","T","N","N","P","P","P",{"$f":"COUNTIF(PresençasEmAgosto[[#This Row],[1]:[31]],Código1)","v":2},{"$f":"COUNTIF(PresençasEmAgosto[[#This Row],[1]:[31]],Código2)","v":4},{"$f":"COUNTIF(PresençasEmAgosto[[#This Row],[1]:[31]],Código3)","v":1},{"$f":"COUNTIF(PresençasEmAgosto[[#This Row],[1]:[31]],Código4)","v":16},{"$f":"SUM(PresençasEmAgosto[[#This Row],[E]:[U]])","v":5}]
[null,"S003",{"$f":"IFERROR(VLOOKUP(PresençasEmAgosto[[#This Row],[ID de Estudante]],ListaDeAlunos[],18,FALSE),\"\")","v":"Estudante 3"},"P","E","P","P","P","N","N","P","P","U","P","P","N","N","P","P","P","P","P","N","N","P","P","E","E","P","N","N","P","P","P",{"$f":"COUNTIF(PresençasEmAgosto[[#This Row],[1]:[31]],Código1)","v":0},{"$f":"COUNTIF(PresençasEmAgosto[[#This Row],[1]:[31]],Código2)","v":3},{"$f":"COUNTIF(PresençasEmAgosto[[#This Row],[1]:[31]],Código3)","v":1},{"$f":"COUNTIF(PresençasEmAgosto[[#This Row],[1]:[31]],Código4)","v":19},{"$f":"SUM(PresençasEmAgosto[[#This Row],[E]:[U]])","v":4}]
[null,"S004",{"$f":"IFERROR(VLOOKUP(PresençasEmAgosto[[#This Row],[ID de Estudante]],ListaDeAlunos[],18,FALSE),\"\")","v":"Estudante 4"},"P","P","P","P","P","N","N","P","P","P","P","P","N","N","P","P","P","P","P","N","N","P","U","P","P","E","N","N","P","E","P",{"$f":"COUNTIF(PresençasEmAgosto[[#This Row],[1]:[31]],Código1)","v":0},{"$f":"COUNTIF(PresençasEmAgosto[[#This Row],[1]:[31]],Código2)","v":2},{"$f":"COUNTIF(PresençasEmAgosto[[#This Row],[1]:[31]],Código3)","v":1},{"$f":"COUNTIF(PresençasEmAgosto[[#This Row],[1]:[31]],Código4)","v":20},{"$f":"SUM(PresençasEmAgosto[[#This Row],[E]:[U]])","v":3}]
[null,"S005",{"$f":"IFERROR(VLOOKUP(PresençasEmAgosto[[#This Row],[ID de Estudante]],ListaDeAlunos[],18,FALSE),\"\")","v":"Estudante 5"},"P","P","P","P","P","N","N","P","P","P","P","P","N","N","P","P","P","P","P","N","N","P","P","P","P","P","N","N","P","P","P",{"$f":"COUNTIF(PresençasEmAgosto[[#This Row],[1]:[31]],Código1)","v":0},{"$f":"COUNTIF(PresençasEmAgosto[[#This Row],[1]:[31]],Código2)","v":0},{"$f":"COUNTIF(PresençasEmAgosto[[#This Row],[1]:[31]],Código3)","v":0},{"$f":"COUNTIF(PresençasEmAgosto[[#This Row],[1]:[31]],Código4)","v":23},{"$f":"SUM(PresençasEmAgosto[[#This Row],[E]:[U]])","v":0}]
[null,null,"Total de dias de ausência",{"$f":"COUNTIF(PresençasEmAgosto[1],\"U\")+COUNTIF(PresençasEmAgosto[1],\"E\")","v":0},{"$f":"COUNTIF(PresençasEmAgosto[2],\"U\")+COUNTIF(PresençasEmAgosto[2],\"E\")","v":2},{"$f":"COUNTIF(PresençasEmAgosto[3],\"U\")+COUNTIF(PresençasEmAgosto[3],\"E\")","v":0},{"$f":"COUNTIF(PresençasEmAgosto[4],\"U\")+COUNTIF(PresençasEmAgosto[4],\"E\")","v":0},{"$f":"COUNTIF(PresençasEmAgosto[5],\"U\")+COUNTIF(PresençasEmAgosto[5],\"E\")","v":0},{"$f":"COUNTIF(PresençasEmAgosto[6],\"U\")+COUNTIF(PresençasEmAgosto[6],\"E\")","v":0},{"$f":"COUNTIF(PresençasEmAgosto[7],\"U\")+COUNTIF(PresençasEmAgosto[7],\"E\")","v":0},{"$f":"COUNTIF(PresençasEmAgosto[8],\"U\")+COUNTIF(PresençasEmAgosto[8],\"E\")","v":0},{"$f":"COUNTIF(PresençasEmAgosto[9],\"U\")+COUNTIF(PresençasEmAgosto[9],\"E\")","v":1},{"$f":"COUNTIF(PresençasEmAgosto[10],\"U\")+COUNTIF(PresençasEmAgosto[10],\"E\")","v":3},{"$f":"COUNTIF(PresençasEmAgosto[11],\"U\")+COUNTIF(PresençasEmAgosto[11],\"E\")","v":1},{"$f":"COUNTIF(PresençasEmAgosto[12],\"U\")+COUNTIF(PresençasEmAgosto[12],\"E\")","v":1},{"$f":"COUNTIF(PresençasEmAgosto[13],\"U\")+COUNTIF(PresençasEmAgosto[13],\"E\")","v":0},{"$f":"COUNTIF(PresençasEmAgosto[14],\"U\")+COUNTIF(PresençasEmAgosto[14],\"E\")","v":0},{"$f":"COUNTIF(PresençasEmAgosto[15],\"U\")+COUNTIF(PresençasEmAgosto[15],\"E\")","v":0},{"$f":"COUNTIF(PresençasEmAgosto[16],\"U\")+COUNTIF(PresençasEmAgosto[16],\"E\")","v":0},{"$f":"COUNTIF(PresençasEmAgosto[17],\"U\")+COUNTIF(PresençasEmAgosto[17],\"E\")","v":0},{"$f":"COUNTIF(PresençasEmAgosto[18],\"U\")+COUNTIF(PresençasEmAgosto[18],\"E\")","v":0},{"$f":"COUNTIF(PresençasEmAgosto[19],\"U\")+COUNTIF(PresençasEmAgosto[19],\"E\")","v":0},{"$f":"COUNTIF(PresençasEmAgosto[20],\"U\")+COUNTIF(PresençasEmAgosto[20],\"E\")","v":0},{"$f":"COUNTIF(PresençasEmAgosto[21],\"U\")+COUNTIF(PresençasEmAgosto[21],\"E\")","v":0},{"$f":"COUNTIF(PresençasEmAgosto[22],\"U\")+COUNTIF(PresençasEmAgosto[22],\"E\")","v":0},{"$f":"COUNTIF(PresençasEmAgosto[23],\"U\")+COUNTIF(PresençasEmAgosto[23],\"E\")","v":1},{"$f":"COUNTIF(PresençasEmAgosto[24],\"U\")+COUNTIF(PresençasEmAgosto[24],\"E\")","v":1},{"$f":"COUNTIF(PresençasEmAgosto[25],\"U\")+COUNTIF(PresençasEmAgosto[25],\"E\")","v":1},{"$f":"COUNTIF(PresençasEmAgosto[26],\"U\")+COUNTIF(PresençasEmAgosto[26],\"E\")","v":1},{"$f":"COUNTIF(PresençasEmAgosto[27],\"U\")+COUNTIF(PresençasEmAgosto[27],\"E\")","v":0},{"$f":"COUNTIF(PresençasEmAgosto[28],\"U\")+COUNTIF(PresençasEmAgosto[28],\"E\")","v":0},{"$f":"COUNTIF(PresençasEmAgosto[29],\"U\")+COUNTIF(PresençasEmAgosto[29],\"E\")","v":0},{"$f":"COUNTIF(PresençasEmAgosto[30],\"U\")+COUNTIF(PresençasEmAgosto[30],\"E\")","v":1},{"$f":"COUNTIF(PresençasEmAgosto[31],\"U\")+COUNTIF(PresençasEmAgosto[31],\"E\")","v":0},{"$f":"SUBTOTAL(109,PresençasEmAgosto[T])","v":4},{"$f":"SUBTOTAL(109,PresençasEmAgosto[E])","v":10},{"$f":"SUBTOTAL(109,PresençasEmAgosto[U])","v":3},{"$f":"SUBTOTAL(109,PresençasEmAgosto[P])","v":98},{"$f":"SUBTOTAL(109,PresençasEmAgosto[Dias de Ausência])","v":13}]

{"sheet":"setembro","index":3,"n_rows":12,"n_cols":39,"rows_kept":12,"merged":[[4,34,4,38]]}
["RELATÓRIO DE PRESENÇAS DOS ESTUDANTES",{"$nulls":36},"Início do Ano Letivo:",{"$f":"CalendárioAnual","v":2012}]
[]
[null,null,{"$f":"TextoColorKey","v":"CHAVE DE CORES "},{"$f":"Código1","v":"T"},{"$f":"Código1Texto","v":"Atrasado"},null,null,{"$f":"Código2","v":"E"},{"$f":"Código2Texto","v":"Justificado"},null,null,{"$f":"Código3","v":"U"},{"$f":"Código3Texto","v":"Não justificado"},null,null,{"$f":"Código4","v":"P"},{"$f":"Código4Texto","v":"Presente"},null,null,{"$f":"Código5","v":"N"},{"$f":"Código5Texto","v":"Não há Escola"}]
[]
[null,{"$f":"DATE(CalendárioAnual,9,1)","v":"2012-09-01"},null,{"$f":"TEXT(WEEKDAY(DATE(CalendárioAnual,9,1),1),\"ddd\")","v":"sáb"},{"$f":"TEXT(WEEKDAY(DATE(CalendárioAnual,9,2),1),\"ddd\")","v":"dom"},{"$f":"TEXT(WEEKDAY(DATE(CalendárioAnual,9,3),1),\"ddd\")","v":"seg"},{"$f":"TEXT(WEEKDAY(DATE(CalendárioAnual,9,4),1),\"ddd\")","v":"ter"},{"$f":"TEXT(WEEKDAY(DATE(CalendárioAnual,9,5),1),\"ddd\")","v":"qua"},{"$f":"TEXT(WEEKDAY(DATE(CalendárioAnual,9,6),1),\"ddd\")","v":"qui"},{"$f":"TEXT(WEEKDAY(DATE(CalendárioAnual,9,7),1),\"ddd\")","v":"sex"},{"$f":"TEXT(WEEKDAY(DATE(CalendárioAnual,9,8),1),\"ddd\")","v":"sáb"},{"$f":"TEXT(WEEKDAY(DATE(CalendárioAnual,9,9),1),\"ddd\")","v":"dom"},{"$f":"TEXT(WEEKDAY(DATE(CalendárioAnual,9,10),1),\"ddd\")","v":"seg"},{"$f":"TEXT(WEEKDAY(DATE(CalendárioAnual,9,11),1),\"ddd\")","v":"ter"},{"$f":"TEXT(WEEKDAY(DATE(CalendárioAnual,9,12),1),\"ddd\")","v":"qua"},{"$f":"TEXT(WEEKDAY(DATE(CalendárioAnual,9,13),1),\"ddd\")","v":"qui"},{"$f":"TEXT(WEEKDAY(DATE(CalendárioAnual,9,14),1),\"ddd\")","v":"sex"},{"$f":"TEXT(WEEKDAY(DATE(CalendárioAnual,9,15),1),\"ddd\")","v":"sáb"},{"$f":"TEXT(WEEKDAY(DATE(CalendárioAnual,9,16),1),\"ddd\")","v":"dom"},{"$f":"TEXT(WEEKDAY(DATE(CalendárioAnual,9,17),1),\"ddd\")","v":"seg"},{"$f":"TEXT(WEEKDAY(DATE(CalendárioAnual,9,18),1),\"ddd\")","v":"ter"},{"$f":"TEXT(WEEKDAY(DATE(CalendárioAnual,9,19),1),\"ddd\")","v":"qua"},{"$f":"TEXT(WEEKDAY(DATE(CalendárioAnual,9,20),1),\"ddd\")","v":"qui"},{"$f":"TEXT(WEEKDAY(DATE(CalendárioAnual,9,21),1),\"ddd\")","v":"sex"},{"$f":"TEXT(WEEKDAY(DATE(CalendárioAnual,9,22),1),\"ddd\")","v":"sáb"},{"$f":"TEXT(WEEKDAY(DATE(CalendárioAnual,9,23),1),\"ddd\")","v":"dom"},{"$f":"TEXT(WEEKDAY(DATE(CalendárioAnual,9,24),1),\"ddd\")","v":"seg"},{"$f":"TEXT(WEEKDAY(DATE(CalendárioAnual,9,25),1),\"ddd\")","v":"ter"},{"$f":"TEXT(WEEKDAY(DATE(CalendárioAnual,9,26),1),\"ddd\")","v":"qua"},{"$f":"TEXT(WEEKDAY(DATE(CalendárioAnual,9,27),1),\"ddd\")","v":"qui"},{"$f":"TEXT(WEEKDAY(DATE(CalendárioAnual,9,28),1),\"ddd\")","v":"sex"},{"$f":"TEXT(WEEKDAY(DATE(CalendárioAnual,9,29),1),\"ddd\")","v":"sáb"},{"$f":"TEXT(WEEKDAY(DATE(CalendárioAnual,9,30),1),\"ddd\")","v":"dom"},null,"Totais"]
[null,"ID de Estudante","Nome do Estudante","1","2","3","4","5","6","7","8","9","10","11","12","13","14","15","16","17","18","19","20","21","22","23","24","25","26","27","28","29","30"," ","T","E","U","P","Dias de Ausência"]
[null,null,{"$f":"IFERROR(VLOOKUP(PresençasEmSetembro[[#This Row],[ID de Estudante]],ListaDeAlunos[],18,FALSE),\"\")","v":""},{"$nulls":31},{"$f":"COUNTIF(PresençasEmSetembro[[#This Row],[1]:[ ]],Código1)","v":0},{"$f":"COUNTIF(PresençasEmSetembro[[#This Row],[1]:[ ]],Código2)","v":0},{"$f":"COUNTIF(PresençasEmSetembro[[#This Row],[1]:[ ]],Código3)","v":0},{"$f":"COUNTIF(PresençasEmSetembro[[#This Row],[1]:[ ]],Código4)","v":0},{"$f":"SUM(PresençasEmSetembro[[#This Row],[E]:[U]])","v":0}]
[null,null,{"$f":"IFERROR(VLOOKUP(PresençasEmSetembro[[#This Row],[ID de Estudante]],ListaDeAlunos[],18,FALSE),\"\")","v":""},{"$nulls":31},{"$f":"COUNTIF(PresençasEmSetembro[[#This Row],[1]:[ ]],Código1)","v":0},{"$f":"COUNTIF(PresençasEmSetembro[[#This Row],[1]:[ ]],Código2)","v":0},{"$f":"COUNTIF(PresençasEmSetembro[[#This Row],[1]:[ ]],Código3)","v":0},{"$f":"COUNTIF(PresençasEmSetembro[[#This Row],[1]:[ ]],Código4)","v":0},{"$f":"SUM(PresençasEmSetembro[[#This Row],[E]:[U]])","v":0}]
[null,null,{"$f":"IFERROR(VLOOKUP(PresençasEmSetembro[[#This Row],[ID de Estudante]],ListaDeAlunos[],18,FALSE),\"\")","v":""},{"$nulls":31},{"$f":"COUNTIF(PresençasEmSetembro[[#This Row],[1]:[ ]],Código1)","v":0},{"$f":"COUNTIF(PresençasEmSetembro[[#This Row],[1]:[ ]],Código2)","v":0},{"$f":"COUNTIF(PresençasEmSetembro[[#This Row],[1]:[ ]],Código3)","v":0},{"$f":"COUNTIF(PresençasEmSetembro[[#This Row],[1]:[ ]],Código4)","v":0},{"$f":"SUM(PresençasEmSetembro[[#This Row],[E]:[U]])","v":0}]
[null,null,{"$f":"IFERROR(VLOOKUP(PresençasEmSetembro[[#This Row],[ID de Estudante]],ListaDeAlunos[],18,FALSE),\"\")","v":""},{"$nulls":31},{"$f":"COUNTIF(PresençasEmSetembro[[#This Row],[1]:[ ]],Código1)","v":0},{"$f":"COUNTIF(PresençasEmSetembro[[#This Row],[1]:[ ]],Código2)","v":0},{"$f":"COUNTIF(PresençasEmSetembro[[#This Row],[1]:[ ]],Código3)","v":0},{"$f":"COUNTIF(PresençasEmSetembro[[#This Row],[1]:[ ]],Código4)","v":0},{"$f":"SUM(PresençasEmSetembro[[#This Row],[E]:[U]])","v":0}]
[null,null,{"$f":"IFERROR(VLOOKUP(PresençasEmSetembro[[#This Row],[ID de Estudante]],ListaDeAlunos[],18,FALSE),\"\")","v":""},{"$nulls":31},{"$f":"COUNTIF(PresençasEmSetembro[[#This Row],[1]:[ ]],Código1)","v":0},{"$f":"COUNTIF(PresençasEmSetembro[[#This Row],[1]:[ ]],Código2)","v":0},{"$f":"COUNTIF(PresençasEmSetembro[[#This Row],[1]:[ ]],Código3)","v":0},{"$f":"COUNTIF(PresençasEmSetembro[[#This Row],[1]:[ ]],Código4)","v":0},{"$f":"SUM(PresençasEmSetembro[[#This Row],[E]:[U]])","v":0}]
[null,null,"Total de dias de ausência",{"$f":"COUNTIF(PresençasEmSetembro[1],\"U\")+COUNTIF(PresençasEmSetembro[1],\"E\")","v":0},{"$f":"COUNTIF(PresençasEmSetembro[2],\"U\")+COUNTIF(PresençasEmSetembro[2],\"E\")","v":0},{"$f":"COUNTIF(PresençasEmSetembro[3],\"U\")+COUNTIF(PresençasEmSetembro[3],\"E\")","v":0},{"$f":"COUNTIF(PresençasEmSetembro[4],\"U\")+COUNTIF(PresençasEmSetembro[4],\"E\")","v":0},{"$f":"COUNTIF(PresençasEmSetembro[5],\"U\")+COUNTIF(PresençasEmSetembro[5],\"E\")","v":0},{"$f":"COUNTIF(PresençasEmSetembro[6],\"U\")+COUNTIF(PresençasEmSetembro[6],\"E\")","v":0},{"$f":"COUNTIF(PresençasEmSetembro[7],\"U\")+COUNTIF(PresençasEmSetembro[7],\"E\")","v":0},{"$f":"COUNTIF(PresençasEmSetembro[8],\"U\")+COUNTIF(PresençasEmSetembro[8],\"E\")","v":0},{"$f":"COUNTIF(PresençasEmSetembro[9],\"U\")+COUNTIF(PresençasEmSetembro[9],\"E\")","v":0},{"$f":"COUNTIF(PresençasEmSetembro[10],\"U\")+COUNTIF(PresençasEmSetembro[10],\"E\")","v":0},{"$f":"COUNTIF(PresençasEmSetembro[11],\"U\")+COUNTIF(PresençasEmSetembro[11],\"E\")","v":0},{"$f":"COUNTIF(PresençasEmSetembro[12],\"U\")+COUNTIF(PresençasEmSetembro[12],\"E\")","v":0},{"$f":"COUNTIF(PresençasEmSetembro[13],\"U\")+COUNTIF(PresençasEmSetembro[13],\"E\")","v":0},{"$f":"COUNTIF(PresençasEmSetembro[14],\"U\")+COUNTIF(PresençasEmSetembro[14],\"E\")","v":0},{"$f":"COUNTIF(PresençasEmSetembro[15],\"U\")+COUNTIF(PresençasEmSetembro[15],\"E\")","v":0},{"$f":"COUNTIF(PresençasEmSetembro[16],\"U\")+COUNTIF(PresençasEmSetembro[16],\"E\")","v":0},{"$f":"COUNTIF(PresençasEmSetembro[17],\"U\")+COUNTIF(PresençasEmSetembro[17],\"E\")","v":0},{"$f":"COUNTIF(PresençasEmSetembro[18],\"U\")+COUNTIF(PresençasEmSetembro[18],\"E\")","v":0},{"$f":"COUNTIF(PresençasEmSetembro[19],\"U\")+COUNTIF(PresençasEmSetembro[19],\"E\")","v":0},{"$f":"COUNTIF(PresençasEmSetembro[20],\"U\")+COUNTIF(PresençasEmSetembro[20],\"E\")","v":0},{"$f":"COUNTIF(PresençasEmSetembro[21],\"U\")+COUNTIF(PresençasEmSetembro[21],\"E\")","v":0},{"$f":"COUNTIF(PresençasEmSetembro[22],\"U\")+COUNTIF(PresençasEmSetembro[22],\"E\")","v":0},{"$f":"COUNTIF(PresençasEmSetembro[23],\"U\")+COUNTIF(PresençasEmSetembro[23],\"E\")","v":0},{"$f":"COUNTIF(PresençasEmSetembro[24],\"U\")+COUNTIF(PresençasEmSetembro[24],\"E\")","v":0},{"$f":"COUNTIF(PresençasEmSetembro[25],\"U\")+COUNTIF(PresençasEmSetembro[25],\"E\")","v":0},{"$f":"COUNTIF(PresençasEmSetembro[26],\"U\")+COUNTIF(PresençasEmSetembro[26],\"E\")","v":0},{"$f":"COUNTIF(PresençasEmSetembro[27],\"U\")+COUNTIF(PresençasEmSetembro[27],\"E\")","v":0},{"$f":"COUNTIF(PresençasEmSetembro[28],\"U\")+COUNTIF(PresençasEmSetembro[28],\"E\")","v":0},{"$f":"COUNTIF(PresençasEmSetembro[29],\"U\")+COUNTIF(PresençasEmSetembro[29],\"E\")","v":0},{"$f":"COUNTIF(PresençasEmSetembro[30],\"U\")+COUNTIF(PresençasEmSetembro[30],\"E\")","v":0},{"$f":"COUNTIF(PresençasEmSetembro[[ ]],\"U\")+COUNTIF(PresençasEmSetembro[[ ]],\"E\")","v":0},{"$f":"SUBTOTAL(109,PresençasEmSetembro[T])","v":0},{"$f":"SUBTOTAL(109,PresençasEmSetembro[E])","v":0},{"$f":"SUBTOTAL(109,PresençasEmSetembro[P])","v":0},{"$f":"SUBTOTAL(109,PresençasEmSetembro[P])","v":0},{"$f":"SUBTOTAL(109,PresençasEmSetembro[Dias de Ausência])","v":0}]

{"sheet":"outubro","index":4,"n_rows":12,"n_cols":39,"rows_kept":12,"merged":[[4,34,4,38]]}
["RELATÓRIO DE PRESENÇAS DOS ESTUDANTES",{"$nulls":36},"Início do Ano Letivo:",{"$f":"CalendárioAnual","v":2012}]
[]
[null,null,{"$f":"TextoColorKey","v":"CHAVE DE CORES "},{"$f":"Código1","v":"T"},{"$f":"Código1Texto","v":"Atrasado"},null,null,{"$f":"Código2","v":"E"},{"$f":"Código2Texto","v":"Justificado"},null,null,{"$f":"Código3","v":"U"},{"$f":"Código3Texto","v":"Não justificado"},null,null,{"$f":"Código4","v":"P"},{"$f":"Código4Texto","v":"Presente"},null,null,{"$f":"Código5","v":"N"},{"$f":"Código5Texto","v":"Não há Escola"}]
[]
[null,{"$f":"DATE(CalendárioAnual,10,1)","v":"2012-10-01"},null,{"$f":"TEXT(WEEKDAY(DATE(CalendárioAnual,10,1),1),\"ddd\")","v":"seg"},{"$f":"TEXT(WEEKDAY(DATE(CalendárioAnual,10,2),1),\"ddd\")","v":"ter"},{"$f":"TEXT(WEEKDAY(DATE(CalendárioAnual,10,3),1),\"ddd\")","v":"qua"},{"$f":"TEXT(WEEKDAY(DATE(CalendárioAnual,10,4),1),\"ddd\")","v":"qui"},{"$f":"TEXT(WEEKDAY(DATE(CalendárioAnual,10,5),1),\"ddd\")","v":"sex"},{"$f":"TEXT(WEEKDAY(DATE(CalendárioAnual,10,6),1),\"ddd\")","v":"sáb"},{"$f":"TEXT(WEEKDAY(DATE(CalendárioAnual,10,7),1),\"ddd\")","v":"dom"},{"$f":"TEXT(WEEKDAY(DATE(CalendárioAnual,10,8),1),\"ddd\")","v":"seg"},{"$f":"TEXT(WEEKDAY(DATE(CalendárioAnual,10,9),1),\"ddd\")","v":"ter"},{"$f":"TEXT(WEEKDAY(DATE(CalendárioAnual,10,10),1),\"ddd\")","v":"qua"},{"$f":"TEXT(WEEKDAY(DATE(CalendárioAnual,10,11),1),\"ddd\")","v":"qui"},{"$f":"TEXT(WEEKDAY(DATE(CalendárioAnual,10,12),1),\"ddd\")","v":"sex"},{"$f":"TEXT(WEEKDAY(DATE(CalendárioAnual,10,13),1),\"ddd\")","v":"sáb"},{"$f":"TEXT(WEEKDAY(DATE(CalendárioAnual,10,14),1),\"ddd\")","v":"dom"},{"$f":"TEXT(WEEKDAY(DATE(CalendárioAnual,10,15),1),\"ddd\")","v":"seg"},{"$f":"TEXT(WEEKDAY(DATE(CalendárioAnual,10,16),1),\"ddd\")","v":"ter"},{"$f":"TEXT(WEEKDAY(DATE(CalendárioAnual,10,17),1),\"ddd\")","v":"qua"},{"$f":"TEXT(WEEKDAY(DATE(CalendárioAnual,10,18),1),\"ddd\")","v":"qui"},{"$f":"TEXT(WEEKDAY(DATE(CalendárioAnual,10,19),1),\"ddd\")","v":"sex"},{"$f":"TEXT(WEEKDAY(DATE(CalendárioAnual,10,20),1),\"ddd\")","v":"sáb"},{"$f":"TEXT(WEEKDAY(DATE(CalendárioAnual,10,21),1),\"ddd\")","v":"dom"},{"$f":"TEXT(WEEKDAY(DATE(CalendárioAnual,10,22),1),\"ddd\")","v":"seg"},{"$f":"TEXT(WEEKDAY(DATE(CalendárioAnual,10,23),1),\"ddd\")","v":"ter"},{"$f":"TEXT(WEEKDAY(DATE(CalendárioAnual,10,24),1),\"ddd\")","v":"qua"},{"$f":"TEXT(WEEKDAY(DATE(CalendárioAnual,10,25),1),\"ddd\")","v":"qui"},{"$f":"TEXT(WEEKDAY(DATE(CalendárioAnual,10,26),1),\"ddd\")","v":"sex"},{"$f":"TEXT(WEEKDAY(DATE(CalendárioAnual,10,27),1),\"ddd\")","v":"sáb"},{"$f":"TEXT(WEEKDAY(DATE(CalendárioAnual,10,28),1),\"ddd\")","v":"dom"},{"$f":"TEXT(WEEKDAY(DATE(CalendárioAnual,10,29),1),\"ddd\")","v":"seg"},{"$f":"TEXT(WEEKDAY(DATE(CalendárioAnual,10,30),1),\"ddd\")","v":"ter"},{"$f":"TEXT(WEEKDAY(DATE(CalendárioAnual,10,31),1),\"ddd\")","v":"qua"},"Totais"]
[null,"ID de Estudante","Nome do Estudante","1","2","3","4","5","6","7","8","9","10","11","12","13","14","15","16","17","18","19","20","21","22","23","24","25","26","27","28","29","30","31","T","E","U","P","Dias de Ausência"]
[null,null,{"$f":"IFERROR(VLOOKUP(PresençasEmOutubro[[#This Row],[ID de Estudante]],ListaDeAlunos[],18,FALSE),\"\")","v":""},{"$nulls":31},{"$f":"COUNTIF(PresençasEmOutubro[[#This Row],[1]:[31]],Código1)","v":0},{"$f":"COUNTIF(PresençasEmOutubro[[#This Row],[1]:[31]],Código2)","v":0},{"$f":"COUNTIF(PresençasEmOutubro[[#This Row],[1]:[31]],Código3)","v":0},{"$f":"COUNTIF(PresençasEmOutubro[[#This Row],[1]:[31]],Código4)","v":0},{"$f":"SUM(PresençasEmOutubro[[#This Row],[E]:[U]])","v":0}]
[null,null,{"$f":"IFERROR(VLOOKUP(PresençasEmOutubro[[#This Row],[ID de Estudante]],ListaDeAlunos[],18,FALSE),\"\")","v":""},{"$nulls":31},{"$f":"COUNTIF(PresençasEmOutubro[[#This Row],[1]:[31]],Código1)","v":0},{"$f":"COUNTIF(PresençasEmOutubro[[#This Row],[1]:[31]],Código2)","v":0},{"$f":"COUNTIF(PresençasEmOutubro[[#This Row],[1]:[31]],Código3)","v":0},{"$f":"COUNTIF(PresençasEmOutubro[[#This Row],[1]:[31]],Código4)","v":0},{"$f":"SUM(PresençasEmOutubro[[#This Row],[E]:[U]])","v":0}]
[null,null,{"$f":"IFERROR(VLOOKUP(PresençasEmOutubro[[#This Row],[ID de Estudante]],ListaDeAlunos[],18,FALSE),\"\")","v":""},{"$nulls":31},{"$f":"COUNTIF(PresençasEmOutubro[[#This Row],[1]:[31]],Código1)","v":0},{"$f":"COUNTIF(PresençasEmOutubro[[#This Row],[1]:[31]],Código2)","v":0},{"$f":"COUNTIF(PresençasEmOutubro[[#This Row],[1]:[31]],Código3)","v":0},{"$f":"COUNTIF(PresençasEmOutubro[[#This Row],[1]:[31]],Código4)","v":0},{"$f":"SUM(PresençasEmOutubro[[#This Row],[E]:[U]])","v":0}]
[null,null,{"$f":"IFERROR(VLOOKUP(PresençasEmOutubro[[#This Row],[ID de Estudante]],ListaDeAlunos[],18,FALSE),\"\")","v":""},{"$nulls":31},{"$f":"COUNTIF(PresençasEmOutubro[[#This Row],[1]:[31]],Código1)","v":0},{"$f":"COUNTIF(PresençasEmOutubro[[#This Row],[1]:[31]],Código2)","v":0},{"$f":"COUNTIF(PresençasEmOutubro[[#This Row],[1]:[31]],Código3)","v":0},{"$f":"COUNTIF(PresençasEmOutubro[[#This Row],[1]:[31]],Código4)","v":0},{"$f":"SUM(PresençasEmOutubro[[#This Row],[E]:[U]])","v":0}]
[null,null,{"$f":"IFERROR(VLOOKUP(PresençasEmOutubro[[#This Row],[ID de Estudante]],ListaDeAlunos[],18,FALSE),\"\")","v":""},{"$nulls":31},{"$f":"COUNTIF(PresençasEmOutubro[[#This Row],[1]:[31]],Código1)","v":0},{"$f":"COUNTIF(PresençasEmOutubro[[#This Row],[1]:[31]],Código2)","v":0},{"$f":"COUNTIF(PresençasEmOutubro[[#This Row],[1]:[31]],Código3)","v":0},{"$f":"COUNTIF(PresençasEmOutubro[[#This Row],[1]:[31]],Código4)","v":0},{"$f":"SUM(PresençasEmOutubro[[#This Row],[E]:[U]])","v":0}]
[null,null,"Total de dias de ausência",{"$f":"COUNTIF(PresençasEmOutubro[1],\"U\")+COUNTIF(PresençasEmOutubro[1],\"E\")","v":0},{"$f":"COUNTIF(PresençasEmOutubro[2],\"U\")+COUNTIF(PresençasEmOutubro[2],\"E\")","v":0},{"$f":"COUNTIF(PresençasEmOutubro[3],\"U\")+COUNTIF(PresençasEmOutubro[3],\"E\")","v":0},{"$f":"COUNTIF(PresençasEmOutubro[4],\"U\")+COUNTIF(PresençasEmOutubro[4],\"E\")","v":0},{"$f":"COUNTIF(PresençasEmOutubro[5],\"U\")+COUNTIF(PresençasEmOutubro[5],\"E\")","v":0},{"$f":"COUNTIF(PresençasEmOutubro[6],\"U\")+COUNTIF(PresençasEmOutubro[6],\"E\")","v":0},{"$f":"COUNTIF(PresençasEmOutubro[7],\"U\")+COUNTIF(PresençasEmOutubro[7],\"E\")","v":0},{"$f":"COUNTIF(PresençasEmOutubro[8],\"U\")+COUNTIF(PresençasEmOutubro[8],\"E\")","v":0},{"$f":"COUNTIF(PresençasEmOutubro[9],\"U\")+COUNTIF(PresençasEmOutubro[9],\"E\")","v":0},{"$f":"COUNTIF(PresençasEmOutubro[10],\"U\")+COUNTIF(PresençasEmOutubro[10],\"E\")","v":0},{"$f":"COUNTIF(PresençasEmOutubro[11],\"U\")+COUNTIF(PresençasEmOutubro[11],\"E\")","v":0},{"$f":"COUNTIF(PresençasEmOutubro[12],\"U\")+COUNTIF(PresençasEmOutubro[12],\"E\")","v":0},{"$f":"COUNTIF(PresençasEmOutubro[13],\"U\")+COUNTIF(PresençasEmOutubro[13],\"E\")","v":0},{"$f":"COUNTIF(PresençasEmOutubro[14],\"U\")+COUNTIF(PresençasEmOutubro[14],\"E\")","v":0},{"$f":"COUNTIF(PresençasEmOutubro[15],\"U\")+COUNTIF(PresençasEmOutubro[15],\"E\")","v":0},{"$f":"COUNTIF(PresençasEmOutubro[16],\"U\")+COUNTIF(PresençasEmOutubro[16],\"E\")","v":0},{"$f":"COUNTIF(PresençasEmOutubro[17],\"U\")+COUNTIF(PresençasEmOutubro[17],\"E\")","v":0},{"$f":"COUNTIF(PresençasEmOutubro[18],\"U\")+COUNTIF(PresençasEmOutubro[18],\"E\")","v":0},{"$f":"COUNTIF(PresençasEmOutubro[19],\"U\")+COUNTIF(PresençasEmOutubro[19],\"E\")","v":0},{"$f":"COUNTIF(PresençasEmOutubro[20],\"U\")+COUNTIF(PresençasEmOutubro[20],\"E\")","v":0},{"$f":"COUNTIF(PresençasEmOutubro[21],\"U\")+COUNTIF(PresençasEmOutubro[21],\"E\")","v":0},{"$f":"COUNTIF(PresençasEmOutubro[22],\"U\")+COUNTIF(PresençasEmOutubro[22],\"E\")","v":0},{"$f":"COUNTIF(PresençasEmOutubro[23],\"U\")+COUNTIF(PresençasEmOutubro[23],\"E\")","v":0},{"$f":"COUNTIF(PresençasEmOutubro[24],\"U\")+COUNTIF(PresençasEmOutubro[24],\"E\")","v":0},{"$f":"COUNTIF(PresençasEmOutubro[25],\"U\")+COUNTIF(PresençasEmOutubro[25],\"E\")","v":0},{"$f":"COUNTIF(PresençasEmOutubro[26],\"U\")+COUNTIF(PresençasEmOutubro[26],\"E\")","v":0},{"$f":"COUNTIF(PresençasEmOutubro[27],\"U\")+COUNTIF(PresençasEmOutubro[27],\"E\")","v":0},{"$f":"COUNTIF(PresençasEmOutubro[28],\"U\")+COUNTIF(PresençasEmOutubro[28],\"E\")","v":0},{"$f":"COUNTIF(PresençasEmOutubro[29],\"U\")+COUNTIF(PresençasEmOutubro[29],\"E\")","v":0},{"$f":"COUNTIF(PresençasEmOutubro[30],\"U\")+COUNTIF(PresençasEmOutubro[30],\"E\")","v":0},{"$f":"COUNTIF(PresençasEmOutubro[31],\"U\")+COUNTIF(PresençasEmOutubro[31],\"E\")","v":0},{"$f":"SUBTOTAL(109,PresençasEmOutubro[T])","v":0},{"$f":"SUBTOTAL(109,PresençasEmOutubro[E])","v":0},{"$f":"SUBTOTAL(109,PresençasEmOutubro[U])","v":0},{"$f":"SUBTOTAL(109,PresençasEmOutubro[P])","v":0},{"$f":"SUBTOTAL(109,PresençasEmOutubro[Dias de Ausência])","v":0}]

{"sheet":"novembro","index":5,"n_rows":12,"n_cols":39,"rows_kept":12,"merged":[[4,34,4,38]]}
["RELATÓRIO DE PRESENÇAS DOS ESTUDANTES",{"$nulls":36},"Início do Ano Letivo:",{"$f":"CalendárioAnual","v":2012}]
[]
[null,null,{"$f":"TextoColorKey","v":"CHAVE DE CORES "},{"$f":"Código1","v":"T"},{"$f":"Código1Texto","v":"Atrasado"},null,null,{"$f":"Código2","v":"E"},{"$f":"Código2Texto","v":"Justificado"},null,null,{"$f":"Código3","v":"U"},{"$f":"Código3Texto","v":"Não justificado"},null,null,{"$f":"Código4","v":"P"},{"$f":"Código4Texto","v":"Presente"},null,null,{"$f":"Código5","v":"N"},{"$f":"Código5Texto","v":"Não há Escola"}]
[]
[null,{"$f":"DATE(CalendárioAnual,11,1)","v":"2012-11-01"},null,{"$f":"TEXT(WEEKDAY(DATE(CalendárioAnual,11,1),1),\"ddd\")","v":"qui"},{"$f":"TEXT(WEEKDAY(DATE(CalendárioAnual,11,2),1),\"ddd\")","v":"sex"},{"$f":"TEXT(WEEKDAY(DATE(CalendárioAnual,11,3),1),\"ddd\")","v":"sáb"},{"$f":"TEXT(WEEKDAY(DATE(CalendárioAnual,11,4),1),\"ddd\")","v":"dom"},{"$f":"TEXT(WEEKDAY(DATE(CalendárioAnual,11,5),1),\"ddd\")","v":"seg"},{"$f":"TEXT(WEEKDAY(DATE(CalendárioAnual,11,6),1),\"ddd\")","v":"ter"},{"$f":"TEXT(WEEKDAY(DATE(CalendárioAnual,11,7),1),\"ddd\")","v":"qua"},{"$f":"TEXT(WEEKDAY(DATE(CalendárioAnual,11,8),1),\"ddd\")","v":"qui"},{"$f":"TEXT(WEEKDAY(DATE(CalendárioAnual,11,9),1),\"ddd\")","v":"sex"},{"$f":"TEXT(WEEKDAY(DATE(CalendárioAnual,11,10),1),\"ddd\")","v":"sáb"},{"$f":"TEXT(WEEKDAY(DATE(CalendárioAnual,11,11),1),\"ddd\")","v":"dom"},{"$f":"TEXT(WEEKDAY(DATE(CalendárioAnual,11,12),1),\"ddd\")","v":"seg"},{"$f":"TEXT(WEEKDAY(DATE(CalendárioAnual,11,13),1),\"ddd\")","v":"ter"},{"$f":"TEXT(WEEKDAY(DATE(CalendárioAnual,11,14),1),\"ddd\")","v":"qua"},{"$f":"TEXT(WEEKDAY(DATE(CalendárioAnual,11,15),1),\"ddd\")","v":"qui"},{"$f":"TEXT(WEEKDAY(DATE(CalendárioAnual,11,16),1),\"ddd\")","v":"sex"},{"$f":"TEXT(WEEKDAY(DATE(CalendárioAnual,11,17),1),\"ddd\")","v":"sáb"},{"$f":"TEXT(WEEKDAY(DATE(CalendárioAnual,11,18),1),\"ddd\")","v":"dom"},{"$f":"TEXT(WEEKDAY(DATE(CalendárioAnual,11,19),1),\"ddd\")","v":"seg"},{"$f":"TEXT(WEEKDAY(DATE(CalendárioAnual,11,20),1),\"ddd\")","v":"ter"},{"$f":"TEXT(WEEKDAY(DATE(CalendárioAnual,11,21),1),\"ddd\")","v":"qua"},{"$f":"TEXT(WEEKDAY(DATE(CalendárioAnual,11,22),1),\"ddd\")","v":"qui"},{"$f":"TEXT(WEEKDAY(DATE(CalendárioAnual,11,23),1),\"ddd\")","v":"sex"},{"$f":"TEXT(WEEKDAY(DATE(CalendárioAnual,11,24),1),\"ddd\")","v":"sáb"},{"$f":"TEXT(WEEKDAY(DATE(CalendárioAnual,11,25),1),\"ddd\")","v":"dom"},{"$f":"TEXT(WEEKDAY(DATE(CalendárioAnual,11,26),1),\"ddd\")","v":"seg"},{"$f":"TEXT(WEEKDAY(DATE(CalendárioAnual,11,27),1),\"ddd\")","v":"ter"},{"$f":"TEXT(WEEKDAY(DATE(CalendárioAnual,11,28),1),\"ddd\")","v":"qua"},{"$f":"TEXT(WEEKDAY(DATE(CalendárioAnual,11,29),1),\"ddd\")","v":"qui"},{"$f":"TEXT(WEEKDAY(DATE(CalendárioAnual,11,30),1),\"ddd\")","v":"sex"},null,"Totais"]
[null,"ID de Estudante","Nome do Estudante","1","2","3","4","5","6","7","8","9","10","11","12","13","14","15","16","17","18","19","20","21","22","23","24","25","26","27","28","29","30"," ","T","E","U","P","Dias de Ausência"]
[null,null,{"$f":"IFERROR(VLOOKUP(PresençasEmNovembro[[#This Row],[ID de Estudante]],ListaDeAlunos[],18,FALSE),\"\")","v":""},{"$nulls":31},{"$f":"COUNTIF(PresençasEmNovembro[[#This Row],[1]:[ ]],Código1)","v":0},{"$f":"COUNTIF(PresençasEmNovembro[[#This Row],[1]:[ ]],Código2)","v":0},{"$f":"COUNTIF(PresençasEmNovembro[[#This Row],[1]:[ ]],Código3)","v":0},{"$f":"COUNTIF(PresençasEmNovembro[[#This Row],[1]:[ ]],Código4)","v":0},{"$f":"SUM(PresençasEmNovembro[[#This Row],[E]:[U]])","v":0}]
[null,null,{"$f":"IFERROR(VLOOKUP(PresençasEmNovembro[[#This Row],[ID de Estudante]],ListaDeAlunos[],18,FALSE),\"\")","v":""},{"$nulls":31},{"$f":"COUNTIF(PresençasEmNovembro[[#This Row],[1]:[ ]],Código1)","v":0},{"$f":"COUNTIF(PresençasEmNovembro[[#This Row],[1]:[ ]],Código2)","v":0},{"$f":"COUNTIF(PresençasEmNovembro[[#This Row],[1]:[ ]],Código3)","v":0},{"$f":"COUNTIF(PresençasEmNovembro[[#This Row],[1]:[ ]],Código4)","v":0},{"$f":"SUM(PresençasEmNovembro[[#This Row],[E]:[U]])","v":0}]
[null,null,{"$f":"IFERROR(VLOOKUP(PresençasEmNovembro[[#This Row],[ID de Estudante]],ListaDeAlunos[],18,FALSE),\"\")","v":""},{"$nulls":31},{"$f":"COUNTIF(PresençasEmNovembro[[#This Row],[1]:[ ]],Código1)","v":0},{"$f":"COUNTIF(PresençasEmNovembro[[#This Row],[1]:[ ]],Código2)","v":0},{"$f":"COUNTIF(PresençasEmNovembro[[#This Row],[1]:[ ]],Código3)","v":0},{"$f":"COUNTIF(PresençasEmNovembro[[#This Row],[1]:[ ]],Código4)","v":0},{"$f":"SUM(PresençasEmNovembro[[#This Row],[E]:[U]])","v":0}]
[null,null,{"$f":"IFERROR(VLOOKUP(PresençasEmNovembro[[#This Row],[ID de Estudante]],ListaDeAlunos[],18,FALSE),\"\")","v":""},{"$nulls":31},{"$f":"COUNTIF(PresençasEmNovembro[[#This Row],[1]:[ ]],Código1)","v":0},{"$f":"COUNTIF(PresençasEmNovembro[[#This Row],[1]:[ ]],Código2)","v":0},{"$f":"COUNTIF(PresençasEmNovembro[[#This Row],[1]:[ ]],Código3)","v":0},{"$f":"COUNTIF(PresençasEmNovembro[[#This Row],[1]:[ ]],Código4)","v":0},{"$f":"SUM(PresençasEmNovembro[[#This Row],[E]:[U]])","v":0}]
[null,null,{"$f":"IFERROR(VLOOKUP(PresençasEmNovembro[[#This Row],[ID de Estudante]],ListaDeAlunos[],18,FALSE),\"\")","v":""},{"$nulls":31},{"$f":"COUNTIF(PresençasEmNovembro[[#This Row],[1]:[ ]],Código1)","v":0},{"$f":"COUNTIF(PresençasEmNovembro[[#This Row],[1]:[ ]],Código2)","v":0},{"$f":"COUNTIF(PresençasEmNovembro[[#This Row],[1]:[ ]],Código3)","v":0},{"$f":"COUNTIF(PresençasEmNovembro[[#This Row],[1]:[ ]],Código4)","v":0},{"$f":"SUM(PresençasEmNovembro[[#This Row],[E]:[U]])","v":0}]
[null,null,"Total de dias de ausência",{"$f":"COUNTIF(PresençasEmNovembro[1],\"U\")+COUNTIF(PresençasEmNovembro[1],\"E\")","v":0},{"$f":"COUNTIF(PresençasEmNovembro[2],\"U\")+COUNTIF(PresençasEmNovembro[2],\"E\")","v":0},{"$f":"COUNTIF(PresençasEmNovembro[3],\"U\")+COUNTIF(PresençasEmNovembro[3],\"E\")","v":0},{"$f":"COUNTIF(PresençasEmNovembro[4],\"U\")+COUNTIF(PresençasEmNovembro[4],\"E\")","v":0},{"$f":"COUNTIF(PresençasEmNovembro[5],\"U\")+COUNTIF(PresençasEmNovembro[5],\"E\")","v":0},{"$f":"COUNTIF(PresençasEmNovembro[6],\"U\")+COUNTIF(PresençasEmNovembro[6],\"E\")","v":0},{"$f":"COUNTIF(PresençasEmNovembro[7],\"U\")+COUNTIF(PresençasEmNovembro[7],\"E\")","v":0},{"$f":"COUNTIF(PresençasEmNovembro[8],\"U\")+COUNTIF(PresençasEmNovembro[8],\"E\")","v":0},{"$f":"COUNTIF(PresençasEmNovembro[9],\"U\")+COUNTIF(PresençasEmNovembro[9],\"E\")","v":0},{"$f":"COUNTIF(PresençasEmNovembro[10],\"U\")+COUNTIF(PresençasEmNovembro[10],\"E\")","v":0},{"$f":"COUNTIF(PresençasEmNovembro[11],\"U\")+COUNTIF(PresençasEmNovembro[11],\"E\")","v":0},{"$f":"COUNTIF(PresençasEmNovembro[12],\"U\")+COUNTIF(PresençasEmNovembro[12],\"E\")","v":0},{"$f":"COUNTIF(PresençasEmNovembro[13],\"U\")+COUNTIF(PresençasEmNovembro[13],\"E\")","v":0},{"$f":"COUNTIF(PresençasEmNovembro[14],\"U\")+COUNTIF(PresençasEmNovembro[14],\"E\")","v":0},{"$f":"COUNTIF(PresençasEmNovembro[15],\"U\")+COUNTIF(PresençasEmNovembro[15],\"E\")","v":0},{"$f":"COUNTIF(PresençasEmNovembro[16],\"U\")+COUNTIF(PresençasEmNovembro[16],\"E\")","v":0},{"$f":"COUNTIF(PresençasEmNovembro[17],\"U\")+COUNTIF(PresençasEmNovembro[17],\"E\")","v":0},{"$f":"COUNTIF(PresençasEmNovembro[18],\"U\")+COUNTIF(PresençasEmNovembro[18],\"E\")","v":0},{"$f":"COUNTIF(PresençasEmNovembro[19],\"U\")+COUNTIF(PresençasEmNovembro[19],\"E\")","v":0},{"$f":"COUNTIF(PresençasEmNovembro[20],\"U\")+COUNTIF(PresençasEmNovembro[20],\"E\")","v":0},{"$f":"COUNTIF(PresençasEmNovembro[21],\"U\")+COUNTIF(PresençasEmNovembro[21],\"E\")","v":0},{"$f":"COUNTIF(PresençasEmNovembro[22],\"U\")+COUNTIF(PresençasEmNovembro[22],\"E\")","v":0},{"$f":"COUNTIF(PresençasEmNovembro[23],\"U\")+COUNTIF(PresençasEmNovembro[23],\"E\")","v":0},{"$f":"COUNTIF(PresençasEmNovembro[24],\"U\")+COUNTIF(PresençasEmNovembro[24],\"E\")","v":0},{"$f":"COUNTIF(PresençasEmNovembro[25],\"U\")+COUNTIF(PresençasEmNovembro[25],\"E\")","v":0},{"$f":"COUNTIF(PresençasEmNovembro[26],\"U\")+COUNTIF(PresençasEmNovembro[26],\"E\")","v":0},{"$f":"COUNTIF(PresençasEmNovembro[27],\"U\")+COUNTIF(PresençasEmNovembro[27],\"E\")","v":0},{"$f":"COUNTIF(PresençasEmNovembro[28],\"U\")+COUNTIF(PresençasEmNovembro[28],\"E\")","v":0},{"$f":"COUNTIF(PresençasEmNovembro[29],\"U\")+COUNTIF(PresençasEmNovembro[29],\"E\")","v":0},{"$f":"COUNTIF(PresençasEmNovembro[30],\"U\")+COUNTIF(PresençasEmNovembro[30],\"E\")","v":0},{"$f":"COUNTIF(PresençasEmNovembro[[ ]],\"U\")+COUNTIF(PresençasEmNovembro[[ ]],\"E\")","v":0},{"$f":"SUBTOTAL(109,PresençasEmNovembro[T])","v":0},{"$f":"SUBTOTAL(109,PresençasEmNovembro[E])","v":0},{"$f":"SUBTOTAL(109,PresençasEmNovembro[U])","v":0},{"$f":"SUBTOTAL(109,PresençasEmNovembro[P])","v":0},{"$f":"SUBTOTAL(109,PresençasEmNovembro[Dias de Ausência])","v":0}]

{"sheet":"dezembro","index":6,"n_rows":12,"n_cols":39,"rows_kept":12,"merged":[[4,34,4,38]]}
["RELATÓRIO DE PRESENÇAS DOS ESTUDANTES",{"$nulls":36},"Início do Ano Letivo:",{"$f":"CalendárioAnual","v":2012}]
[]
[null,null,{"$f":"TextoColorKey","v":"CHAVE DE CORES "},{"$f":"Código1","v":"T"},{"$f":"Código1Texto","v":"Atrasado"},null,null,{"$f":"Código2","v":"E"},{"$f":"Código2Texto","v":"Justificado"},null,null,{"$f":"Código3","v":"U"},{"$f":"Código3Texto","v":"Não justificado"},null,null,{"$f":"Código4","v":"P"},{"$f":"Código4Texto","v":"Presente"},null,null,{"$f":"Código5","v":"N"},{"$f":"Código5Texto","v":"Não há Escola"}]
[]
[null,{"$f":"DATE(CalendárioAnual,12,1)","v":"2012-12-01"},null,{"$f":"TEXT(WEEKDAY(DATE(CalendárioAnual,12,1),1),\"ddd\")","v":"sáb"},{"$f":"TEXT(WEEKDAY(DATE(CalendárioAnual,12,2),1),\"ddd\")","v":"dom"},{"$f":"TEXT(WEEKDAY(DATE(CalendárioAnual,12,3),1),\"ddd\")","v":"seg"},{"$f":"TEXT(WEEKDAY(DATE(CalendárioAnual,12,4),1),\"ddd\")","v":"ter"},{"$f":"TEXT(WEEKDAY(DATE(CalendárioAnual,12,5),1),\"ddd\")","v":"qua"},{"$f":"TEXT(WEEKDAY(DATE(CalendárioAnual,12,6),1),\"ddd\")","v":"qui"},{"$f":"TEXT(WEEKDAY(DATE(CalendárioAnual,12,7),1),\"ddd\")","v":"sex"},{"$f":"TEXT(WEEKDAY(DATE(CalendárioAnual,12,8),1),\"ddd\")","v":"sáb"},{"$f":"TEXT(WEEKDAY(DATE(CalendárioAnual,12,9),1),\"ddd\")","v":"dom"},{"$f":"TEXT(WEEKDAY(DATE(CalendárioAnual,12,10),1),\"ddd\")","v":"seg"},{"$f":"TEXT(WEEKDAY(DATE(CalendárioAnual,12,11),1),\"ddd\")","v":"ter"},{"$f":"TEXT(WEEKDAY(DATE(CalendárioAnual,12,12),1),\"ddd\")","v":"qua"},{"$f":"TEXT(WEEKDAY(DATE(CalendárioAnual,12,13),1),\"ddd\")","v":"qui"},{"$f":"TEXT(WEEKDAY(DATE(CalendárioAnual,12,14),1),\"ddd\")","v":"sex"},{"$f":"TEXT(WEEKDAY(DATE(CalendárioAnual,12,15),1),\"ddd\")","v":"sáb"},{"$f":"TEXT(WEEKDAY(DATE(CalendárioAnual,12,16),1),\"ddd\")","v":"dom"},{"$f":"TEXT(WEEKDAY(DATE(CalendárioAnual,12,17),1),\"ddd\")","v":"seg"},{"$f":"TEXT(WEEKDAY(DATE(CalendárioAnual,12,18),1),\"ddd\")","v":"ter"},{"$f":"TEXT(WEEKDAY(DATE(CalendárioAnual,12,19),1),\"ddd\")","v":"qua"},{"$f":"TEXT(WEEKDAY(DATE(CalendárioAnual,12,20),1),\"ddd\")","v":"qui"},{"$f":"TEXT(WEEKDAY(DATE(CalendárioAnual,12,21),1),\"ddd\")","v":"sex"},{"$f":"TEXT(WEEKDAY(DATE(CalendárioAnual,12,22),1),\"ddd\")","v":"sáb"},{"$f":"TEXT(WEEKDAY(DATE(CalendárioAnual,12,23),1),\"ddd\")","v":"dom"},{"$f":"TEXT(WEEKDAY(DATE(CalendárioAnual,12,24),1),\"ddd\")","v":"seg"},{"$f":"TEXT(WEEKDAY(DATE(CalendárioAnual,12,25),1),\"ddd\")","v":"ter"},{"$f":"TEXT(WEEKDAY(DATE(CalendárioAnual,12,26),1),\"ddd\")","v":"qua"},{"$f":"TEXT(WEEKDAY(DATE(CalendárioAnual,12,27),1),\"ddd\")","v":"qui"},{"$f":"TEXT(WEEKDAY(DATE(CalendárioAnual,12,28),1),\"ddd\")","v":"sex"},{"$f":"TEXT(WEEKDAY(DATE(CalendárioAnual,12,29),1),\"ddd\")","v":"sáb"},{"$f":"TEXT(WEEKDAY(DATE(CalendárioAnual,12,30),1),\"ddd\")","v":"dom"},{"$f":"TEXT(WEEKDAY(DATE(CalendárioAnual,12,31),1),\"ddd\")","v":"seg"},"Totais"]
[null,"ID de Estudante","Nome do Estudante","1","2","3","4","5","6","7","8","9","10","11","12","13","14","15","16","17","18","19","20","21","22","23","24","25","26","27","28","29","30","31","T","E","U","P","Dias de Ausência"]
[null,null,{"$f":"IFERROR(VLOOKUP(PresençasEmDezembro[[#This Row],[ID de Estudante]],ListaDeAlunos[],18,FALSE),\"\")","v":""},{"$nulls":31},{"$f":"COUNTIF(PresençasEmDezembro[[#This Row],[1]:[31]],Código1)","v":0},{"$f":"COUNTIF(PresençasEmDezembro[[#This Row],[1]:[31]],Código2)","v":0},{"$f":"COUNTIF(PresençasEmDezembro[[#This Row],[1]:[31]],Código3)","v":0},{"$f":"COUNTIF(PresençasEmDezembro[[#This Row],[1]:[31]],Código4)","v":0},{"$f":"SUM(PresençasEmDezembro[[#This Row],[E]:[U]])","v":0}]
[null,null,{"$f":"IFERROR(VLOOKUP(PresençasEmDezembro[[#This Row],[ID de Estudante]],ListaDeAlunos[],18,FALSE),\"\")","v":""},{"$nulls":31},{"$f":"COUNTIF(PresençasEmDezembro[[#This Row],[1]:[31]],Código1)","v":0},{"$f":"COUNTIF(PresençasEmDezembro[[#This Row],[1]:[31]],Código2)","v":0},{"$f":"COUNTIF(PresençasEmDezembro[[#This Row],[1]:[31]],Código3)","v":0},{"$f":"COUNTIF(PresençasEmDezembro[[#This Row],[1]:[31]],Código4)","v":0},{"$f":"SUM(PresençasEmDezembro[[#This Row],[E]:[U]])","v":0}]
[null,null,{"$f":"IFERROR(VLOOKUP(PresençasEmDezembro[[#This Row],[ID de Estudante]],ListaDeAlunos[],18,FALSE),\"\")","v":""},{"$nulls":31},{"$f":"COUNTIF(PresençasEmDezembro[[#This Row],[1]:[31]],Código1)","v":0},{"$f":"COUNTIF(PresençasEmDezembro[[#This Row],[1]:[31]],Código2)","v":0},{"$f":"COUNTIF(PresençasEmDezembro[[#This Row],[1]:[31]],Código3)","v":0},{"$f":"COUNTIF(PresençasEmDezembro[[#This Row],[1]:[31]],Código4)","v":0},{"$f":"SUM(PresençasEmDezembro[[#This Row],[E]:[U]])","v":0}]
[null,null,{"$f":"IFERROR(VLOOKUP(PresençasEmDezembro[[#This Row],[ID de Estudante]],ListaDeAlunos[],18,FALSE),\"\")","v":""},{"$nulls":31},{"$f":"COUNTIF(PresençasEmDezembro[[#This Row],[1]:[31]],Código1)","v":0},{"$f":"COUNTIF(PresençasEmDezembro[[#This Row],[1]:[31]],Código2)","v":0},{"$f":"COUNTIF(PresençasEmDezembro[[#This Row],[1]:[31]],Código3)","v":0},{"$f":"COUNTIF(PresençasEmDezembro[[#This Row],[1]:[31]],Código4)","v":0},{"$f":"SUM(PresençasEmDezembro[[#This Row],[E]:[U]])","v":0}]
[null,null,{"$f":"IFERROR(VLOOKUP(PresençasEmDezembro[[#This Row],[ID de Estudante]],ListaDeAlunos[],18,FALSE),\"\")","v":""},{"$nulls":31},{"$f":"COUNTIF(PresençasEmDezembro[[#This Row],[1]:[31]],Código1)","v":0},{"$f":"COUNTIF(PresençasEmDezembro[[#This Row],[1]:[31]],Código2)","v":0},{"$f":"COUNTIF(PresençasEmDezembro[[#This Row],[1]:[31]],Código3)","v":0},{"$f":"COUNTIF(PresençasEmDezembro[[#This Row],[1]:[31]],Código4)","v":0},{"$f":"SUM(PresençasEmDezembro[[#This Row],[E]:[U]])","v":0}]
[null,null,"Total de dias de ausência",{"$f":"COUNTIF(PresençasEmDezembro[1],\"U\")+COUNTIF(PresençasEmDezembro[1],\"E\")","v":0},{"$f":"COUNTIF(PresençasEmDezembro[2],\"U\")+COUNTIF(PresençasEmDezembro[2],\"E\")","v":0},{"$f":"COUNTIF(PresençasEmDezembro[3],\"U\")+COUNTIF(PresençasEmDezembro[3],\"E\")","v":0},{"$f":"COUNTIF(PresençasEmDezembro[4],\"U\")+COUNTIF(PresençasEmDezembro[4],\"E\")","v":0},{"$f":"COUNTIF(PresençasEmDezembro[5],\"U\")+COUNTIF(PresençasEmDezembro[5],\"E\")","v":0},{"$f":"COUNTIF(PresençasEmDezembro[6],\"U\")+COUNTIF(PresençasEmDezembro[6],\"E\")","v":0},{"$f":"COUNTIF(PresençasEmDezembro[7],\"U\")+COUNTIF(PresençasEmDezembro[7],\"E\")","v":0},{"$f":"COUNTIF(PresençasEmDezembro[8],\"U\")+COUNTIF(PresençasEmDezembro[8],\"E\")","v":0},{"$f":"COUNTIF(PresençasEmDezembro[9],\"U\")+COUNTIF(PresençasEmDezembro[9],\"E\")","v":0},{"$f":"COUNTIF(PresençasEmDezembro[10],\"U\")+COUNTIF(PresençasEmDezembro[10],\"E\")","v":0},{"$f":"COUNTIF(PresençasEmDezembro[11],\"U\")+COUNTIF(PresençasEmDezembro[11],\"E\")","v":0},{"$f":"COUNTIF(PresençasEmDezembro[12],\"U\")+COUNTIF(PresençasEmDezembro[12],\"E\")","v":0},{"$f":"COUNTIF(PresençasEmDezembro[13],\"U\")+COUNTIF(PresençasEmDezembro[13],\"E\")","v":0},{"$f":"COUNTIF(PresençasEmDezembro[14],\"U\")+COUNTIF(PresençasEmDezembro[14],\"E\")","v":0},{"$f":"COUNTIF(PresençasEmDezembro[15],\"U\")+COUNTIF(PresençasEmDezembro[15],\"E\")","v":0},{"$f":"COUNTIF(PresençasEmDezembro[16],\"U\")+COUNTIF(PresençasEmDezembro[16],\"E\")","v":0},{"$f":"COUNTIF(PresençasEmDezembro[17],\"U\")+COUNTIF(PresençasEmDezembro[17],\"E\")","v":0},{"$f":"COUNTIF(PresençasEmDezembro[18],\"U\")+COUNTIF(PresençasEmDezembro[18],\"E\")","v":0},{"$f":"COUNTIF(PresençasEmDezembro[19],\"U\")+COUNTIF(PresençasEmDezembro[19],\"E\")","v":0},{"$f":"COUNTIF(PresençasEmDezembro[20],\"U\")+COUNTIF(PresençasEmDezembro[20],\"E\")","v":0},{"$f":"COUNTIF(PresençasEmDezembro[21],\"U\")+COUNTIF(PresençasEmDezembro[21],\"E\")","v":0},{"$f":"COUNTIF(PresençasEmDezembro[22],\"U\")+COUNTIF(PresençasEmDezembro[22],\"E\")","v":0},{"$f":"COUNTIF(PresençasEmDezembro[23],\"U\")+COUNTIF(PresençasEmDezembro[23],\"E\")","v":0},{"$f":"COUNTIF(PresençasEmDezembro[24],\"U\")+COUNTIF(PresençasEmDezembro[24],\"E\")","v":0},{"$f":"COUNTIF(PresençasEmDezembro[25],\"U\")+COUNTIF(PresençasEmDezembro[25],\"E\")","v":0},{"$f":"COUNTIF(PresençasEmDezembro[26],\"U\")+COUNTIF(PresençasEmDezembro[26],\"E\")","v":0},{"$f":"COUNTIF(PresençasEmDezembro[27],\"U\")+COUNTIF(PresençasEmDezembro[27],\"E\")","v":0},{"$f":"COUNTIF(PresençasEmDezembro[28],\"U\")+COUNTIF(PresençasEmDezembro[28],\"E\")","v":0},{"$f":"COUNTIF(PresençasEmDezembro[29],\"U\")+COUNTIF(PresençasEmDezembro[29],\"E\")","v":0},{"$f":"COUNTIF(PresençasEmDezembro[30],\"U\")+COUNTIF(PresençasEmDezembro[30],\"E\")","v":0},{"$f":"COUNTIF(PresençasEmDezembro[31],\"U\")+COUNTIF(PresençasEmDezembro[31],\"E\")","v":0},{"$f":"SUBTOTAL(109,PresençasEmDezembro[T])","v":0},{"$f":"SUBTOTAL(109,PresençasEmDezembro[E])","v":0},{"$f":"SUBTOTAL(109,PresençasEmDezembro[U])","v":0},{"$f":"SUBTOTAL(109,PresençasEmDezembro[P])","v":0},{"$f":"SUBTOTAL(109,PresençasEmDezembro[Dias de Ausência])","v":0}]

{"sheet":"janeiro","index":7,"n_rows":12,"n_cols":39,"rows_kept":12,"merged":[[4,34,4,38]]}
["RELATÓRIO DE PRESENÇAS DOS ESTUDANTES",{"$nulls":36},"Início do Ano Letivo:",{"$f":"CalendárioAnual","v":2012}]
[]
[null,null,{"$f":"TextoColorKey","v":"CHAVE DE CORES "},{"$f":"Código1","v":"T"},{"$f":"Código1Texto","v":"Atrasado"},null,null,{"$f":"Código2","v":"E"},{"$f":"Código2Texto","v":"Justificado"},null,null,{"$f":"Código3","v":"U"},{"$f":"Código3Texto","v":"Não justificado"},null,null,{"$f":"Código4","v":"P"},{"$f":"Código4Texto","v":"Presente"},null,null,{"$f":"Código5","v":"N"},{"$f":"Código5Texto","v":"Não há Escola"}]
[]
[null,{"$f":"DATE(CalendárioAnual+1,1,1)","v":"2013-01-01"},null,{"$f":"TEXT(WEEKDAY(DATE(CalendárioAnual+1,1,1),1),\"ddd\")","v":"ter"},{"$f":"TEXT(WEEKDAY(DATE(CalendárioAnual+1,1,2),1),\"ddd\")","v":"qua"},{"$f":"TEXT(WEEKDAY(DATE(CalendárioAnual+1,1,3),1),\"ddd\")","v":"qui"},{"$f":"TEXT(WEEKDAY(DATE(CalendárioAnual+1,1,4),1),\"ddd\")","v":"sex"},{"$f":"TEXT(WEEKDAY(DATE(CalendárioAnual+1,1,5),1),\"ddd\")","v":"sáb"},{"$f":"TEXT(WEEKDAY(DATE(CalendárioAnual+1,1,6),1),\"ddd\")","v":"dom"},{"$f":"TEXT(WEEKDAY(DATE(CalendárioAnual+1,1,7),1),\"ddd\")","v":"seg"},{"$f":"TEXT(WEEKDAY(DATE(CalendárioAnual+1,1,8),1),\"ddd\")","v":"ter"},{"$f":"TEXT(WEEKDAY(DATE(CalendárioAnual+1,1,9),1),\"ddd\")","v":"qua"},{"$f":"TEXT(WEEKDAY(DATE(CalendárioAnual+1,1,10),1),\"ddd\")","v":"qui"},{"$f":"TEXT(WEEKDAY(DATE(CalendárioAnual+1,1,11),1),\"ddd\")","v":"sex"},{"$f":"TEXT(WEEKDAY(DATE(CalendárioAnual+1,1,12),1),\"ddd\")","v":"sáb"},{"$f":"TEXT(WEEKDAY(DATE(CalendárioAnual+1,1,13),1),\"ddd\")","v":"dom"},{"$f":"TEXT(WEEKDAY(DATE(CalendárioAnual+1,1,14),1),\"ddd\")","v":"seg"},{"$f":"TEXT(WEEKDAY(DATE(CalendárioAnual+1,1,15),1),\"ddd\")","v":"ter"},{"$f":"TEXT(WEEKDAY(DATE(CalendárioAnual+1,1,16),1),\"ddd\")","v":"qua"},{"$f":"TEXT(WEEKDAY(DATE(CalendárioAnual+1,1,17),1),\"ddd\")","v":"qui"},{"$f":"TEXT(WEEKDAY(DATE(CalendárioAnual+1,1,18),1),\"ddd\")","v":"sex"},{"$f":"TEXT(WEEKDAY(DATE(CalendárioAnual+1,1,19),1),\"ddd\")","v":"sáb"},{"$f":"TEXT(WEEKDAY(DATE(CalendárioAnual+1,1,20),1),\"ddd\")","v":"dom"},{"$f":"TEXT(WEEKDAY(DATE(CalendárioAnual+1,1,21),1),\"ddd\")","v":"seg"},{"$f":"TEXT(WEEKDAY(DATE(CalendárioAnual+1,1,22),1),\"ddd\")","v":"ter"},{"$f":"TEXT(WEEKDAY(DATE(CalendárioAnual+1,1,23),1),\"ddd\")","v":"qua"},{"$f":"TEXT(WEEKDAY(DATE(CalendárioAnual+1,1,24),1),\"ddd\")","v":"qui"},{"$f":"TEXT(WEEKDAY(DATE(CalendárioAnual+1,1,25),1),\"ddd\")","v":"sex"},{"$f":"TEXT(WEEKDAY(DATE(CalendárioAnual+1,1,26),1),\"ddd\")","v":"sáb"},{"$f":"TEXT(WEEKDAY(DATE(CalendárioAnual+1,1,27),1),\"ddd\")","v":"dom"},{"$f":"TEXT(WEEKDAY(DATE(CalendárioAnual+1,1,28),1),\"ddd\")","v":"seg"},{"$f":"TEXT(WEEKDAY(DATE(CalendárioAnual+1,1,29),1),\"ddd\")","v":"ter"},{"$f":"TEXT(WEEKDAY(DATE(CalendárioAnual+1,1,30),1),\"ddd\")","v":"qua"},{"$f":"TEXT(WEEKDAY(DATE(CalendárioAnual+1,1,31),1),\"ddd\")","v":"qui"},"Totais"]
[null,"ID de Estudante","Nome do Estudante","1","2","3","4","5","6","7","8","9","10","11","12","13","14","15","16","17","18","19","20","21","22","23","24","25","26","27","28","29","30","31","T","E","U","P","Dias de Ausência"]
[null,null,{"$f":"IFERROR(VLOOKUP(PresençasEmJaneiro[[#This Row],[ID de Estudante]],ListaDeAlunos[],18,FALSE),\"\")","v":""},{"$nulls":31},{"$f":"COUNTIF(PresençasEmJaneiro[[#This Row],[1]:[31]],Código1)","v":0},{"$f":"COUNTIF(PresençasEmJaneiro[[#This Row],[1]:[31]],Código2)","v":0},{"$f":"COUNTIF(PresençasEmJaneiro[[#This Row],[1]:[31]],Código3)","v":0},{"$f":"COUNTIF(PresençasEmJaneiro[[#This Row],[1]:[31]],Código4)","v":0},{"$f":"SUM(PresençasEmJaneiro[[#This Row],[E]:[U]])","v":0}]
[null,null,{"$f":"IFERROR(VLOOKUP(PresençasEmJaneiro[[#This Row],[ID de Estudante]],ListaDeAlunos[],18,FALSE),\"\")","v":""},{"$nulls":31},{"$f":"COUNTIF(PresençasEmJaneiro[[#This Row],[1]:[31]],Código1)","v":0},{"$f":"COUNTIF(PresençasEmJaneiro[[#This Row],[1]:[31]],Código2)","v":0},{"$f":"COUNTIF(PresençasEmJaneiro[[#This Row],[1]:[31]],Código3)","v":0},{"$f":"COUNTIF(PresençasEmJaneiro[[#This Row],[1]:[31]],Código4)","v":0},{"$f":"SUM(PresençasEmJaneiro[[#This Row],[E]:[U]])","v":0}]
[null,null,{"$f":"IFERROR(VLOOKUP(PresençasEmJaneiro[[#This Row],[ID de Estudante]],ListaDeAlunos[],18,FALSE),\"\")","v":""},{"$nulls":31},{"$f":"COUNTIF(PresençasEmJaneiro[[#This Row],[1]:[31]],Código1)","v":0},{"$f":"COUNTIF(PresençasEmJaneiro[[#This Row],[1]:[31]],Código2)","v":0},{"$f":"COUNTIF(PresençasEmJaneiro[[#This Row],[1]:[31]],Código3)","v":0},{"$f":"COUNTIF(PresençasEmJaneiro[[#This Row],[1]:[31]],Código4)","v":0},{"$f":"SUM(PresençasEmJaneiro[[#This Row],[E]:[U]])","v":0}]
[null,null,{"$f":"IFERROR(VLOOKUP(PresençasEmJaneiro[[#This Row],[ID de Estudante]],ListaDeAlunos[],18,FALSE),\"\")","v":""},{"$nulls":31},{"$f":"COUNTIF(PresençasEmJaneiro[[#This Row],[1]:[31]],Código1)","v":0},{"$f":"COUNTIF(PresençasEmJaneiro[[#This Row],[1]:[31]],Código2)","v":0},{"$f":"COUNTIF(PresençasEmJaneiro[[#This Row],[1]:[31]],Código3)","v":0},{"$f":"COUNTIF(PresençasEmJaneiro[[#This Row],[1]:[31]],Código4)","v":0},{"$f":"SUM(PresençasEmJaneiro[[#This Row],[E]:[U]])","v":0}]
[null,null,{"$f":"IFERROR(VLOOKUP(PresençasEmJaneiro[[#This Row],[ID de Estudante]],ListaDeAlunos[],18,FALSE),\"\")","v":""},{"$nulls":31},{"$f":"COUNTIF(PresençasEmJaneiro[[#This Row],[1]:[31]],Código1)","v":0},{"$f":"COUNTIF(PresençasEmJaneiro[[#This Row],[1]:[31]],Código2)","v":0},{"$f":"COUNTIF(PresençasEmJaneiro[[#This Row],[1]:[31]],Código3)","v":0},{"$f":"COUNTIF(PresençasEmJaneiro[[#This Row],[1]:[31]],Código4)","v":0},{"$f":"SUM(PresençasEmJaneiro[[#This Row],[E]:[U]])","v":0}]
[null,null,"Total de dias de ausência",{"$f":"COUNTIF(PresençasEmJaneiro[1],\"U\")+COUNTIF(PresençasEmJaneiro[1],\"E\")","v":0},{"$f":"COUNTIF(PresençasEmJaneiro[2],\"U\")+COUNTIF(PresençasEmJaneiro[2],\"E\")","v":0},{"$f":"COUNTIF(PresençasEmJaneiro[3],\"U\")+COUNTIF(PresençasEmJaneiro[3],\"E\")","v":0},{"$f":"COUNTIF(PresençasEmJaneiro[4],\"U\")+COUNTIF(PresençasEmJaneiro[4],\"E\")","v":0},{"$f":"COUNTIF(PresençasEmJaneiro[5],\"U\")+COUNTIF(PresençasEmJaneiro[5],\"E\")","v":0},{"$f":"COUNTIF(PresençasEmJaneiro[6],\"U\")+COUNTIF(PresençasEmJaneiro[6],\"E\")","v":0},{"$f":"COUNTIF(PresençasEmJaneiro[7],\"U\")+COUNTIF(PresençasEmJaneiro[7],\"E\")","v":0},{"$f":"COUNTIF(PresençasEmJaneiro[8],\"U\")+COUNTIF(PresençasEmJaneiro[8],\"E\")","v":0},{"$f":"COUNTIF(PresençasEmJaneiro[9],\"U\")+COUNTIF(PresençasEmJaneiro[9],\"E\")","v":0},{"$f":"COUNTIF(PresençasEmJaneiro[10],\"U\")+COUNTIF(PresençasEmJaneiro[10],\"E\")","v":0},{"$f":"COUNTIF(PresençasEmJaneiro[11],\"U\")+COUNTIF(PresençasEmJaneiro[11],\"E\")","v":0},{"$f":"COUNTIF(PresençasEmJaneiro[12],\"U\")+COUNTIF(PresençasEmJaneiro[12],\"E\")","v":0},{"$f":"COUNTIF(PresençasEmJaneiro[13],\"U\")+COUNTIF(PresençasEmJaneiro[13],\"E\")","v":0},{"$f":"COUNTIF(PresençasEmJaneiro[14],\"U\")+COUNTIF(PresençasEmJaneiro[14],\"E\")","v":0},{"$f":"COUNTIF(PresençasEmJaneiro[15],\"U\")+COUNTIF(PresençasEmJaneiro[15],\"E\")","v":0},{"$f":"COUNTIF(PresençasEmJaneiro[16],\"U\")+COUNTIF(PresençasEmJaneiro[16],\"E\")","v":0},{"$f":"COUNTIF(PresençasEmJaneiro[17],\"U\")+COUNTIF(PresençasEmJaneiro[17],\"E\")","v":0},{"$f":"COUNTIF(PresençasEmJaneiro[18],\"U\")+COUNTIF(PresençasEmJaneiro[18],\"E\")","v":0},{"$f":"COUNTIF(PresençasEmJaneiro[19],\"U\")+COUNTIF(PresençasEmJaneiro[19],\"E\")","v":0},{"$f":"COUNTIF(PresençasEmJaneiro[20],\"U\")+COUNTIF(PresençasEmJaneiro[20],\"E\")","v":0},{"$f":"COUNTIF(PresençasEmJaneiro[21],\"U\")+COUNTIF(PresençasEmJaneiro[21],\"E\")","v":0},{"$f":"COUNTIF(PresençasEmJaneiro[22],\"U\")+COUNTIF(PresençasEmJaneiro[22],\"E\")","v":0},{"$f":"COUNTIF(PresençasEmJaneiro[23],\"U\")+COUNTIF(PresençasEmJaneiro[23],\"E\")","v":0},{"$f":"COUNTIF(PresençasEmJaneiro[24],\"U\")+COUNTIF(PresençasEmJaneiro[24],\"E\")","v":0},{"$f":"COUNTIF(PresençasEmJaneiro[25],\"U\")+COUNTIF(PresençasEmJaneiro[25],\"E\")","v":0},{"$f":"COUNTIF(PresençasEmJaneiro[26],\"U\")+COUNTIF(PresençasEmJaneiro[26],\"E\")","v":0},{"$f":"COUNTIF(PresençasEmJaneiro[27],\"U\")+COUNTIF(PresençasEmJaneiro[27],\"E\")","v":0},{"$f":"COUNTIF(PresençasEmJaneiro[28],\"U\")+COUNTIF(PresençasEmJaneiro[28],\"E\")","v":0},{"$f":"COUNTIF(PresençasEmJaneiro[29],\"U\")+COUNTIF(PresençasEmJaneiro[29],\"E\")","v":0},null,null,{"$f":"SUBTOTAL(109,PresençasEmJaneiro[T])","v":0},{"$f":"SUBTOTAL(109,PresençasEmJaneiro[E])","v":0},{"$f":"SUBTOTAL(109,PresençasEmJaneiro[U])","v":0},{"$f":"SUBTOTAL(109,PresençasEmJaneiro[P])","v":0},{"$f":"SUBTOTAL(109,PresençasEmJaneiro[Dias de Ausência])","v":0}]

{"sheet":"fevereiro","index":8,"n_rows":12,"n_cols":39,"rows_kept":12,"merged":[[4,34,4,38]]}
["RELATÓRIO DE PRESENÇAS DOS ESTUDANTES",{"$nulls":36},"Início do Ano Letivo:",{"$f":"CalendárioAnual","v":2012}]
[]
[null,null,{"$f":"TextoColorKey","v":"CHAVE DE CORES "},{"$f":"Código1","v":"T"},{"$f":"Código1Texto","v":"Atrasado"},null,null,{"$f":"Código2","v":"E"},{"$f":"Código2Texto","v":"Justificado"},null,null,{"$f":"Código3","v":"U"},{"$f":"Código3Texto","v":"Não justificado"},null,null,{"$f":"Código4","v":"P"},{"$f":"Código4Texto","v":"Presente"},null,null,{"$f":"Código5","v":"N"},{"$f":"Código5Texto","v":"Não há Escola"}]
[]
[null,{"$f":"DATE(CalendárioAnual+1,2,1)","v":"2013-02-01"},null,{"$f":"TEXT(WEEKDAY(DATE(CalendárioAnual+1,2,1),1),\"ddd\")","v":"sex"},{"$f":"TEXT(WEEKDAY(DATE(CalendárioAnual+1,2,2),1),\"ddd\")","v":"sáb"},{"$f":"TEXT(WEEKDAY(DATE(CalendárioAnual+1,2,3),1),\"ddd\")","v":"dom"},{"$f":"TEXT(WEEKDAY(DATE(CalendárioAnual+1,2,4),1),\"ddd\")","v":"seg"},{"$f":"TEXT(WEEKDAY(DATE(CalendárioAnual+1,2,5),1),\"ddd\")","v":"ter"},{"$f":"TEXT(WEEKDAY(DATE(CalendárioAnual+1,2,6),1),\"ddd\")","v":"qua"},{"$f":"TEXT(WEEKDAY(DATE(CalendárioAnual+1,2,7),1),\"ddd\")","v":"qui"},{"$f":"TEXT(WEEKDAY(DATE(CalendárioAnual+1,2,8),1),\"ddd\")","v":"sex"},{"$f":"TEXT(WEEKDAY(DATE(CalendárioAnual+1,2,9),1),\"ddd\")","v":"sáb"},{"$f":"TEXT(WEEKDAY(DATE(CalendárioAnual+1,2,10),1),\"ddd\")","v":"dom"},{"$f":"TEXT(WEEKDAY(DATE(CalendárioAnual+1,2,11),1),\"ddd\")","v":"seg"},{"$f":"TEXT(WEEKDAY(DATE(CalendárioAnual+1,2,12),1),\"ddd\")","v":"ter"},{"$f":"TEXT(WEEKDAY(DATE(CalendárioAnual+1,2,13),1),\"ddd\")","v":"qua"},{"$f":"TEXT(WEEKDAY(DATE(CalendárioAnual+1,2,14),1),\"ddd\")","v":"qui"},{"$f":"TEXT(WEEKDAY(DATE(CalendárioAnual+1,2,15),1),\"ddd\")","v":"sex"},{"$f":"TEXT(WEEKDAY(DATE(CalendárioAnual+1,2,16),1),\"ddd\")","v":"sáb"},{"$f":"TEXT(WEEKDAY(DATE(CalendárioAnual+1,2,17),1),\"ddd\")","v":"dom"},{"$f":"TEXT(WEEKDAY(DATE(CalendárioAnual+1,2,18),1),\"ddd\")","v":"seg"},{"$f":"TEXT(WEEKDAY(DATE(CalendárioAnual+1,2,19),1),\"ddd\")","v":"ter"},{"$f":"TEXT(WEEKDAY(DATE(CalendárioAnual+1,2,20),1),\"ddd\")","v":"qua"},{"$f":"TEXT(WEEKDAY(DATE(CalendárioAnual+1,2,21),1),\"ddd\")","v":"qui"},{"$f":"TEXT(WEEKDAY(DATE(CalendárioAnual+1,2,22),1),\"ddd\")","v":"sex"},{"$f":"TEXT(WEEKDAY(DATE(CalendárioAnual+1,2,23),1),\"ddd\")","v":"sáb"},{"$f":"TEXT(WEEKDAY(DATE(CalendárioAnual+1,2,24),1),\"ddd\")","v":"dom"},{"$f":"TEXT(WEEKDAY(DATE(CalendárioAnual+1,2,25),1),\"ddd\")","v":"seg"},{"$f":"TEXT(WEEKDAY(DATE(CalendárioAnual+1,2,26),1),\"ddd\")","v":"ter"},{"$f":"TEXT(WEEKDAY(DATE(CalendárioAnual+1,2,27),1),\"ddd\")","v":"qua"},{"$f":"TEXT(WEEKDAY(DATE(CalendárioAnual+1,2,28),1),\"ddd\")","v":"qui"},{"$f":"TEXT(WEEKDAY(DATE(CalendárioAnual+1,2,29),1),\"ddd\")","v":"sex"},null,null,"Totais"]
[null,"ID de Estudante","Nome do Estudante","1","2","3","4","5","6","7","8","9","10","11","12","13","14","15","16","17","18","19","20","21","22","23","24","25","26","27","28","29","30","31","T","E","U","P","Dias de Ausência"]
[null,null,{"$f":"IFERROR(VLOOKUP(PresençasEmFevereiro[[#This Row],[ID de Estudante]],ListaDeAlunos[],18,FALSE),\"\")","v":""},{"$nulls":31},{"$f":"COUNTIF(PresençasEmFevereiro[[#This Row],[1]:[31]],Código1)","v":0},{"$f":"COUNTIF(PresençasEmFevereiro[[#This Row],[1]:[31]],Código2)","v":0},{"$f":"COUNTIF(PresençasEmFevereiro[[#This Row],[1]:[31]],Código3)","v":0},{"$f":"COUNTIF(PresençasEmFevereiro[[#This Row],[1]:[31]],Código4)","v":0},{"$f":"SUM(PresençasEmFevereiro[[#This Row],[E]:[U]])","v":0}]
[null,null,{"$f":"IFERROR(VLOOKUP(PresençasEmFevereiro[[#This Row],[ID de Estudante]],ListaDeAlunos[],18,FALSE),\"\")","v":""},{"$nulls":31},{"$f":"COUNTIF(PresençasEmFevereiro[[#This Row],[1]:[31]],Código1)","v":0},{"$f":"COUNTIF(PresençasEmFevereiro[[#This Row],[1]:[31]],Código2)","v":0},{"$f":"COUNTIF(PresençasEmFevereiro[[#This Row],[1]:[31]],Código3)","v":0},{"$f":"COUNTIF(PresençasEmFevereiro[[#This Row],[1]:[31]],Código4)","v":0},{"$f":"SUM(PresençasEmFevereiro[[#This Row],[E]:[U]])","v":0}]
[null,null,{"$f":"IFERROR(VLOOKUP(PresençasEmFevereiro[[#This Row],[ID de Estudante]],ListaDeAlunos[],18,FALSE),\"\")","v":""},{"$nulls":31},{"$f":"COUNTIF(PresençasEmFevereiro[[#This Row],[1]:[31]],Código1)","v":0},{"$f":"COUNTIF(PresençasEmFevereiro[[#This Row],[1]:[31]],Código2)","v":0},{"$f":"COUNTIF(PresençasEmFevereiro[[#This Row],[1]:[31]],Código3)","v":0},{"$f":"COUNTIF(PresençasEmFevereiro[[#This Row],[1]:[31]],Código4)","v":0},{"$f":"SUM(PresençasEmFevereiro[[#This Row],[E]:[U]])","v":0}]
[null,null,{"$f":"IFERROR(VLOOKUP(PresençasEmFevereiro[[#This Row],[ID de Estudante]],ListaDeAlunos[],18,FALSE),\"\")","v":""},{"$nulls":31},{"$f":"COUNTIF(PresençasEmFevereiro[[#This Row],[1]:[31]],Código1)","v":0},{"$f":"COUNTIF(PresençasEmFevereiro[[#This Row],[1]:[31]],Código2)","v":0},{"$f":"COUNTIF(PresençasEmFevereiro[[#This Row],[1]:[31]],Código3)","v":0},{"$f":"COUNTIF(PresençasEmFevereiro[[#This Row],[1]:[31]],Código4)","v":0},{"$f":"SUM(PresençasEmFevereiro[[#This Row],[E]:[U]])","v":0}]
[null,null,{"$f":"IFERROR(VLOOKUP(PresençasEmFevereiro[[#This Row],[ID de Estudante]],ListaDeAlunos[],18,FALSE),\"\")","v":""},{"$nulls":31},{"$f":"COUNTIF(PresençasEmFevereiro[[#This Row],[1]:[31]],Código1)","v":0},{"$f":"COUNTIF(PresençasEmFevereiro[[#This Row],[1]:[31]],Código2)","v":0},{"$f":"COUNTIF(PresençasEmFevereiro[[#This Row],[1]:[31]],Código3)","v":0},{"$f":"COUNTIF(PresençasEmFevereiro[[#This Row],[1]:[31]],Código4)","v":0},{"$f":"SUM(PresençasEmFevereiro[[#This Row],[E]:[U]])","v":0}]
[null,null,"Total de dias de ausência",{"$f":"COUNTIF(PresençasEmFevereiro[1],\"U\")+COUNTIF(PresençasEmFevereiro[1],\"E\")","v":0},{"$f":"COUNTIF(PresençasEmFevereiro[2],\"U\")+COUNTIF(PresençasEmFevereiro[2],\"E\")","v":0},{"$f":"COUNTIF(PresençasEmFevereiro[3],\"U\")+COUNTIF(PresençasEmFevereiro[3],\"E\")","v":0},{"$f":"COUNTIF(PresençasEmFevereiro[4],\"U\")+COUNTIF(PresençasEmFevereiro[4],\"E\")","v":0},{"$f":"COUNTIF(PresençasEmFevereiro[5],\"U\")+COUNTIF(PresençasEmFevereiro[5],\"E\")","v":0},{"$f":"COUNTIF(PresençasEmFevereiro[6],\"U\")+COUNTIF(PresençasEmFevereiro[6],\"E\")","v":0},{"$f":"COUNTIF(PresençasEmFevereiro[7],\"U\")+COUNTIF(PresençasEmFevereiro[7],\"E\")","v":0},{"$f":"COUNTIF(PresençasEmFevereiro[8],\"U\")+COUNTIF(PresençasEmFevereiro[8],\"E\")","v":0},{"$f":"COUNTIF(PresençasEmFevereiro[9],\"U\")+COUNTIF(PresençasEmFevereiro[9],\"E\")","v":0},{"$f":"COUNTIF(PresençasEmFevereiro[10],\"U\")+COUNTIF(PresençasEmFevereiro[10],\"E\")","v":0},{"$f":"COUNTIF(PresençasEmFevereiro[11],\"U\")+COUNTIF(PresençasEmFevereiro[11],\"E\")","v":0},{"$f":"COUNTIF(PresençasEmFevereiro[12],\"U\")+COUNTIF(PresençasEmFevereiro[12],\"E\")","v":0},{"$f":"COUNTIF(PresençasEmFevereiro[13],\"U\")+COUNTIF(PresençasEmFevereiro[13],\"E\")","v":0},{"$f":"COUNTIF(PresençasEmFevereiro[14],\"U\")+COUNTIF(PresençasEmFevereiro[14],\"E\")","v":0},{"$f":"COUNTIF(PresençasEmFevereiro[15],\"U\")+COUNTIF(PresençasEmFevereiro[15],\"E\")","v":0},{"$f":"COUNTIF(PresençasEmFevereiro[16],\"U\")+COUNTIF(PresençasEmFevereiro[16],\"E\")","v":0},{"$f":"COUNTIF(PresençasEmFevereiro[17],\"U\")+COUNTIF(PresençasEmFevereiro[17],\"E\")","v":0},{"$f":"COUNTIF(PresençasEmFevereiro[18],\"U\")+COUNTIF(PresençasEmFevereiro[18],\"E\")","v":0},{"$f":"COUNTIF(PresençasEmFevereiro[19],\"U\")+COUNTIF(PresençasEmFevereiro[19],\"E\")","v":0},{"$f":"COUNTIF(PresençasEmFevereiro[20],\"U\")+COUNTIF(PresençasEmFevereiro[20],\"E\")","v":0},{"$f":"COUNTIF(PresençasEmFevereiro[21],\"U\")+COUNTIF(PresençasEmFevereiro[21],\"E\")","v":0},{"$f":"COUNTIF(PresençasEmFevereiro[22],\"U\")+COUNTIF(PresençasEmFevereiro[22],\"E\")","v":0},{"$f":"COUNTIF(PresençasEmFevereiro[23],\"U\")+COUNTIF(PresençasEmFevereiro[23],\"E\")","v":0},{"$f":"COUNTIF(PresençasEmFevereiro[24],\"U\")+COUNTIF(PresençasEmFevereiro[24],\"E\")","v":0},{"$f":"COUNTIF(PresençasEmFevereiro[25],\"U\")+COUNTIF(PresençasEmFevereiro[25],\"E\")","v":0},{"$f":"COUNTIF(PresençasEmFevereiro[26],\"U\")+COUNTIF(PresençasEmFevereiro[26],\"E\")","v":0},{"$f":"COUNTIF(PresençasEmFevereiro[27],\"U\")+COUNTIF(PresençasEmFevereiro[27],\"E\")","v":0},{"$f":"COUNTIF(PresençasEmFevereiro[28],\"U\")+COUNTIF(PresençasEmFevereiro[28],\"E\")","v":0},{"$f":"COUNTIF(PresençasEmFevereiro[29],\"U\")+COUNTIF(PresençasEmFevereiro[29],\"E\")","v":0},null,null,{"$f":"SUBTOTAL(109,PresençasEmFevereiro[T])","v":0},{"$f":"SUBTOTAL(109,PresençasEmFevereiro[E])","v":0},{"$f":"SUBTOTAL(109,PresençasEmFevereiro[U])","v":0},{"$f":"SUBTOTAL(109,PresençasEmFevereiro[P])","v":0},{"$f":"SUBTOTAL(109,PresençasEmFevereiro[Dias de Ausência])","v":0}]

{"sheet":"março","index":9,"n_rows":12,"n_cols":39,"rows_kept":12,"merged":[[4,34,4,38]]}
["RELATÓRIO DE PRESENÇAS DOS ESTUDANTES",{"$nulls":36},"Início do Ano Letivo:",{"$f":"CalendárioAnual","v":2012}]
[]
[null,null,{"$f":"TextoColorKey","v":"CHAVE DE CORES "},{"$f":"Código1","v":"T"},{"$f":"Código1Texto","v":"Atrasado"},null,null,{"$f":"Código2","v":"E"},{"$f":"Código2Texto","v":"Justificado"},null,null,{"$f":"Código3","v":"U"},{"$f":"Código3Texto","v":"Não justificado"},null,null,{"$f":"Código4","v":"P"},{"$f":"Código4Texto","v":"Presente"},null,null,{"$f":"Código5","v":"N"},{"$f":"Código5Texto","v":"Não há Escola"}]
[]
[null,{"$f":"DATE(CalendárioAnual+1,3,1)","v":"2013-03-01"},null,{"$f":"TEXT(WEEKDAY(DATE(CalendárioAnual+1,3,1),1),\"ddd\")","v":"sex"},{"$f":"TEXT(WEEKDAY(DATE(CalendárioAnual+1,3,2),1),\"ddd\")","v":"sáb"},{"$f":"TEXT(WEEKDAY(DATE(CalendárioAnual+1,3,3),1),\"ddd\")","v":"dom"},{"$f":"TEXT(WEEKDAY(DATE(CalendárioAnual+1,3,4),1),\"ddd\")","v":"seg"},{"$f":"TEXT(WEEKDAY(DATE(CalendárioAnual+1,3,5),1),\"ddd\")","v":"ter"},{"$f":"TEXT(WEEKDAY(DATE(CalendárioAnual+1,3,6),1),\"ddd\")","v":"qua"},{"$f":"TEXT(WEEKDAY(DATE(CalendárioAnual+1,3,7),1),\"ddd\")","v":"qui"},{"$f":"TEXT(WEEKDAY(DATE(CalendárioAnual+1,3,8),1),\"ddd\")","v":"sex"},{"$f":"TEXT(WEEKDAY(DATE(CalendárioAnual+1,3,9),1),\"ddd\")","v":"sáb"},{"$f":"TEXT(WEEKDAY(DATE(CalendárioAnual+1,3,10),1),\"ddd\")","v":"dom"},{"$f":"TEXT(WEEKDAY(DATE(CalendárioAnual+1,3,11),1),\"ddd\")","v":"seg"},{"$f":"TEXT(WEEKDAY(DATE(CalendárioAnual+1,3,12),1),\"ddd\")","v":"ter"},{"$f":"TEXT(WEEKDAY(DATE(CalendárioAnual+1,3,13),1),\"ddd\")","v":"qua"},{"$f":"TEXT(WEEKDAY(DATE(CalendárioAnual+1,3,14),1),\"ddd\")","v":"qui"},{"$f":"TEXT(WEEKDAY(DATE(CalendárioAnual+1,3,15),1),\"ddd\")","v":"sex"},{"$f":"TEXT(WEEKDAY(DATE(CalendárioAnual+1,3,16),1),\"ddd\")","v":"sáb"},{"$f":"TEXT(WEEKDAY(DATE(CalendárioAnual+1,3,17),1),\"ddd\")","v":"dom"},{"$f":"TEXT(WEEKDAY(DATE(CalendárioAnual+1,3,18),1),\"ddd\")","v":"seg"},{"$f":"TEXT(WEEKDAY(DATE(CalendárioAnual+1,3,19),1),\"ddd\")","v":"ter"},{"$f":"TEXT(WEEKDAY(DATE(CalendárioAnual+1,3,20),1),\"ddd\")","v":"qua"},{"$f":"TEXT(WEEKDAY(DATE(CalendárioAnual+1,3,21),1),\"ddd\")","v":"qui"},{"$f":"TEXT(WEEKDAY(DATE(CalendárioAnual+1,3,22),1),\"ddd\")","v":"sex"},{"$f":"TEXT(WEEKDAY(DATE(CalendárioAnual+1,3,23),1),\"ddd\")","v":"sáb"},{"$f":"TEXT(WEEKDAY(DATE(CalendárioAnual+1,3,24),1),\"ddd\")","v":"dom"},{"$f":"TEXT(WEEKDAY(DATE(CalendárioAnual+1,3,25),1),\"ddd\")","v":"seg"},{"$f":"TEXT(WEEKDAY(DATE(CalendárioAnual+1,3,26),1),\"ddd\")","v":"ter"},{"$f":"TEXT(WEEKDAY(DATE(CalendárioAnual+1,3,27),1),\"ddd\")","v":"qua"},{"$f":"TEXT(WEEKDAY(DATE(CalendárioAnual+1,3,28),1),\"ddd\")","v":"qui"},{"$f":"TEXT(WEEKDAY(DATE(CalendárioAnual+1,3,29),1),\"ddd\")","v":"sex"},{"$f":"TEXT(WEEKDAY(DATE(CalendárioAnual+1,3,30),1),\"ddd\")","v":"sáb"},{"$f":"TEXT(WEEKDAY(DATE(CalendárioAnual+1,3,31),1),\"ddd\")","v":"dom"},"Totais"]
[null,"ID de Estudante","Nome do Estudante","1","2","3","4","5","6","7","8","9","10","11","12","13","14","15","16","17","18","19","20","21","22","23","24","25","26","27","28","29","30","31","T","E","U","P","Dias de Ausência"]
[null,null,{"$f":"IFERROR(VLOOKUP(PresençasEmMarço[[#This Row],[ID de Estudante]],ListaDeAlunos[],18,FALSE),\"\")","v":""},{"$nulls":31},{"$f":"COUNTIF(PresençasEmMarço[[#This Row],[1]:[31]],Código1)","v":0},{"$f":"COUNTIF(PresençasEmMarço[[#This Row],[1]:[31]],Código2)","v":0},{"$f":"COUNTIF(PresençasEmMarço[[#This Row],[1]:[31]],Código3)","v":0},{"$f":"COUNTIF(PresençasEmMarço[[#This Row],[1]:[31]],Código4)","v":0},{"$f":"SUM(PresençasEmMarço[[#This Row],[E]:[U]])","v":0}]
[null,null,{"$f":"IFERROR(VLOOKUP(PresençasEmMarço[[#This Row],[ID de Estudante]],ListaDeAlunos[],18,FALSE),\"\")","v":""},{"$nulls":31},{"$f":"COUNTIF(PresençasEmMarço[[#This Row],[1]:[31]],Código1)","v":0},{"$f":"COUNTIF(PresençasEmMarço[[#This Row],[1]:[31]],Código2)","v":0},{"$f":"COUNTIF(PresençasEmMarço[[#This Row],[1]:[31]],Código3)","v":0},{"$f":"COUNTIF(PresençasEmMarço[[#This Row],[1]:[31]],Código4)","v":0},{"$f":"SUM(PresençasEmMarço[[#This Row],[E]:[U]])","v":0}]
[null,null,{"$f":"IFERROR(VLOOKUP(PresençasEmMarço[[#This Row],[ID de Estudante]],ListaDeAlunos[],18,FALSE),\"\")","v":""},{"$nulls":31},{"$f":"COUNTIF(PresençasEmMarço[[#This Row],[1]:[31]],Código1)","v":0},{"$f":"COUNTIF(PresençasEmMarço[[#This Row],[1]:[31]],Código2)","v":0},{"$f":"COUNTIF(PresençasEmMarço[[#This Row],[1]:[31]],Código3)","v":0},{"$f":"COUNTIF(PresençasEmMarço[[#This Row],[1]:[31]],Código4)","v":0},{"$f":"SUM(PresençasEmMarço[[#This Row],[E]:[U]])","v":0}]
[null,null,{"$f":"IFERROR(VLOOKUP(PresençasEmMarço[[#This Row],[ID de Estudante]],ListaDeAlunos[],18,FALSE),\"\")","v":""},{"$nulls":31},{"$f":"COUNTIF(PresençasEmMarço[[#This Row],[1]:[31]],Código1)","v":0},{"$f":"COUNTIF(PresençasEmMarço[[#This Row],[1]:[31]],Código2)","v":0},{"$f":"COUNTIF(PresençasEmMarço[[#This Row],[1]:[31]],Código3)","v":0},{"$f":"COUNTIF(PresençasEmMarço[[#This Row],[1]:[31]],Código4)","v":0},{"$f":"SUM(PresençasEmMarço[[#This Row],[E]:[U]])","v":0}]
[null,null,{"$f":"IFERROR(VLOOKUP(PresençasEmMarço[[#This Row],[ID de Estudante]],ListaDeAlunos[],18,FALSE),\"\")","v":""},{"$nulls":31},{"$f":"COUNTIF(PresençasEmMarço[[#This Row],[1]:[31]],Código1)","v":0},{"$f":"COUNTIF(PresençasEmMarço[[#This Row],[1]:[31]],Código2)","v":0},{"$f":"COUNTIF(PresençasEmMarço[[#This Row],[1]:[31]],Código3)","v":0},{"$f":"COUNTIF(PresençasEmMarço[[#This Row],[1]:[31]],Código4)","v":0},{"$f":"SUM(PresençasEmMarço[[#This Row],[E]:[U]])","v":0}]
[null,null,"Total de dias de ausência",{"$f":"COUNTIF(PresençasEmMarço[1],\"U\")+COUNTIF(PresençasEmMarço[1],\"E\")","v":0},{"$f":"COUNTIF(PresençasEmMarço[2],\"U\")+COUNTIF(PresençasEmMarço[2],\"E\")","v":0},{"$f":"COUNTIF(PresençasEmMarço[3],\"U\")+COUNTIF(PresençasEmMarço[3],\"E\")","v":0},{"$f":"COUNTIF(PresençasEmMarço[4],\"U\")+COUNTIF(PresençasEmMarço[4],\"E\")","v":0},{"$f":"COUNTIF(PresençasEmMarço[5],\"U\")+COUNTIF(PresençasEmMarço[5],\"E\")","v":0},{"$f":"COUNTIF(PresençasEmMarço[6],\"U\")+COUNTIF(PresençasEmMarço[6],\"E\")","v":0},{"$f":"COUNTIF(PresençasEmMarço[7],\"U\")+COUNTIF(PresençasEmMarço[7],\"E\")","v":0},{"$f":"COUNTIF(PresençasEmMarço[8],\"U\")+COUNTIF(PresençasEmMarço[8],\"E\")","v":0},{"$f":"COUNTIF(PresençasEmMarço[9],\"U\")+COUNTIF(PresençasEmMarço[9],\"E\")","v":0},{"$f":"COUNTIF(PresençasEmMarço[10],\"U\")+COUNTIF(PresençasEmMarço[10],\"E\")","v":0},{"$f":"COUNTIF(PresençasEmMarço[11],\"U\")+COUNTIF(PresençasEmMarço[11],\"E\")","v":0},{"$f":"COUNTIF(PresençasEmMarço[12],\"U\")+COUNTIF(PresençasEmMarço[12],\"E\")","v":0},{"$f":"COUNTIF(PresençasEmMarço[13],\"U\")+COUNTIF(PresençasEmMarço[13],\"E\")","v":0},{"$f":"COUNTIF(PresençasEmMarço[14],\"U\")+COUNTIF(PresençasEmMarço[14],\"E\")","v":0},{"$f":"COUNTIF(PresençasEmMarço[15],\"U\")+COUNTIF(PresençasEmMarço[15],\"E\")","v":0},{"$f":"COUNTIF(PresençasEmMarço[16],\"U\")+COUNTIF(PresençasEmMarço[16],\"E\")","v":0},{"$f":"COUNTIF(PresençasEmMarço[17],\"U\")+COUNTIF(PresençasEmMarço[17],\"E\")","v":0},{"$f":"COUNTIF(PresençasEmMarço[18],\"U\")+COUNTIF(PresençasEmMarço[18],\"E\")","v":0},{"$f":"COUNTIF(PresençasEmMarço[19],\"U\")+COUNTIF(PresençasEmMarço[19],\"E\")","v":0},{"$f":"COUNTIF(PresençasEmMarço[20],\"U\")+COUNTIF(PresençasEmMarço[20],\"E\")","v":0},{"$f":"COUNTIF(PresençasEmMarço[21],\"U\")+COUNTIF(PresençasEmMarço[21],\"E\")","v":0},{"$f":"COUNTIF(PresençasEmMarço[22],\"U\")+COUNTIF(PresençasEmMarço[22],\"E\")","v":0},{"$f":"COUNTIF(PresençasEmMarço[23],\"U\")+COUNTIF(PresençasEmMarço[23],\"E\")","v":0},{"$f":"COUNTIF(PresençasEmMarço[24],\"U\")+COUNTIF(PresençasEmMarço[24],\"E\")","v":0},{"$f":"COUNTIF(PresençasEmMarço[25],\"U\")+COUNTIF(PresençasEmMarço[25],\"E\")","v":0},{"$f":"COUNTIF(PresençasEmMarço[26],\"U\")+COUNTIF(PresençasEmMarço[26],\"E\")","v":0},{"$f":"COUNTIF(PresençasEmMarço[27],\"U\")+COUNTIF(PresençasEmMarço[27],\"E\")","v":0},{"$f":"COUNTIF(PresençasEmMarço[28],\"U\")+COUNTIF(PresençasEmMarço[28],\"E\")","v":0},{"$f":"COUNTIF(PresençasEmMarço[29],\"U\")+COUNTIF(PresençasEmMarço[29],\"E\")","v":0},null,null,{"$f":"SUBTOTAL(109,PresençasEmMarço[T])","v":0},{"$f":"SUBTOTAL(109,PresençasEmMarço[E])","v":0},{"$f":"SUBTOTAL(109,PresençasEmMarço[U])","v":0},{"$f":"SUBTOTAL(109,PresençasEmMarço[P])","v":0},{"$f":"SUBTOTAL(109,PresençasEmMarço[Dias de Ausência])","v":0}]

{"sheet":"abril","index":10,"n_rows":12,"n_cols":39,"rows_kept":12,"merged":[[4,34,4,38]]}
["RELATÓRIO DE PRESENÇAS DOS ESTUDANTES",{"$nulls":36},"Início do Ano Letivo:",{"$f":"CalendárioAnual","v":2012}]
[]
[null,null,{"$f":"TextoColorKey","v":"CHAVE DE CORES "},{"$f":"Código1","v":"T"},{"$f":"Código1Texto","v":"Atrasado"},null,null,{"$f":"Código2","v":"E"},{"$f":"Código2Texto","v":"Justificado"},null,null,{"$f":"Código3","v":"U"},{"$f":"Código3Texto","v":"Não justificado"},null,null,{"$f":"Código4","v":"P"},{"$f":"Código4Texto","v":"Presente"},null,null,{"$f":"Código5","v":"N"},{"$f":"Código5Texto","v":"Não há Escola"}]
[]
[null,{"$f":"DATE(CalendárioAnual+1,4,1)","v":"2013-04-01"},null,{"$f":"TEXT(WEEKDAY(DATE(CalendárioAnual+1,4,1),1),\"ddd\")","v":"seg"},{"$f":"TEXT(WEEKDAY(DATE(CalendárioAnual+1,4,2),1),\"ddd\")","v":"ter"},{"$f":"TEXT(WEEKDAY(DATE(CalendárioAnual+1,4,3),1),\"ddd\")","v":"qua"},{"$f":"TEXT(WEEKDAY(DATE(CalendárioAnual+1,4,4),1),\"ddd\")","v":"qui"},{"$f":"TEXT(WEEKDAY(DATE(CalendárioAnual+1,4,5),1),\"ddd\")","v":"sex"},{"$f":"TEXT(WEEKDAY(DATE(CalendárioAnual+1,4,6),1),\"ddd\")","v":"sáb"},{"$f":"TEXT(WEEKDAY(DATE(CalendárioAnual+1,4,7),1),\"ddd\")","v":"dom"},{"$f":"TEXT(WEEKDAY(DATE(CalendárioAnual+1,4,8),1),\"ddd\")","v":"seg"},{"$f":"TEXT(WEEKDAY(DATE(CalendárioAnual+1,4,9),1),\"ddd\")","v":"ter"},{"$f":"TEXT(WEEKDAY(DATE(CalendárioAnual+1,4,10),1),\"ddd\")","v":"qua"},{"$f":"TEXT(WEEKDAY(DATE(CalendárioAnual+1,4,11),1),\"ddd\")","v":"qui"},{"$f":"TEXT(WEEKDAY(DATE(CalendárioAnual+1,4,12),1),\"ddd\")","v":"sex"},{"$f":"TEXT(WEEKDAY(DATE(CalendárioAnual+1,4,13),1),\"ddd\")","v":"sáb"},{"$f":"TEXT(WEEKDAY(DATE(CalendárioAnual+1,4,14),1),\"ddd\")","v":"dom"},{"$f":"TEXT(WEEKDAY(DATE(CalendárioAnual+1,4,15),1),\"ddd\")","v":"seg"},{"$f":"TEXT(WEEKDAY(DATE(CalendárioAnual+1,4,16),1),\"ddd\")","v":"ter"},{"$f":"TEXT(WEEKDAY(DATE(CalendárioAnual+1,4,17),1),\"ddd\")","v":"qua"},{"$f":"TEXT(WEEKDAY(DATE(CalendárioAnual+1,4,18),1),\"ddd\")","v":"qui"},{"$f":"TEXT(WEEKDAY(DATE(CalendárioAnual+1,4,19),1),\"ddd\")","v":"sex"},{"$f":"TEXT(WEEKDAY(DATE(CalendárioAnual+1,4,20),1),\"ddd\")","v":"sáb"},{"$f":"TEXT(WEEKDAY(DATE(CalendárioAnual+1,4,21),1),\"ddd\")","v":"dom"},{"$f":"TEXT(WEEKDAY(DATE(CalendárioAnual+1,4,22),1),\"ddd\")","v":"seg"},{"$f":"TEXT(WEEKDAY(DATE(CalendárioAnual+1,4,23),1),\"ddd\")","v":"ter"},{"$f":"TEXT(WEEKDAY(DATE(CalendárioAnual+1,4,24),1),\"ddd\")","v":"qua"},{"$f":"TEXT(WEEKDAY(DATE(CalendárioAnual+1,4,25),1),\"ddd\")","v":"qui"},{"$f":"TEXT(WEEKDAY(DATE(CalendárioAnual+1,4,26),1),\"ddd\")","v":"sex"},{"$f":"TEXT(WEEKDAY(DATE(CalendárioAnual+1,4,27),1),\"ddd\")","v":"sáb"},{"$f":"TEXT(WEEKDAY(DATE(CalendárioAnual+1,4,28),1),\"ddd\")","v":"dom"},{"$f":"TEXT(WEEKDAY(DATE(CalendárioAnual+1,4,29),1),\"ddd\")","v":"seg"},{"$f":"TEXT(WEEKDAY(DATE(CalendárioAnual+1,4,30),1),\"ddd\")","v":"ter"},null,"Totais"]
[null,"ID de Estudante","Nome do Estudante","1","2","3","4","5","6","7","8","9","10","11","12","13","14","15","16","17","18","19","20","21","22","23","24","25","26","27","28","29","30"," ","T","E","U","P","Dias de Ausência"]
[null,null,{"$f":"IFERROR(VLOOKUP(PresençasEmAbril[[#This Row],[ID de Estudante]],ListaDeAlunos[],18,FALSE),\"\")","v":""},{"$nulls":31},{"$f":"COUNTIF(PresençasEmAbril[[#This Row],[1]:[ ]],Código1)","v":0},{"$f":"COUNTIF(PresençasEmAbril[[#This Row],[1]:[ ]],Código2)","v":0},{"$f":"COUNTIF(PresençasEmAbril[[#This Row],[1]:[ ]],Código3)","v":0},{"$f":"COUNTIF(PresençasEmAbril[[#This Row],[1]:[ ]],Código4)","v":0},{"$f":"SUM(PresençasEmAbril[[#This Row],[E]:[U]])","v":0}]
[null,null,{"$f":"IFERROR(VLOOKUP(PresençasEmAbril[[#This Row],[ID de Estudante]],ListaDeAlunos[],18,FALSE),\"\")","v":""},{"$nulls":31},{"$f":"COUNTIF(PresençasEmAbril[[#This Row],[1]:[ ]],Código1)","v":0},{"$f":"COUNTIF(PresençasEmAbril[[#This Row],[1]:[ ]],Código2)","v":0},{"$f":"COUNTIF(PresençasEmAbril[[#This Row],[1]:[ ]],Código3)","v":0},{"$f":"COUNTIF(PresençasEmAbril[[#This Row],[1]:[ ]],Código4)","v":0},{"$f":"SUM(PresençasEmAbril[[#This Row],[E]:[U]])","v":0}]
[null,null,{"$f":"IFERROR(VLOOKUP(PresençasEmAbril[[#This Row],[ID de Estudante]],ListaDeAlunos[],18,FALSE),\"\")","v":""},{"$nulls":31},{"$f":"COUNTIF(PresençasEmAbril[[#This Row],[1]:[ ]],Código1)","v":0},{"$f":"COUNTIF(PresençasEmAbril[[#This Row],[1]:[ ]],Código2)","v":0},{"$f":"COUNTIF(PresençasEmAbril[[#This Row],[1]:[ ]],Código3)","v":0},{"$f":"COUNTIF(PresençasEmAbril[[#This Row],[1]:[ ]],Código4)","v":0},{"$f":"SUM(PresençasEmAbril[[#This Row],[E]:[U]])","v":0}]
[null,null,{"$f":"IFERROR(VLOOKUP(PresençasEmAbril[[#This Row],[ID de Estudante]],ListaDeAlunos[],18,FALSE),\"\")","v":""},{"$nulls":31},{"$f":"COUNTIF(PresençasEmAbril[[#This Row],[1]:[ ]],Código1)","v":0},{"$f":"COUNTIF(PresençasEmAbril[[#This Row],[1]:[ ]],Código2)","v":0},{"$f":"COUNTIF(PresençasEmAbril[[#This Row],[1]:[ ]],Código3)","v":0},{"$f":"COUNTIF(PresençasEmAbril[[#This Row],[1]:[ ]],Código4)","v":0},{"$f":"SUM(PresençasEmAbril[[#This Row],[E]:[U]])","v":0}]
[null,null,{"$f":"IFERROR(VLOOKUP(PresençasEmAbril[[#This Row],[ID de Estudante]],ListaDeAlunos[],18,FALSE),\"\")","v":""},{"$nulls":31},{"$f":"COUNTIF(PresençasEmAbril[[#This Row],[1]:[ ]],Código1)","v":0},{"$f":"COUNTIF(PresençasEmAbril[[#This Row],[1]:[ ]],Código2)","v":0},{"$f":"COUNTIF(PresençasEmAbril[[#This Row],[1]:[ ]],Código3)","v":0},{"$f":"COUNTIF(PresençasEmAbril[[#This Row],[1]:[ ]],Código4)","v":0},{"$f":"SUM(PresençasEmAbril[[#This Row],[E]:[U]])","v":0}]
[null,null,"Total de dias de ausência",{"$f":"COUNTIF(PresençasEmAbril[1],\"U\")+COUNTIF(PresençasEmAbril[1],\"E\")","v":0},{"$f":"COUNTIF(PresençasEmAbril[2],\"U\")+COUNTIF(PresençasEmAbril[2],\"E\")","v":0},{"$f":"COUNTIF(PresençasEmAbril[3],\"U\")+COUNTIF(PresençasEmAbril[3],\"E\")","v":0},{"$f":"COUNTIF(PresençasEmAbril[4],\"U\")+COUNTIF(PresençasEmAbril[4],\"E\")","v":0},{"$f":"COUNTIF(PresençasEmAbril[5],\"U\")+COUNTIF(PresençasEmAbril[5],\"E\")","v":0},{"$f":"COUNTIF(PresençasEmAbril[6],\"U\")+COUNTIF(PresençasEmAbril[6],\"E\")","v":0},{"$f":"COUNTIF(PresençasEmAbril[7],\"U\")+COUNTIF(PresençasEmAbril[7],\"E\")","v":0},{"$f":"COUNTIF(PresençasEmAbril[8],\"U\")+COUNTIF(PresençasEmAbril[8],\"E\")","v":0},{"$f":"COUNTIF(PresençasEmAbril[9],\"U\")+COUNTIF(PresençasEmAbril[9],\"E\")","v":0},{"$f":"COUNTIF(PresençasEmAbril[10],\"U\")+COUNTIF(PresençasEmAbril[10],\"E\")","v":0},{"$f":"COUNTIF(PresençasEmAbril[11],\"U\")+COUNTIF(PresençasEmAbril[11],\"E\")","v":0},{"$f":"COUNTIF(PresençasEmAbril[12],\"U\")+COUNTIF(PresençasEmAbril[12],\"E\")","v":0},{"$f":"COUNTIF(PresençasEmAbril[13],\"U\")+COUNTIF(PresençasEmAbril[13],\"E\")","v":0},{"$f":"COUNTIF(PresençasEmAbril[14],\"U\")+COUNTIF(PresençasEmAbril[14],\"E\")","v":0},{"$f":"COUNTIF(PresençasEmAbril[15],\"U\")+COUNTIF(PresençasEmAbril[15],\"E\")","v":0},{"$f":"COUNTIF(PresençasEmAbril[16],\"U\")+COUNTIF(PresençasEmAbril[16],\"E\")","v":0},{"$f":"COUNTIF(PresençasEmAbril[17],\"U\")+COUNTIF(PresençasEmAbril[17],\"E\")","v":0},{"$f":"COUNTIF(PresençasEmAbril[18],\"U\")+COUNTIF(PresençasEmAbril[18],\"E\")","v":0},{"$f":"COUNTIF(PresençasEmAbril[19],\"U\")+COUNTIF(PresençasEmAbril[19],\"E\")","v":0},{"$f":"COUNTIF(PresençasEmAbril[20],\"U\")+COUNTIF(PresençasEmAbril[20],\"E\")","v":0},{"$f":"COUNTIF(PresençasEmAbril[21],\"U\")+COUNTIF(PresençasEmAbril[21],\"E\")","v":0},{"$f":"COUNTIF(PresençasEmAbril[22],\"U\")+COUNTIF(PresençasEmAbril[22],\"E\")","v":0},{"$f":"COUNTIF(PresençasEmAbril[23],\"U\")+COUNTIF(PresençasEmAbril[23],\"E\")","v":0},{"$f":"COUNTIF(PresençasEmAbril[24],\"U\")+COUNTIF(PresençasEmAbril[24],\"E\")","v":0},{"$f":"COUNTIF(PresençasEmAbril[25],\"U\")+COUNTIF(PresençasEmAbril[25],\"E\")","v":0},{"$f":"COUNTIF(PresençasEmAbril[26],\"U\")+COUNTIF(PresençasEmAbril[26],\"E\")","v":0},{"$f":"COUNTIF(PresençasEmAbril[27],\"U\")+COUNTIF(PresençasEmAbril[27],\"E\")","v":0},{"$f":"COUNTIF(PresençasEmAbril[28],\"U\")+COUNTIF(PresençasEmAbril[28],\"E\")","v":0},{"$f":"COUNTIF(PresençasEmAbril[29],\"U\")+COUNTIF(PresençasEmAbril[29],\"E\")","v":0},null,null,{"$f":"SUBTOTAL(109,PresençasEmAbril[T])","v":0},{"$f":"SUBTOTAL(109,PresençasEmAbril[E])","v":0},{"$f":"SUBTOTAL(109,PresençasEmAbril[U])","v":0},{"$f":"SUBTOTAL(109,PresençasEmAbril[P])","v":0},{"$f":"SUBTOTAL(109,PresençasEmAbril[Dias de Ausência])","v":0}]

{"sheet":"maio","index":11,"n_rows":12,"n_cols":39,"rows_kept":12,"merged":[[4,34,4,38]]}
["RELATÓRIO DE PRESENÇAS DOS ESTUDANTES",{"$nulls":36},"Início do Ano Letivo:",{"$f":"CalendárioAnual","v":2012}]
[]
[null,null,{"$f":"TextoColorKey","v":"CHAVE DE CORES "},{"$f":"Código1","v":"T"},{"$f":"Código1Texto","v":"Atrasado"},null,null,{"$f":"Código2","v":"E"},{"$f":"Código2Texto","v":"Justificado"},null,null,{"$f":"Código3","v":"U"},{"$f":"Código3Texto","v":"Não justificado"},null,null,{"$f":"Código4","v":"P"},{"$f":"Código4Texto","v":"Presente"},null,null,{"$f":"Código5","v":"N"},{"$f":"Código5Texto","v":"Não há Escola"}]
[]
[null,{"$f":"DATE(CalendárioAnual+1,5,1)","v":"2013-05-01"},null,{"$f":"TEXT(WEEKDAY(DATE(CalendárioAnual+1,5,1),1),\"ddd\")","v":"qua"},{"$f":"TEXT(WEEKDAY(DATE(CalendárioAnual+1,5,2),1),\"ddd\")","v":"qui"},{"$f":"TEXT(WEEKDAY(DATE(CalendárioAnual+1,5,3),1),\"ddd\")","v":"sex"},{"$f":"TEXT(WEEKDAY(DATE(CalendárioAnual+1,5,4),1),\"ddd\")","v":"sáb"},{"$f":"TEXT(WEEKDAY(DATE(CalendárioAnual+1,5,5),1),\"ddd\")","v":"dom"},{"$f":"TEXT(WEEKDAY(DATE(CalendárioAnual+1,5,6),1),\"ddd\")","v":"seg"},{"$f":"TEXT(WEEKDAY(DATE(CalendárioAnual+1,5,7),1),\"ddd\")","v":"ter"},{"$f":"TEXT(WEEKDAY(DATE(CalendárioAnual+1,5,8),1),\"ddd\")","v":"qua"},{"$f":"TEXT(WEEKDAY(DATE(CalendárioAnual+1,5,9),1),\"ddd\")","v":"qui"},{"$f":"TEXT(WEEKDAY(DATE(CalendárioAnual+1,5,10),1),\"ddd\")","v":"sex"},{"$f":"TEXT(WEEKDAY(DATE(CalendárioAnual+1,5,11),1),\"ddd\")","v":"sáb"},{"$f":"TEXT(WEEKDAY(DATE(CalendárioAnual+1,5,12),1),\"ddd\")","v":"dom"},{"$f":"TEXT(WEEKDAY(DATE(CalendárioAnual+1,5,13),1),\"ddd\")","v":"seg"},{"$f":"TEXT(WEEKDAY(DATE(CalendárioAnual+1,5,14),1),\"ddd\")","v":"ter"},{"$f":"TEXT(WEEKDAY(DATE(CalendárioAnual+1,5,15),1),\"ddd\")","v":"qua"},{"$f":"TEXT(WEEKDAY(DATE(CalendárioAnual+1,5,16),1),\"ddd\")","v":"qui"},{"$f":"TEXT(WEEKDAY(DATE(CalendárioAnual+1,5,17),1),\"ddd\")","v":"sex"},{"$f":"TEXT(WEEKDAY(DATE(CalendárioAnual+1,5,18),1),\"ddd\")","v":"sáb"},{"$f":"TEXT(WEEKDAY(DATE(CalendárioAnual+1,5,19),1),\"ddd\")","v":"dom"},{"$f":"TEXT(WEEKDAY(DATE(CalendárioAnual+1,5,20),1),\"ddd\")","v":"seg"},{"$f":"TEXT(WEEKDAY(DATE(CalendárioAnual+1,5,21),1),\"ddd\")","v":"ter"},{"$f":"TEXT(WEEKDAY(DATE(CalendárioAnual+1,5,22),1),\"ddd\")","v":"qua"},{"$f":"TEXT(WEEKDAY(DATE(CalendárioAnual+1,5,23),1),\"ddd\")","v":"qui"},{"$f":"TEXT(WEEKDAY(DATE(CalendárioAnual+1,5,24),1),\"ddd\")","v":"sex"},{"$f":"TEXT(WEEKDAY(DATE(CalendárioAnual+1,5,25),1),\"ddd\")","v":"sáb"},{"$f":"TEXT(WEEKDAY(DATE(CalendárioAnual+1,5,26),1),\"ddd\")","v":"dom"},{"$f":"TEXT(WEEKDAY(DATE(CalendárioAnual+1,5,27),1),\"ddd\")","v":"seg"},{"$f":"TEXT(WEEKDAY(DATE(CalendárioAnual+1,5,28),1),\"ddd\")","v":"ter"},{"$f":"TEXT(WEEKDAY(DATE(CalendárioAnual+1,5,29),1),\"ddd\")","v":"qua"},{"$f":"TEXT(WEEKDAY(DATE(CalendárioAnual+1,5,30),1),\"ddd\")","v":"qui"},{"$f":"TEXT(WEEKDAY(DATE(CalendárioAnual+1,5,31),1),\"ddd\")","v":"sex"},"Totais"]
[null,"ID de Estudante","Nome do Estudante","1","2","3","4","5","6","7","8","9","10","11","12","13","14","15","16","17","18","19","20","21","22","23","24","25","26","27","28","29","30","31","T","E","U","P","Dias de Ausência"]
[null,null,{"$f":"IFERROR(VLOOKUP(PresençasEmMaio[[#This Row],[ID de Estudante]],ListaDeAlunos[],18,FALSE),\"\")","v":""},{"$nulls":31},{"$f":"COUNTIF(PresençasEmMaio[[#This Row],[1]:[31]],Código1)","v":0},{"$f":"COUNTIF(PresençasEmMaio[[#This Row],[1]:[31]],Código2)","v":0},{"$f":"COUNTIF(PresençasEmMaio[[#This Row],[1]:[31]],Código3)","v":0},{"$f":"COUNTIF(PresençasEmMaio[[#This Row],[1]:[31]],Código4)","v":0},{"$f":"SUM(PresençasEmMaio[[#This Row],[E]:[U]])","v":0}]
[null,null,{"$f":"IFERROR(VLOOKUP(PresençasEmMaio[[#This Row],[ID de Estudante]],ListaDeAlunos[],18,FALSE),\"\")","v":""},{"$nulls":31},{"$f":"COUNTIF(PresençasEmMaio[[#This Row],[1]:[31]],Código1)","v":0},{"$f":"COUNTIF(PresençasEmMaio[[#This Row],[1]:[31]],Código2)","v":0},{"$f":"COUNTIF(PresençasEmMaio[[#This Row],[1]:[31]],Código3)","v":0},{"$f":"COUNTIF(PresençasEmMaio[[#This Row],[1]:[31]],Código4)","v":0},{"$f":"SUM(PresençasEmMaio[[#This Row],[E]:[U]])","v":0}]
[null,null,{"$f":"IFERROR(VLOOKUP(PresençasEmMaio[[#This Row],[ID de Estudante]],ListaDeAlunos[],18,FALSE),\"\")","v":""},{"$nulls":31},{"$f":"COUNTIF(PresençasEmMaio[[#This Row],[1]:[31]],Código1)","v":0},{"$f":"COUNTIF(PresençasEmMaio[[#This Row],[1]:[31]],Código2)","v":0},{"$f":"COUNTIF(PresençasEmMaio[[#This Row],[1]:[31]],Código3)","v":0},{"$f":"COUNTIF(PresençasEmMaio[[#This Row],[1]:[31]],Código4)","v":0},{"$f":"SUM(PresençasEmMaio[[#This Row],[E]:[U]])","v":0}]
[null,null,{"$f":"IFERROR(VLOOKUP(PresençasEmMaio[[#This Row],[ID de Estudante]],ListaDeAlunos[],18,FALSE),\"\")","v":""},{"$nulls":31},{"$f":"COUNTIF(PresençasEmMaio[[#This Row],[1]:[31]],Código1)","v":0},{"$f":"COUNTIF(PresençasEmMaio[[#This Row],[1]:[31]],Código2)","v":0},{"$f":"COUNTIF(PresençasEmMaio[[#This Row],[1]:[31]],Código3)","v":0},{"$f":"COUNTIF(PresençasEmMaio[[#This Row],[1]:[31]],Código4)","v":0},{"$f":"SUM(PresençasEmMaio[[#This Row],[E]:[U]])","v":0}]
[null,null,{"$f":"IFERROR(VLOOKUP(PresençasEmMaio[[#This Row],[ID de Estudante]],ListaDeAlunos[],18,FALSE),\"\")","v":""},{"$nulls":31},{"$f":"COUNTIF(PresençasEmMaio[[#This Row],[1]:[31]],Código1)","v":0},{"$f":"COUNTIF(PresençasEmMaio[[#This Row],[1]:[31]],Código2)","v":0},{"$f":"COUNTIF(PresençasEmMaio[[#This Row],[1]:[31]],Código3)","v":0},{"$f":"COUNTIF(PresençasEmMaio[[#This Row],[1]:[31]],Código4)","v":0},{"$f":"SUM(PresençasEmMaio[[#This Row],[E]:[U]])","v":0}]
[null,null,"Total de dias de ausência",{"$f":"COUNTIF(PresençasEmMaio[1],\"U\")+COUNTIF(PresençasEmMaio[1],\"E\")","v":0},{"$f":"COUNTIF(PresençasEmMaio[2],\"U\")+COUNTIF(PresençasEmMaio[2],\"E\")","v":0},{"$f":"COUNTIF(PresençasEmMaio[3],\"U\")+COUNTIF(PresençasEmMaio[3],\"E\")","v":0},{"$f":"COUNTIF(PresençasEmMaio[4],\"U\")+COUNTIF(PresençasEmMaio[4],\"E\")","v":0},{"$f":"COUNTIF(PresençasEmMaio[5],\"U\")+COUNTIF(PresençasEmMaio[5],\"E\")","v":0},{"$f":"COUNTIF(PresençasEmMaio[6],\"U\")+COUNTIF(PresençasEmMaio[6],\"E\")","v":0},{"$f":"COUNTIF(PresençasEmMaio[7],\"U\")+COUNTIF(PresençasEmMaio[7],\"E\")","v":0},{"$f":"COUNTIF(PresençasEmMaio[8],\"U\")+COUNTIF(PresençasEmMaio[8],\"E\")","v":0},{"$f":"COUNTIF(PresençasEmMaio[9],\"U\")+COUNTIF(PresençasEmMaio[9],\"E\")","v":0},{"$f":"COUNTIF(PresençasEmMaio[10],\"U\")+COUNTIF(PresençasEmMaio[10],\"E\")","v":0},{"$f":"COUNTIF(PresençasEmMaio[11],\"U\")+COUNTIF(PresençasEmMaio[11],\"E\")","v":0},{"$f":"COUNTIF(PresençasEmMaio[12],\"U\")+COUNTIF(PresençasEmMaio[12],\"E\")","v":0},{"$f":"COUNTIF(PresençasEmMaio[13],\"U\")+COUNTIF(PresençasEmMaio[13],\"E\")","v":0},{"$f":"COUNTIF(PresençasEmMaio[14],\"U\")+COUNTIF(PresençasEmMaio[14],\"E\")","v":0},{"$f":"COUNTIF(PresençasEmMaio[15],\"U\")+COUNTIF(PresençasEmMaio[15],\"E\")","v":0},{"$f":"COUNTIF(PresençasEmMaio[16],\"U\")+COUNTIF(PresençasEmMaio[16],\"E\")","v":0},{"$f":"COUNTIF(PresençasEmMaio[17],\"U\")+COUNTIF(PresençasEmMaio[17],\"E\")","v":0},{"$f":"COUNTIF(PresençasEmMaio[18],\"U\")+COUNTIF(PresençasEmMaio[18],\"E\")","v":0},{"$f":"COUNTIF(PresençasEmMaio[19],\"U\")+COUNTIF(PresençasEmMaio[19],\"E\")","v":0},{"$f":"COUNTIF(PresençasEmMaio[20],\"U\")+COUNTIF(PresençasEmMaio[20],\"E\")","v":0},{"$f":"COUNTIF(PresençasEmMaio[21],\"U\")+COUNTIF(PresençasEmMaio[21],\"E\")","v":0},{"$f":"COUNTIF(PresençasEmMaio[22],\"U\")+COUNTIF(PresençasEmMaio[22],\"E\")","v":0},{"$f":"COUNTIF(PresençasEmMaio[23],\"U\")+COUNTIF(PresençasEmMaio[23],\"E\")","v":0},{"$f":"COUNTIF(PresençasEmMaio[24],\"U\")+COUNTIF(PresençasEmMaio[24],\"E\")","v":0},{"$f":"COUNTIF(PresençasEmMaio[25],\"U\")+COUNTIF(PresençasEmMaio[25],\"E\")","v":0},{"$f":"COUNTIF(PresençasEmMaio[26],\"U\")+COUNTIF(PresençasEmMaio[26],\"E\")","v":0},{"$f":"COUNTIF(PresençasEmMaio[27],\"U\")+COUNTIF(PresençasEmMaio[27],\"E\")","v":0},{"$f":"COUNTIF(PresençasEmMaio[28],\"U\")+COUNTIF(PresençasEmMaio[28],\"E\")","v":0},{"$f":"COUNTIF(PresençasEmMaio[29],\"U\")+COUNTIF(PresençasEmMaio[29],\"E\")","v":0},null,null,{"$f":"SUBTOTAL(109,PresençasEmMaio[T])","v":0},{"$f":"SUBTOTAL(109,PresençasEmMaio[E])","v":0},{"$f":"SUBTOTAL(109,PresençasEmMaio[U])","v":0},{"$f":"SUBTOTAL(109,PresençasEmMaio[P])","v":0},{"$f":"SUBTOTAL(109,PresençasEmMaio[Dias de Ausência])","v":0}]

{"sheet":"junho","index":12,"n_rows":12,"n_cols":39,"rows_kept":12,"merged":[[4,34,4,38]]}
["RELATÓRIO DE PRESENÇAS DOS ESTUDANTES",{"$nulls":36},"Início do Ano Letivo:",{"$f":"CalendárioAnual","v":2012}]
[]
[null,null,{"$f":"TextoColorKey","v":"CHAVE DE CORES "},{"$f":"Código1","v":"T"},{"$f":"Código1Texto","v":"Atrasado"},null,null,{"$f":"Código2","v":"E"},{"$f":"Código2Texto","v":"Justificado"},null,null,{"$f":"Código3","v":"U"},{"$f":"Código3Texto","v":"Não justificado"},null,null,{"$f":"Código4","v":"P"},{"$f":"Código4Texto","v":"Presente"},null,null,{"$f":"Código5","v":"N"},{"$f":"Código5Texto","v":"Não há Escola"}]
[]
[null,{"$f":"DATE(CalendárioAnual+1,6,1)","v":"2013-06-01"},null,{"$f":"TEXT(WEEKDAY(DATE(CalendárioAnual+1,6,1),1),\"ddd\")","v":"sáb"},{"$f":"TEXT(WEEKDAY(DATE(CalendárioAnual+1,6,2),1),\"ddd\")","v":"dom"},{"$f":"TEXT(WEEKDAY(DATE(CalendárioAnual+1,6,3),1),\"ddd\")","v":"seg"},{"$f":"TEXT(WEEKDAY(DATE(CalendárioAnual+1,6,4),1),\"ddd\")","v":"ter"},{"$f":"TEXT(WEEKDAY(DATE(CalendárioAnual+1,6,5),1),\"ddd\")","v":"qua"},{"$f":"TEXT(WEEKDAY(DATE(CalendárioAnual+1,6,6),1),\"ddd\")","v":"qui"},{"$f":"TEXT(WEEKDAY(DATE(CalendárioAnual+1,6,7),1),\"ddd\")","v":"sex"},{"$f":"TEXT(WEEKDAY(DATE(CalendárioAnual+1,6,8),1),\"ddd\")","v":"sáb"},{"$f":"TEXT(WEEKDAY(DATE(CalendárioAnual+1,6,9),1),\"ddd\")","v":"dom"},{"$f":"TEXT(WEEKDAY(DATE(CalendárioAnual+1,6,10),1),\"ddd\")","v":"seg"},{"$f":"TEXT(WEEKDAY(DATE(CalendárioAnual+1,6,11),1),\"ddd\")","v":"ter"},{"$f":"TEXT(WEEKDAY(DATE(CalendárioAnual+1,6,12),1),\"ddd\")","v":"qua"},{"$f":"TEXT(WEEKDAY(DATE(CalendárioAnual+1,6,13),1),\"ddd\")","v":"qui"},{"$f":"TEXT(WEEKDAY(DATE(CalendárioAnual+1,6,14),1),\"ddd\")","v":"sex"},{"$f":"TEXT(WEEKDAY(DATE(CalendárioAnual+1,6,15),1),\"ddd\")","v":"sáb"},{"$f":"TEXT(WEEKDAY(DATE(CalendárioAnual+1,6,16),1),\"ddd\")","v":"dom"},{"$f":"TEXT(WEEKDAY(DATE(CalendárioAnual+1,6,17),1),\"ddd\")","v":"seg"},{"$f":"TEXT(WEEKDAY(DATE(CalendárioAnual+1,6,18),1),\"ddd\")","v":"ter"},{"$f":"TEXT(WEEKDAY(DATE(CalendárioAnual+1,6,19),1),\"ddd\")","v":"qua"},{"$f":"TEXT(WEEKDAY(DATE(CalendárioAnual+1,6,20),1),\"ddd\")","v":"qui"},{"$f":"TEXT(WEEKDAY(DATE(CalendárioAnual+1,6,21),1),\"ddd\")","v":"sex"},{"$f":"TEXT(WEEKDAY(DATE(CalendárioAnual+1,6,22),1),\"ddd\")","v":"sáb"},{"$f":"TEXT(WEEKDAY(DATE(CalendárioAnual+1,6,23),1),\"ddd\")","v":"dom"},{"$f":"TEXT(WEEKDAY(DATE(CalendárioAnual+1,6,24),1),\"ddd\")","v":"seg"},{"$f":"TEXT(WEEKDAY(DATE(CalendárioAnual+1,6,25),1),\"ddd\")","v":"ter"},{"$f":"TEXT(WEEKDAY(DATE(CalendárioAnual+1,6,26),1),\"ddd\")","v":"qua"},{"$f":"TEXT(WEEKDAY(DATE(CalendárioAnual+1,6,27),1),\"ddd\")","v":"qui"},{"$f":"TEXT(WEEKDAY(DATE(CalendárioAnual+1,6,28),1),\"ddd\")","v":"sex"},{"$f":"TEXT(WEEKDAY(DATE(CalendárioAnual+1,6,29),1),\"ddd\")","v":"sáb"},{"$f":"TEXT(WEEKDAY(DATE(CalendárioAnual+1,6,30),1),\"ddd\")","v":"dom"},null,"Totais"]
[null,"ID de Estudante","Nome do Estudante","1","2","3","4","5","6","7","8","9","10","11","12","13","14","15","16","17","18","19","20","21","22","23","24","25","26","27","28","29","30"," ","T","E","U","P","Dias de Ausência"]
[null,null,{"$f":"IFERROR(VLOOKUP(PresençasEmJunho[[#This Row],[ID de Estudante]],ListaDeAlunos[],18,FALSE),\"\")","v":""},{"$nulls":31},{"$f":"COUNTIF(PresençasEmJunho[[#This Row],[1]:[ ]],Código1)","v":0},{"$f":"COUNTIF(PresençasEmJunho[[#This Row],[1]:[ ]],Código2)","v":0},{"$f":"COUNTIF(PresençasEmJunho[[#This Row],[1]:[ ]],Código3)","v":0},{"$f":"COUNTIF(PresençasEmJunho[[#This Row],[1]:[ ]],Código4)","v":0},{"$f":"SUM(PresençasEmJunho[[#This Row],[E]:[U]])","v":0}]
[null,null,{"$f":"IFERROR(VLOOKUP(PresençasEmJunho[[#This Row],[ID de Estudante]],ListaDeAlunos[],18,FALSE),\"\")","v":""},{"$nulls":31},{"$f":"COUNTIF(PresençasEmJunho[[#This Row],[1]:[ ]],Código1)","v":0},{"$f":"COUNTIF(PresençasEmJunho[[#This Row],[1]:[ ]],Código2)","v":0},{"$f":"COUNTIF(PresençasEmJunho[[#This Row],[1]:[ ]],Código3)","v":0},{"$f":"COUNTIF(PresençasEmJunho[[#This Row],[1]:[ ]],Código4)","v":0},{"$f":"SUM(PresençasEmJunho[[#This Row],[E]:[U]])","v":0}]
[null,null,{"$f":"IFERROR(VLOOKUP(PresençasEmJunho[[#This Row],[ID de Estudante]],ListaDeAlunos[],18,FALSE),\"\")","v":""},{"$nulls":31},{"$f":"COUNTIF(PresençasEmJunho[[#This Row],[1]:[ ]],Código1)","v":0},{"$f":"COUNTIF(PresençasEmJunho[[#This Row],[1]:[ ]],Código2)","v":0},{"$f":"COUNTIF(PresençasEmJunho[[#This Row],[1]:[ ]],Código3)","v":0},{"$f":"COUNTIF(PresençasEmJunho[[#This Row],[1]:[ ]],Código4)","v":0},{"$f":"SUM(PresençasEmJunho[[#This Row],[E]:[U]])","v":0}]
[null,null,{"$f":"IFERROR(VLOOKUP(PresençasEmJunho[[#This Row],[ID de Estudante]],ListaDeAlunos[],18,FALSE),\"\")","v":""},{"$nulls":31},{"$f":"COUNTIF(PresençasEmJunho[[#This Row],[1]:[ ]],Código1)","v":0},{"$f":"COUNTIF(PresençasEmJunho[[#This Row],[1]:[ ]],Código2)","v":0},{"$f":"COUNTIF(PresençasEmJunho[[#This Row],[1]:[ ]],Código3)","v":0},{"$f":"COUNTIF(PresençasEmJunho[[#This Row],[1]:[ ]],Código4)","v":0},{"$f":"SUM(PresençasEmJunho[[#This Row],[E]:[U]])","v":0}]
[null,null,{"$f":"IFERROR(VLOOKUP(PresençasEmJunho[[#This Row],[ID de Estudante]],ListaDeAlunos[],18,FALSE),\"\")","v":""},{"$nulls":31},{"$f":"COUNTIF(PresençasEmJunho[[#This Row],[1]:[ ]],Código1)","v":0},{"$f":"COUNTIF(PresençasEmJunho[[#This Row],[1]:[ ]],Código2)","v":0},{"$f":"COUNTIF(PresençasEmJunho[[#This Row],[1]:[ ]],Código3)","v":0},{"$f":"COUNTIF(PresençasEmJunho[[#This Row],[1]:[ ]],Código4)","v":0},{"$f":"SUM(PresençasEmJunho[[#This Row],[E]:[U]])","v":0}]
[null,null,"Total de dias de ausência",{"$f":"COUNTIF(PresençasEmJunho[1],\"U\")+COUNTIF(PresençasEmJunho[1],\"E\")","v":0},{"$f":"COUNTIF(PresençasEmJunho[2],\"U\")+COUNTIF(PresençasEmJunho[2],\"E\")","v":0},{"$f":"COUNTIF(PresençasEmJunho[3],\"U\")+COUNTIF(PresençasEmJunho[3],\"E\")","v":0},{"$f":"COUNTIF(PresençasEmJunho[4],\"U\")+COUNTIF(PresençasEmJunho[4],\"E\")","v":0},{"$f":"COUNTIF(PresençasEmJunho[5],\"U\")+COUNTIF(PresençasEmJunho[5],\"E\")","v":0},{"$f":"COUNTIF(PresençasEmJunho[6],\"U\")+COUNTIF(PresençasEmJunho[6],\"E\")","v":0},{"$f":"COUNTIF(PresençasEmJunho[7],\"U\")+COUNTIF(PresençasEmJunho[7],\"E\")","v":0},{"$f":"COUNTIF(PresençasEmJunho[8],\"U\")+COUNTIF(PresençasEmJunho[8],\"E\")","v":0},{"$f":"COUNTIF(PresençasEmJunho[9],\"U\")+COUNTIF(PresençasEmJunho[9],\"E\")","v":0},{"$f":"COUNTIF(PresençasEmJunho[10],\"U\")+COUNTIF(PresençasEmJunho[10],\"E\")","v":0},{"$f":"COUNTIF(PresençasEmJunho[11],\"U\")+COUNTIF(PresençasEmJunho[11],\"E\")","v":0},{"$f":"COUNTIF(PresençasEmJunho[12],\"U\")+COUNTIF(PresençasEmJunho[12],\"E\")","v":0},{"$f":"COUNTIF(PresençasEmJunho[13],\"U\")+COUNTIF(PresençasEmJunho[13],\"E\")","v":0},{"$f":"COUNTIF(PresençasEmJunho[14],\"U\")+COUNTIF(PresençasEmJunho[14],\"E\")","v":0},{"$f":"COUNTIF(PresençasEmJunho[15],\"U\")+COUNTIF(PresençasEmJunho[15],\"E\")","v":0},{"$f":"COUNTIF(PresençasEmJunho[16],\"U\")+COUNTIF(PresençasEmJunho[16],\"E\")","v":0},{"$f":"COUNTIF(PresençasEmJunho[17],\"U\")+COUNTIF(PresençasEmJunho[17],\"E\")","v":0},{"$f":"COUNTIF(PresençasEmJunho[18],\"U\")+COUNTIF(PresençasEmJunho[18],\"E\")","v":0},{"$f":"COUNTIF(PresençasEmJunho[19],\"U\")+COUNTIF(PresençasEmJunho[19],\"E\")","v":0},{"$f":"COUNTIF(PresençasEmJunho[20],\"U\")+COUNTIF(PresençasEmJunho[20],\"E\")","v":0},{"$f":"COUNTIF(PresençasEmJunho[21],\"U\")+COUNTIF(PresençasEmJunho[21],\"E\")","v":0},{"$f":"COUNTIF(PresençasEmJunho[22],\"U\")+COUNTIF(PresençasEmJunho[22],\"E\")","v":0},{"$f":"COUNTIF(PresençasEmJunho[23],\"U\")+COUNTIF(PresençasEmJunho[23],\"E\")","v":0},{"$f":"COUNTIF(PresençasEmJunho[24],\"U\")+COUNTIF(PresençasEmJunho[24],\"E\")","v":0},{"$f":"COUNTIF(PresençasEmJunho[25],\"U\")+COUNTIF(PresençasEmJunho[25],\"E\")","v":0},{"$f":"COUNTIF(PresençasEmJunho[26],\"U\")+COUNTIF(PresençasEmJunho[26],\"E\")","v":0},{"$f":"COUNTIF(PresençasEmJunho[27],\"U\")+COUNTIF(PresençasEmJunho[27],\"E\")","v":0},{"$f":"COUNTIF(PresençasEmJunho[28],\"U\")+COUNTIF(PresençasEmJunho[28],\"E\")","v":0},{"$f":"COUNTIF(PresençasEmJunho[29],\"U\")+COUNTIF(PresençasEmJunho[29],\"E\")","v":0},null,null,{"$f":"SUBTOTAL(109,PresençasEmJunho[T])","v":0},{"$f":"SUBTOTAL(109,PresençasEmJunho[E])","v":0},{"$f":"SUBTOTAL(109,PresençasEmJunho[U])","v":0},{"$f":"SUBTOTAL(109,PresençasEmJunho[P])","v":0},{"$f":"SUBTOTAL(109,PresençasEmJunho[Dias de Ausência])","v":0}]

{"sheet":"julho","index":13,"n_rows":12,"n_cols":39,"rows_kept":12,"merged":[[4,34,4,38]]}
["RELATÓRIO DE PRESENÇAS DOS ESTUDANTES",{"$nulls":36},"Início do Ano Letivo:",{"$f":"CalendárioAnual","v":2012}]
[]
[null,null,{"$f":"TextoColorKey","v":"CHAVE DE CORES "},{"$f":"Código1","v":"T"},{"$f":"Código1Texto","v":"Atrasado"},null,null,{"$f":"Código2","v":"E"},{"$f":"Código2Texto","v":"Justificado"},null,null,{"$f":"Código3","v":"U"},{"$f":"Código3Texto","v":"Não justificado"},null,null,{"$f":"Código4","v":"P"},{"$f":"Código4Texto","v":"Presente"},null,null,{"$f":"Código5","v":"N"},{"$f":"Código5Texto","v":"Não há Escola"}]
[]
[null,{"$f":"DATE(CalendárioAnual+1,7,1)","v":"2013-07-01"},null,{"$f":"TEXT(WEEKDAY(DATE(CalendárioAnual+1,7,1),1),\"ddd\")","v":"seg"},{"$f":"TEXT(WEEKDAY(DATE(CalendárioAnual+1,7,2),1),\"ddd\")","v":"ter"},{"$f":"TEXT(WEEKDAY(DATE(CalendárioAnual+1,7,3),1),\"ddd\")","v":"qua"},{"$f":"TEXT(WEEKDAY(DATE(CalendárioAnual+1,7,4),1),\"ddd\")","v":"qui"},{"$f":"TEXT(WEEKDAY(DATE(CalendárioAnual+1,7,5),1),\"ddd\")","v":"sex"},{"$f":"TEXT(WEEKDAY(DATE(CalendárioAnual+1,7,6),1),\"ddd\")","v":"sáb"},{"$f":"TEXT(WEEKDAY(DATE(CalendárioAnual+1,7,7),1),\"ddd\")","v":"dom"},{"$f":"TEXT(WEEKDAY(DATE(CalendárioAnual+1,7,8),1),\"ddd\")","v":"seg"},{"$f":"TEXT(WEEKDAY(DATE(CalendárioAnual+1,7,9),1),\"ddd\")","v":"ter"},{"$f":"TEXT(WEEKDAY(DATE(CalendárioAnual+1,7,10),1),\"ddd\")","v":"qua"},{"$f":"TEXT(WEEKDAY(DATE(CalendárioAnual+1,7,11),1),\"ddd\")","v":"qui"},{"$f":"TEXT(WEEKDAY(DATE(CalendárioAnual+1,7,12),1),\"ddd\")","v":"sex"},{"$f":"TEXT(WEEKDAY(DATE(CalendárioAnual+1,7,13),1),\"ddd\")","v":"sáb"},{"$f":"TEXT(WEEKDAY(DATE(CalendárioAnual+1,7,14),1),\"ddd\")","v":"dom"},{"$f":"TEXT(WEEKDAY(DATE(CalendárioAnual+1,7,15),1),\"ddd\")","v":"seg"},{"$f":"TEXT(WEEKDAY(DATE(CalendárioAnual+1,7,16),1),\"ddd\")","v":"ter"},{"$f":"TEXT(WEEKDAY(DATE(CalendárioAnual+1,7,17),1),\"ddd\")","v":"qua"},{"$f":"TEXT(WEEKDAY(DATE(CalendárioAnual+1,7,18),1),\"ddd\")","v":"qui"},{"$f":"TEXT(WEEKDAY(DATE(CalendárioAnual+1,7,19),1),\"ddd\")","v":"sex"},{"$f":"TEXT(WEEKDAY(DATE(CalendárioAnual+1,7,20),1),\"ddd\")","v":"sáb"},{"$f":"TEXT(WEEKDAY(DATE(CalendárioAnual+1,7,21),1),\"ddd\")","v":"dom"},{"$f":"TEXT(WEEKDAY(DATE(CalendárioAnual+1,7,22),1),\"ddd\")","v":"seg"},{"$f":"TEXT(WEEKDAY(DATE(CalendárioAnual+1,7,23),1),\"ddd\")","v":"ter"},{"$f":"TEXT(WEEKDAY(DATE(CalendárioAnual+1,7,24),1),\"ddd\")","v":"qua"},{"$f":"TEXT(WEEKDAY(DATE(CalendárioAnual+1,7,25),1),\"ddd\")","v":"qui"},{"$f":"TEXT(WEEKDAY(DATE(CalendárioAnual+1,7,26),1),\"ddd\")","v":"sex"},{"$f":"TEXT(WEEKDAY(DATE(CalendárioAnual+1,7,27),1),\"ddd\")","v":"sáb"},{"$f":"TEXT(WEEKDAY(DATE(CalendárioAnual+1,7,28),1),\"ddd\")","v":"dom"},{"$f":"TEXT(WEEKDAY(DATE(CalendárioAnual+1,7,29),1),\"ddd\")","v":"seg"},{"$f":"TEXT(WEEKDAY(DATE(CalendárioAnual+1,7,30),1),\"ddd\")","v":"ter"},{"$f":"TEXT(WEEKDAY(DATE(CalendárioAnual+1,7,31),1),\"ddd\")","v":"qua"},"Totais"]
[null,"ID de Estudante","Nome do Estudante","1","2","3","4","5","6","7","8","9","10","11","12","13","14","15","16","17","18","19","20","21","22","23","24","25","26","27","28","29","30","31","T","E","U","P","Dias de Ausência"]
[null,null,{"$f":"IFERROR(VLOOKUP(PresençasEmJulho[[#This Row],[ID de Estudante]],ListaDeAlunos[],18,FALSE),\"\")","v":""},{"$nulls":31},{"$f":"COUNTIF(PresençasEmJulho[[#This Row],[1]:[31]],Código1)","v":0},{"$f":"COUNTIF(PresençasEmJulho[[#This Row],[1]:[31]],Código2)","v":0},{"$f":"COUNTIF(PresençasEmJulho[[#This Row],[1]:[31]],Código3)","v":0},{"$f":"COUNTIF(PresençasEmJulho[[#This Row],[1]:[31]],Código4)","v":0},{"$f":"SUM(PresençasEmJulho[[#This Row],[E]:[U]])","v":0}]
[null,null,{"$f":"IFERROR(VLOOKUP(PresençasEmJulho[[#This Row],[ID de Estudante]],ListaDeAlunos[],18,FALSE),\"\")","v":""},{"$nulls":31},{"$f":"COUNTIF(PresençasEmJulho[[#This Row],[1]:[31]],Código1)","v":0},{"$f":"COUNTIF(PresençasEmJulho[[#This Row],[1]:[31]],Código2)","v":0},{"$f":"COUNTIF(PresençasEmJulho[[#This Row],[1]:[31]],Código3)","v":0},{"$f":"COUNTIF(PresençasEmJulho[[#This Row],[1]:[31]],Código4)","v":0},{"$f":"SUM(PresençasEmJulho[[#This Row],[E]:[U]])","v":0}]
[null,null,{"$f":"IFERROR(VLOOKUP(PresençasEmJulho[[#This Row],[ID de Estudante]],ListaDeAlunos[],18,FALSE),\"\")","v":""},{"$nulls":31},{"$f":"COUNTIF(PresençasEmJulho[[#This Row],[1]:[31]],Código1)","v":0},{"$f":"COUNTIF(PresençasEmJulho[[#This Row],[1]:[31]],Código2)","v":0},{"$f":"COUNTIF(PresençasEmJulho[[#This Row],[1]:[31]],Código3)","v":0},{"$f":"COUNTIF(PresençasEmJulho[[#This Row],[1]:[31]],Código4)","v":0},{"$f":"SUM(PresençasEmJulho[[#This Row],[E]:[U]])","v":0}]
[null,null,{"$f":"IFERROR(VLOOKUP(PresençasEmJulho[[#This Row],[ID de Estudante]],ListaDeAlunos[],18,FALSE),\"\")","v":""},{"$nulls":31},{"$f":"COUNTIF(PresençasEmJulho[[#This Row],[1]:[31]],Código1)","v":0},{"$f":"COUNTIF(PresençasEmJulho[[#This Row],[1]:[31]],Código2)","v":0},{"$f":"COUNTIF(PresençasEmJulho[[#This Row],[1]:[31]],Código3)","v":0},{"$f":"COUNTIF(PresençasEmJulho[[#This Row],[1]:[31]],Código4)","v":0},{"$f":"SUM(PresençasEmJulho[[#This Row],[E]:[U]])","v":0}]
[null,null,{"$f":"IFERROR(VLOOKUP(PresençasEmJulho[[#This Row],[ID de Estudante]],ListaDeAlunos[],18,FALSE),\"\")","v":""},{"$nulls":31},{"$f":"COUNTIF(PresençasEmJulho[[#This Row],[1]:[31]],Código1)","v":0},{"$f":"COUNTIF(PresençasEmJulho[[#This Row],[1]:[31]],Código2)","v":0},{"$f":"COUNTIF(PresençasEmJulho[[#This Row],[1]:[31]],Código3)","v":0},{"$f":"COUNTIF(PresençasEmJulho[[#This Row],[1]:[31]],Código4)","v":0},{"$f":"SUM(PresençasEmJulho[[#This Row],[E]:[U]])","v":0}]
[null,null,"Total de dias de ausência",{"$f":"COUNTIF(PresençasEmJulho[1],\"U\")+COUNTIF(PresençasEmJulho[1],\"E\")","v":0},{"$f":"COUNTIF(PresençasEmJulho[2],\"U\")+COUNTIF(PresençasEmJulho[2],\"E\")","v":0},{"$f":"COUNTIF(PresençasEmJulho[3],\"U\")+COUNTIF(PresençasEmJulho[3],\"E\")","v":0},{"$f":"COUNTIF(PresençasEmJulho[4],\"U\")+COUNTIF(PresençasEmJulho[4],\"E\")","v":0},{"$f":"COUNTIF(PresençasEmJulho[5],\"U\")+COUNTIF(PresençasEmJulho[5],\"E\")","v":0},{"$f":"COUNTIF(PresençasEmJulho[6],\"U\")+COUNTIF(PresençasEmJulho[6],\"E\")","v":0},{"$f":"COUNTIF(PresençasEmJulho[7],\"U\")+COUNTIF(PresençasEmJulho[7],\"E\")","v":0},{"$f":"COUNTIF(PresençasEmJulho[8],\"U\")+COUNTIF(PresençasEmJulho[8],\"E\")","v":0},{"$f":"COUNTIF(PresençasEmJulho[9],\"U\")+COUNTIF(PresençasEmJulho[9],\"E\")","v":0},{"$f":"COUNTIF(PresençasEmJulho[10],\"U\")+COUNTIF(PresençasEmJulho[10],\"E\")","v":0},{"$f":"COUNTIF(PresençasEmJulho[11],\"U\")+COUNTIF(PresençasEmJulho[11],\"E\")","v":0},{"$f":"COUNTIF(PresençasEmJulho[12],\"U\")+COUNTIF(PresençasEmJulho[12],\"E\")","v":0},{"$f":"COUNTIF(PresençasEmJulho[13],\"U\")+COUNTIF(PresençasEmJulho[13],\"E\")","v":0},{"$f":"COUNTIF(PresençasEmJulho[14],\"U\")+COUNTIF(PresençasEmJulho[14],\"E\")","v":0},{"$f":"COUNTIF(PresençasEmJulho[15],\"U\")+COUNTIF(PresençasEmJulho[15],\"E\")","v":0},{"$f":"COUNTIF(PresençasEmJulho[16],\"U\")+COUNTIF(PresençasEmJulho[16],\"E\")","v":0},{"$f":"COUNTIF(PresençasEmJulho[17],\"U\")+COUNTIF(PresençasEmJulho[17],\"E\")","v":0},{"$f":"COUNTIF(PresençasEmJulho[18],\"U\")+COUNTIF(PresençasEmJulho[18],\"E\")","v":0},{"$f":"COUNTIF(PresençasEmJulho[19],\"U\")+COUNTIF(PresençasEmJulho[19],\"E\")","v":0},{"$f":"COUNTIF(PresençasEmJulho[20],\"U\")+COUNTIF(PresençasEmJulho[20],\"E\")","v":0},{"$f":"COUNTIF(PresençasEmJulho[21],\"U\")+COUNTIF(PresençasEmJulho[21],\"E\")","v":0},{"$f":"COUNTIF(PresençasEmJulho[22],\"U\")+COUNTIF(PresençasEmJulho[22],\"E\")","v":0},{"$f":"COUNTIF(PresençasEmJulho[23],\"U\")+COUNTIF(PresençasEmJulho[23],\"E\")","v":0},{"$f":"COUNTIF(PresençasEmJulho[24],\"U\")+COUNTIF(PresençasEmJulho[24],\"E\")","v":0},{"$f":"COUNTIF(PresençasEmJulho[25],\"U\")+COUNTIF(PresençasEmJulho[25],\"E\")","v":0},{"$f":"COUNTIF(PresençasEmJulho[26],\"U\")+COUNTIF(PresençasEmJulho[26],\"E\")","v":0},{"$f":"COUNTIF(PresençasEmJulho[27],\"U\")+COUNTIF(PresençasEmJulho[27],\"E\")","v":0},{"$f":"COUNTIF(PresençasEmJulho[28],\"U\")+COUNTIF(PresençasEmJulho[28],\"E\")","v":0},{"$f":"COUNTIF(PresençasEmJulho[29],\"U\")+COUNTIF(PresençasEmJulho[29],\"E\")","v":0},null,null,{"$f":"SUBTOTAL(109,PresençasEmJulho[T])","v":0},{"$f":"SUBTOTAL(109,PresençasEmJulho[E])","v":0},{"$f":"SUBTOTAL(109,PresençasEmJulho[U])","v":0},{"$f":"SUBTOTAL(109,PresençasEmJulho[P])","v":0},{"$f":"SUBTOTAL(109,PresençasEmJulho[Dias de Ausência])","v":0}]

{"sheet":"Rel. de Presenças do Estudante","index":14,"n_rows":40,"n_cols":37,"rows_kept":40,"merged":[[2,3,2,14],[2,15,2,17],[2,18,2,21],[2,22,2,29],[2,30,2,31],[2,32,2,35],[3,1,3,2],[3,3,3,14],[3,15,3,17],[3,18,3,21],[3,22,3,29],[3,30,3,31],[3,32,3,35],[4,1,4,9],[4,10,4,21],[4,22,4,29],[4,30,4,36],[5,1,5,9],[5,10,5,21],[5,22,5,29],[5,30,5,36],[6,1,6,9],[6,10,6,21],[6,22,6,29],[6,30,6,36],[7,1,7,9],[7,10,7,21],[7,22,7,29],[7,30,7,36],[8,1,8,9],[8,10,8,21],[8,22,8,29],[8,30,8,36],[9,1,9,9],[9,10,9,21],[9,22,9,29],[9,30,9,36],[13,1,14,32],[13,33,13,36],[15,1,16,1],[15,33,16,33],[15,34,16,34],[15,35,16,35],[15,36,16,36],[17,1,18,1],[17,33,18,33],[17,34,18,34],[17,35,18,35],[17,36,18,36],[19,1,20,1],[19,33,20,33],[19,34,20,34],[19,35,20,35],[19,36,20,36],[21,1,22,1],[21,33,22,33],[21,34,22,34],[21,35,22,35],[21,36,22,36],[23,1,24,1],[23,33,24,33],[23,34,24,34],[23,35,24,35],[23,36,24,36],[25,1,26,1],[25,33,26,33],[25,34,26,34],[25,35,26,35],[25,36,26,36],[27,1,28,1],[27,33,28,33],[27,34,28,34],[27,35,28,35],[27,36,28,36],[29,1,30,1],[29,33,30,33],[29,34,30,34],[29,35,30,35],[29,36,30,36],[31,1,32,1],[31,33,32,33],[31,34,32,34],[31,35,32,35],[31,36,32,36],[33,1,34,1],[33,33,34,33],[33,34,34,34],[33,35,34,35],[33,36,34,36],[35,1,36,1],[35,33,36,33],[35,34,36,34],[35,35,36,35],[35,36,36,36],[37,1,38,1],[37,33,38,33],[37,34,38,34],[37,35,38,35],[37,36,38,36],[39,30,39,32]]}
[{"$f":"\"Relatório de Presenças de \"","v":"Relatório de Presenças de "},{"$nulls":7},{"$f":"D4","v":"Paulo Neves"}]
[]
[null,"ID de Estudante",null,"Nome do Estudante",{"$nulls":11},"Género",null,null,"Data de Nascimento",{"$nulls":3},"Escola",{"$nulls":7},"Nota",null,"Professor",{"$nulls":3},"Sala"]
[null,"S001",null,{"$f":"IFERROR(VLOOKUP(ProcurarAluno,ListaDeAlunos[],18,FALSE),\"\")","v":"Paulo Neves"},{"$nulls":11},{"$f":"IFERROR(VLOOKUP(ProcurarAluno,ListaDeAlunos[],4,FALSE),\"\")","v":"M"},null,null,{"$f":"IFERROR(VLOOKUP(ProcurarAluno,ListaDeAlunos[],5,FALSE),\"\")","v":"1997-03-28"},{"$nulls":3},"Escola de Belas Artes ",{"$nulls":7},7,null,"Marcos Santos",{"$nulls":3},123]
[null,"Nome do Pai ou Tutor 1",{"$nulls":8},"Relação",{"$nulls":11},"Número do Trabalho",{"$nulls":7},"Número de Casa"]
[null,{"$f":"IFERROR(VLOOKUP(ProcurarAluno,ListaDeAlunos[],6,FALSE),\"\")","v":"Isabel"},{"$nulls":8},{"$f":"IFERROR(VLOOKUP(ProcurarAluno,ListaDeAlunos[],7,FALSE),\"\")","v":"Neves"},{"$nulls":11},{"$f":"IFERROR(VLOOKUP(ProcurarAluno,ListaDeAlunos[],8,FALSE),\"\")","v":1235550134},{"$nulls":7},{"$f":"IFERROR(VLOOKUP(ProcurarAluno,ListaDeAlunos[],9,FALSE),\"\")","v":2345550134}]
[null,"Nome do Pai ou Tutor 2",{"$nulls":8},"Relação",{"$nulls":11},"Número do Trabalho",{"$nulls":7},"Número de Casa"]
[null,{"$f":"IFERROR(VLOOKUP(ProcurarAluno,ListaDeAlunos[],10,FALSE),\"\")","v":"Carlos Grilo"},{"$nulls":8},{"$f":"IFERROR(VLOOKUP(ProcurarAluno,ListaDeAlunos[],11,FALSE),\"\")","v":"Pai"},{"$nulls":11},{"$f":"IFERROR(VLOOKUP(ProcurarAluno,ListaDeAlunos[],12,FALSE),\"\")","v":1235550134},{"$nulls":7},{"$f":"IFERROR(VLOOKUP(ProcurarAluno,ListaDeAlunos[],13,FALSE),\"\")","v":2345550134}]
[null,"Contacto em Caso de Emergência",{"$nulls":8},"Relação",{"$nulls":11},"Número do Trabalho",{"$nulls":7},"Número de Casa"]
[null,{"$f":"IFERROR(VLOOKUP(ProcurarAluno,ListaDeAlunos[],14,FALSE),\"\")","v":"Nuno Farinha"},{"$nulls":8},{"$f":"IFERROR(VLOOKUP(ProcurarAluno,ListaDeAlunos[],15,FALSE),\"\")","v":"Avô"},{"$nulls":11},{"$f":"IFERROR(VLOOKUP(ProcurarAluno,ListaDeAlunos[],16,FALSE),\"\")","v":7895550189},{"$nulls":7},{"$f":"IFERROR(VLOOKUP(ProcurarAluno,ListaDeAlunos[],17,FALSE),\"\")","v":7895550134}]
[]
[null,{"$f":"agosto!C3","v":"CHAVE DE CORES "},{"$f":"agosto!D3","v":"T"},{"$f":"agosto!E3","v":"Atrasado"},null,null,{"$f":"agosto!H3","v":"E"},{"$f":"agosto!I3","v":"Justificado"},null,null,{"$f":"agosto!L3","v":"U"},{"$f":"agosto!M3","v":"Não justificado"},{"$nulls":3},{"$f":"agosto!P3","v":"P"},{"$f":"agosto!Q3","v":"Presente"},null,null,{"$f":"agosto!T3","v":"N"},{"$f":"agosto!U3","v":"Não há Escola"}]
[]
[null,"Presenças",{"$nulls":31},"Total de Presenças"]
[{"$nulls":33},"T","E","U","P"]
[null,"agosto",1,2,3,4,5,6,7,8,9,10,11,12,13,14,15,16,17,18,19,20,21,22,23,24,25,26,27,28,29,30,31,{"$f":"COUNTIF($D17:$AH17,Código1)","v":2},{"$f":"COUNTIF($D17:$AH17,Código2)","v":1},{"$f":"COUNTIF($D17:$AH17,Código3)","v":0},{"$f":"COUNTIF($D17:$AH17,Código4)","v":19}]
[null,null,{"$f":"IFERROR(VLOOKUP(ProcurarAluno,PresençasEmAgosto[],3,FALSE),\"\")","v":"P"},{"$f":"IFERROR(VLOOKUP(ProcurarAluno,PresençasEmAgosto[],4,FALSE),\"\")","v":"P"},{"$f":"IFERROR(VLOOKUP(ProcurarAluno,PresençasEmAgosto[],5,FALSE),\"\")","v":"T"},{"$f":"IFERROR(VLOOKUP(ProcurarAluno,PresençasEmAgosto[],6,FALSE),\"\")","v":"T"},{"$f":"IFERROR(VLOOKUP(ProcurarAluno,PresençasEmAgosto[],7,FALSE),\"\")","v":"P"},{"$f":"IFERROR(VLOOKUP(ProcurarAluno,PresençasEmAgosto[],8,FALSE),\"\")","v":"N"},{"$f":"IFERROR(VLOOKUP(ProcurarAluno,PresençasEmAgosto[],9,FALSE),\"\")","v":"N"},{"$f":"IFERROR(VLOOKUP(ProcurarAluno,PresençasEmAgosto[],10,FALSE),\"\")","v":"P"},{"$f":"IFERROR(VLOOKUP(ProcurarAluno,PresençasEmAgosto[],11,FALSE),\"\")","v":"P"},{"$f":"IFERROR(VLOOKUP(ProcurarAluno,PresençasEmAgosto[],12,FALSE),\"\")","v":"E"},{"$f":"IFERROR(VLOOKUP(ProcurarAluno,PresençasEmAgosto[],13,FALSE),\"\")","v":"P"},{"$f":"IFERROR(VLOOKUP(ProcurarAluno,PresençasEmAgosto[],14,FALSE),\"\")","v":"P"},{"$f":"IFERROR(VLOOKUP(ProcurarAluno,PresençasEmAgosto[],15,FALSE),\"\")","v":"N"},{"$f":"IFERROR(VLOOKUP(ProcurarAluno,PresençasEmAgosto[],16,FALSE),\"\")","v":"N"},{"$f":"IFERROR(VLOOKUP(ProcurarAluno,PresençasEmAgosto[],17,FALSE),\"\")","v":"P"},{"$f":"IFERROR(VLOOKUP(ProcurarAluno,PresençasEmAgosto[],18,FALSE),\"\")","v":"P"},{"$f":"IFERROR(VLOOKUP(ProcurarAluno,PresençasEmAgosto[],19,FALSE),\"\")","v":"P"},{"$f":"IFERROR(VLOOKUP(ProcurarAluno,PresençasEmAgosto[],20,FALSE),\"\")","v":"P"},{"$f":"IFERROR(VLOOKUP(ProcurarAluno,PresençasEmAgosto[],21,FALSE),\"\")","v":"P"},{"$f":"IFERROR(VLOOKUP(ProcurarAluno,PresençasEmAgosto[],22,FALSE),\"\")","v":"N"},{"$f":"IFERROR(VLOOKUP(ProcurarAluno,PresençasEmAgosto[],23,FALSE),\"\")","v":"N"},{"$f":"IFERROR(VLOOKUP(ProcurarAluno,PresençasEmAgosto[],24,FALSE),\"\")","v":"P"},{"$f":"IFERROR(VLOOKUP(ProcurarAluno,PresençasEmAgosto[],25,FALSE),\"\")","v":"P"},{"$f":"IFERROR(VLOOKUP(ProcurarAluno,PresençasEmAgosto[],26,FALSE),\"\")","v":"P"},{"$f":"IFERROR(VLOOKUP(ProcurarAluno,PresençasEmAgosto[],27,FALSE),\"\")","v":"P"},{"$f":"IFERROR(VLOOKUP(ProcurarAluno,PresençasEmAgosto[],28,FALSE),\"\")","v":"P"},{"$f":"IFERROR(VLOOKUP(ProcurarAluno,PresençasEmAgosto[],29,FALSE),\"\")","v":"N"},{"$f":"IFERROR(VLOOKUP(ProcurarAluno,PresençasEmAgosto[],30,FALSE),\"\")","v":"N"},{"$f":"IFERROR(VLOOKUP(ProcurarAluno,PresençasEmAgosto[],31,FALSE),\"\")","v":"P"},{"$f":"IFERROR(VLOOKUP(ProcurarAluno,PresençasEmAgosto[],32,FALSE),\"\")","v":"P"},{"$f":"IFERROR(VLOOKUP(ProcurarAluno,PresençasEmAgosto[],33,FALSE),\"\")","v":"P"}]
[null,"setembro",1,2,3,4,5,6,7,8,9,10,11,12,13,14,15,16,17,18,19,20,21,22,23,24,25,26,27,28,29,30,null,{"$f":"COUNTIF($D19:$AH19,Código1)","v":0},{"$f":"COUNTIF($D19:$AH19,Código2)","v":0},{"$f":"COUNTIF($D19:$AH19,Código3)","v":0},{"$f":"COUNTIF($D19:$AH19,Código4)","v":0}]
[null,null,{"$f":"IFERROR(VLOOKUP(ProcurarAluno,PresençasEmSetembro[],3,FALSE),\"\")","v":""},{"$f":"IFERROR(VLOOKUP(ProcurarAluno,PresençasEmSetembro[],4,FALSE),\"\")","v":""},{"$f":"IFERROR(VLOOKUP(ProcurarAluno,PresençasEmSetembro[],5,FALSE),\"\")","v":""},{"$f":"IFERROR(VLOOKUP(ProcurarAluno,PresençasEmSetembro[],6,FALSE),\"\")","v":""},{"$f":"IFERROR(VLOOKUP(ProcurarAluno,PresençasEmSetembro[],7,FALSE),\"\")","v":""},{"$f":"IFERROR(VLOOKUP(ProcurarAluno,PresençasEmSetembro[],8,FALSE),\"\")","v":""},{"$f":"IFERROR(VLOOKUP(ProcurarAluno,PresençasEmSetembro[],9,FALSE),\"\")","v":""},{"$f":"IFERROR(VLOOKUP(ProcurarAluno,PresençasEmSetembro[],10,FALSE),\"\")","v":""},{"$f":"IFERROR(VLOOKUP(ProcurarAluno,PresençasEmSetembro[],11,FALSE),\"\")","v":""},{"$f":"IFERROR(VLOOKUP(ProcurarAluno,PresençasEmSetembro[],12,FALSE),\"\")","v":""},{"$f":"IFERROR(VLOOKUP(ProcurarAluno,PresençasEmSetembro[],13,FALSE),\"\")","v":""},{"$f":"IFERROR(VLOOKUP(ProcurarAluno,PresençasEmSetembro[],14,FALSE),\"\")","v":""},{"$f":"IFERROR(VLOOKUP(ProcurarAluno,PresençasEmSetembro[],15,FALSE),\"\")","v":""},{"$f":"IFERROR(VLOOKUP(ProcurarAluno,PresençasEmSetembro[],16,FALSE),\"\")","v":""},{"$f":"IFERROR(VLOOKUP(ProcurarAluno,PresençasEmSetembro[],17,FALSE),\"\")","v":""},{"$f":"IFERROR(VLOOKUP(ProcurarAluno,PresençasEmSetembro[],18,FALSE),\"\")","v":""},{"$f":"IFERROR(VLOOKUP(ProcurarAluno,PresençasEmSetembro[],19,FALSE),\"\")","v":""},{"$f":"IFERROR(VLOOKUP(ProcurarAluno,PresençasEmSetembro[],20,FALSE),\"\")","v":""},{"$f":"IFERROR(VLOOKUP(ProcurarAluno,PresençasEmSetembro[],21,FALSE),\"\")","v":""},{"$f":"IFERROR(VLOOKUP(ProcurarAluno,PresençasEmSetembro[],22,FALSE),\"\")","v":""},{"$f":"IFERROR(VLOOKUP(ProcurarAluno,PresençasEmSetembro[],23,FALSE),\"\")","v":""},{"$f":"IFERROR(VLOOKUP(ProcurarAluno,PresençasEmSetembro[],24,FALSE),\"\")","v":""},{"$f":"IFERROR(VLOOKUP(ProcurarAluno,PresençasEmSetembro[],25,FALSE),\"\")","v":""},{"$f":"IFERROR(VLOOKUP(ProcurarAluno,PresençasEmSetembro[],26,FALSE),\"\")","v":""},{"$f":"IFERROR(VLOOKUP(ProcurarAluno,PresençasEmSetembro[],27,FALSE),\"\")","v":""},{"$f":"IFERROR(VLOOKUP(ProcurarAluno,PresençasEmSetembro[],28,FALSE),\"\")","v":""},{"$f":"IFERROR(VLOOKUP(ProcurarAluno,PresençasEmSetembro[],29,FALSE),\"\")","v":""},{"$f":"IFERROR(VLOOKUP(ProcurarAluno,PresençasEmSetembro[],30,FALSE),\"\")","v":""},{"$f":"IFERROR(VLOOKUP(ProcurarAluno,PresençasEmSetembro[],31,FALSE),\"\")","v":""},{"$f":"IFERROR(VLOOKUP(ProcurarAluno,PresençasEmSetembro[],32,FALSE),\"\")","v":""}]
[null,"outubro",1,2,3,4,5,6,7,8,9,10,11,12,13,14,15,16,17,18,19,20,21,22,23,24,25,26,27,28,29,30,31,{"$f":"COUNTIF($D21:$AH21,Código1)","v":0},{"$f":"COUNTIF($D21:$AH21,Código2)","v":0},{"$f":"COUNTIF($D21:$AH21,Código3)","v":0},{"$f":"COUNTIF($D21:$AH21,Código4)","v":0}]
[null,null,{"$f":"IFERROR(VLOOKUP(ProcurarAluno,PresençasEmOutubro[],3,FALSE),\"\")","v":""},{"$f":"IFERROR(VLOOKUP(ProcurarAluno,PresençasEmOutubro[],4,FALSE),\"\")","v":""},{"$f":"IFERROR(VLOOKUP(ProcurarAluno,PresençasEmOutubro[],5,FALSE),\"\")","v":""},{"$f":"IFERROR(VLOOKUP(ProcurarAluno,PresençasEmOutubro[],6,FALSE),\"\")","v":""},{"$f":"IFERROR(VLOOKUP(ProcurarAluno,PresençasEmOutubro[],7,FALSE),\"\")","v":""},{"$f":"IFERROR(VLOOKUP(ProcurarAluno,PresençasEmOutubro[],8,FALSE),\"\")","v":""},{"$f":"IFERROR(VLOOKUP(ProcurarAluno,PresençasEmOutubro[],9,FALSE),\"\")","v":""},{"$f":"IFERROR(VLOOKUP(ProcurarAluno,PresençasEmOutubro[],10,FALSE),\"\")","v":""},{"$f":"IFERROR(VLOOKUP(ProcurarAluno,PresençasEmOutubro[],11,FALSE),\"\")","v":""},{"$f":"IFERROR(VLOOKUP(ProcurarAluno,PresençasEmOutubro[],12,FALSE),\"\")","v":""},{"$f":"IFERROR(VLOOKUP(ProcurarAluno,PresençasEmOutubro[],13,FALSE),\"\")","v":""},{"$f":"IFERROR(VLOOKUP(ProcurarAluno,PresençasEmOutubro[],14,FALSE),\"\")","v":""},{"$f":"IFERROR(VLOOKUP(ProcurarAluno,PresençasEmOutubro[],15,FALSE),\"\")","v":""},{"$f":"IFERROR(VLOOKUP(ProcurarAluno,PresençasEmOutubro[],16,FALSE),\"\")","v":""},{"$f":"IFERROR(VLOOKUP(ProcurarAluno,PresençasEmOutubro[],17,FALSE),\"\")","v":""},{"$f":"IFERROR(VLOOKUP(ProcurarAluno,PresençasEmOutubro[],18,FALSE),\"\")","v":""},{"$f":"IFERROR(VLOOKUP(ProcurarAluno,PresençasEmOutubro[],19,FALSE),\"\")","v":""},{"$f":"IFERROR(VLOOKUP(ProcurarAluno,PresençasEmOutubro[],20,FALSE),\"\")","v":""},{"$f":"IFERROR(VLOOKUP(ProcurarAluno,PresençasEmOutubro[],21,FALSE),\"\")","v":""},{"$f":"IFERROR(VLOOKUP(ProcurarAluno,PresençasEmOutubro[],22,FALSE),\"\")","v":""},{"$f":"IFERROR(VLOOKUP(ProcurarAluno,PresençasEmOutubro[],23,FALSE),\"\")","v":""},{"$f":"IFERROR(VLOOKUP(ProcurarAluno,PresençasEmOutubro[],24,FALSE),\"\")","v":""},{"$f":"IFERROR(VLOOKUP(ProcurarAluno,PresençasEmOutubro[],25,FALSE),\"\")","v":""},{"$f":"IFERROR(VLOOKUP(ProcurarAluno,PresençasEmOutubro[],26,FALSE),\"\")","v":""},{"$f":"IFERROR(VLOOKUP(ProcurarAluno,PresençasEmOutubro[],27,FALSE),\"\")","v":""},{"$f":"IFERROR(VLOOKUP(ProcurarAluno,PresençasEmOutubro[],28,FALSE),\"\")","v":""},{"$f":"IFERROR(VLOOKUP(ProcurarAluno,PresençasEmOutubro[],29,FALSE),\"\")","v":""},{"$f":"IFERROR(VLOOKUP(ProcurarAluno,PresençasEmOutubro[],30,FALSE),\"\")","v":""},{"$f":"IFERROR(VLOOKUP(ProcurarAluno,PresençasEmOutubro[],31,FALSE),\"\")","v":""},{"$f":"IFERROR(VLOOKUP(ProcurarAluno,PresençasEmOutubro[],32,FALSE),\"\")","v":""},{"$f":"IFERROR(VLOOKUP(ProcurarAluno,PresençasEmOutubro[],33,FALSE),\"\")","v":""}]
[null,"novembro",1,2,3,4,5,6,7,8,9,10,11,12,13,14,15,16,17,18,19,20,21,22,23,24,25,26,27,28,29,30,null,{"$f":"COUNTIF($D23:$AH23,Código1)","v":0},{"$f":"COUNTIF($D23:$AH23,Código2)","v":0},{"$f":"COUNTIF($D23:$AH23,Código3)","v":0},{"$f":"COUNTIF($D23:$AH23,Código4)","v":0}]
[null,null,{"$f":"IFERROR(VLOOKUP(ProcurarAluno,PresençasEmNovembro[],3,FALSE),\"\")","v":""},{"$f":"IFERROR(VLOOKUP(ProcurarAluno,PresençasEmNovembro[],4,FALSE),\"\")","v":""},{"$f":"IFERROR(VLOOKUP(ProcurarAluno,PresençasEmNovembro[],5,FALSE),\"\")","v":""},{"$f":"IFERROR(VLOOKUP(ProcurarAluno,PresençasEmNovembro[],6,FALSE),\"\")","v":""},{"$f":"IFERROR(VLOOKUP(ProcurarAluno,PresençasEmNovembro[],7,FALSE),\"\")","v":""},{"$f":"IFERROR(VLOOKUP(ProcurarAluno,PresençasEmNovembro[],8,FALSE),\"\")","v":""},{"$f":"IFERROR(VLOOKUP(ProcurarAluno,PresençasEmNovembro[],9,FALSE),\"\")","v":""},{"$f":"IFERROR(VLOOKUP(ProcurarAluno,PresençasEmNovembro[],10,FALSE),\"\")","v":""},{"$f":"IFERROR(VLOOKUP(ProcurarAluno,PresençasEmNovembro[],11,FALSE),\"\")","v":""},{"$f":"IFERROR(VLOOKUP(ProcurarAluno,PresençasEmNovembro[],12,FALSE),\"\")","v":""},{"$f":"IFERROR(VLOOKUP(ProcurarAluno,PresençasEmNovembro[],13,FALSE),\"\")","v":""},{"$f":"IFERROR(VLOOKUP(ProcurarAluno,PresençasEmNovembro[],14,FALSE),\"\")","v":""},{"$f":"IFERROR(VLOOKUP(ProcurarAluno,PresençasEmNovembro[],15,FALSE),\"\")","v":""},{"$f":"IFERROR(VLOOKUP(ProcurarAluno,PresençasEmNovembro[],16,FALSE),\"\")","v":""},{"$f":"IFERROR(VLOOKUP(ProcurarAluno,PresençasEmNovembro[],17,FALSE),\"\")","v":""},{"$f":"IFERROR(VLOOKUP(ProcurarAluno,PresençasEmNovembro[],18,FALSE),\"\")","v":""},{"$f":"IFERROR(VLOOKUP(ProcurarAluno,PresençasEmNovembro[],19,FALSE),\"\")","v":""},{"$f":"IFERROR(VLOOKUP(ProcurarAluno,PresençasEmNovembro[],20,FALSE),\"\")","v":""},{"$f":"IFERROR(VLOOKUP(ProcurarAluno,PresençasEmNovembro[],21,FALSE),\"\")","v":""},{"$f":"IFERROR(VLOOKUP(ProcurarAluno,PresençasEmNovembro[],22,FALSE),\"\")","v":""},{"$f":"IFERROR(VLOOKUP(ProcurarAluno,PresençasEmNovembro[],23,FALSE),\"\")","v":""},{"$f":"IFERROR(VLOOKUP(ProcurarAluno,PresençasEmNovembro[],24,FALSE),\"\")","v":""},{"$f":"IFERROR(VLOOKUP(ProcurarAluno,PresençasEmNovembro[],25,FALSE),\"\")","v":""},{"$f":"IFERROR(VLOOKUP(ProcurarAluno,PresençasEmNovembro[],26,FALSE),\"\")","v":""},{"$f":"IFERROR(VLOOKUP(ProcurarAluno,PresençasEmNovembro[],27,FALSE),\"\")","v":""},{"$f":"IFERROR(VLOOKUP(ProcurarAluno,PresençasEmNovembro[],28,FALSE),\"\")","v":""},{"$f":"IFERROR(VLOOKUP(ProcurarAluno,PresençasEmNovembro[],29,FALSE),\"\")","v":""},{"$f":"IFERROR(VLOOKUP(ProcurarAluno,PresençasEmNovembro[],30,FALSE),\"\")","v":""},{"$f":"IFERROR(VLOOKUP(ProcurarAluno,PresençasEmNovembro[],31,FALSE),\"\")","v":""},{"$f":"IFERROR(VLOOKUP(ProcurarAluno,PresençasEmNovembro[],32,FALSE),\"\")","v":""}]
[null,"dezembro",1,2,3,4,5,6,7,8,9,10,11,12,13,14,15,16,17,18,19,20,21,22,23,24,25,26,27,28,29,30,31,{"$f":"COUNTIF($D25:$AH25,Código1)","v":0},{"$f":"COUNTIF($D25:$AH25,Código2)","v":0},{"$f":"COUNTIF($D25:$AH25,Código3)","v":0},{"$f":"COUNTIF($D25:$AH25,Código4)","v":0}]
[null,null,{"$f":"IFERROR(VLOOKUP(ProcurarAluno,PresençasEmDezembro[],3,FALSE),\"\")","v":""},{"$f":"IFERROR(VLOOKUP(ProcurarAluno,PresençasEmDezembro[],4,FALSE),\"\")","v":""},{"$f":"IFERROR(VLOOKUP(ProcurarAluno,PresençasEmDezembro[],5,FALSE),\"\")","v":""},{"$f":"IFERROR(VLOOKUP(ProcurarAluno,PresençasEmDezembro[],6,FALSE),\"\")","v":""},{"$f":"IFERROR(VLOOKUP(ProcurarAluno,PresençasEmDezembro[],7,FALSE),\"\")","v":""},{"$f":"IFERROR(VLOOKUP(ProcurarAluno,PresençasEmDezembro[],8,FALSE),\"\")","v":""},{"$f":"IFERROR(VLOOKUP(ProcurarAluno,PresençasEmDezembro[],9,FALSE),\"\")","v":""},{"$f":"IFERROR(VLOOKUP(ProcurarAluno,PresençasEmDezembro[],10,FALSE),\"\")","v":""},{"$f":"IFERROR(VLOOKUP(ProcurarAluno,PresençasEmDezembro[],11,FALSE),\"\")","v":""},{"$f":"IFERROR(VLOOKUP(ProcurarAluno,PresençasEmDezembro[],12,FALSE),\"\")","v":""},{"$f":"IFERROR(VLOOKUP(ProcurarAluno,PresençasEmDezembro[],13,FALSE),\"\")","v":""},{"$f":"IFERROR(VLOOKUP(ProcurarAluno,PresençasEmDezembro[],14,FALSE),\"\")","v":""},{"$f":"IFERROR(VLOOKUP(ProcurarAluno,PresençasEmDezembro[],15,FALSE),\"\")","v":""},{"$f":"IFERROR(VLOOKUP(ProcurarAluno,PresençasEmDezembro[],16,FALSE),\"\")","v":""},{"$f":"IFERROR(VLOOKUP(ProcurarAluno,PresençasEmDezembro[],17,FALSE),\"\")","v":""},{"$f":"IFERROR(VLOOKUP(ProcurarAluno,PresençasEmDezembro[],18,FALSE),\"\")","v":""},{"$f":"IFERROR(VLOOKUP(ProcurarAluno,PresençasEmDezembro[],19,FALSE),\"\")","v":""},{"$f":"IFERROR(VLOOKUP(ProcurarAluno,PresençasEmDezembro[],20,FALSE),\"\")","v":""},{"$f":"IFERROR(VLOOKUP(ProcurarAluno,PresençasEmDezembro[],21,FALSE),\"\")","v":""},{"$f":"IFERROR(VLOOKUP(ProcurarAluno,PresençasEmDezembro[],22,FALSE),\"\")","v":""},{"$f":"IFERROR(VLOOKUP(ProcurarAluno,PresençasEmDezembro[],23,FALSE),\"\")","v":""},{"$f":"IFERROR(VLOOKUP(ProcurarAluno,PresençasEmDezembro[],24,FALSE),\"\")","v":""},{"$f":"IFERROR(VLOOKUP(ProcurarAluno,PresençasEmDezembro[],25,FALSE),\"\")","v":""},{"$f":"IFERROR(VLOOKUP(ProcurarAluno,PresençasEmDezembro[],26,FALSE),\"\")","v":""},{"$f":"IFERROR(VLOOKUP(ProcurarAluno,PresençasEmDezembro[],27,FALSE),\"\")","v":""},{"$f":"IFERROR(VLOOKUP(ProcurarAluno,PresençasEmDezembro[],28,FALSE),\"\")","v":""},{"$f":"IFERROR(VLOOKUP(ProcurarAluno,PresençasEmDezembro[],29,FALSE),\"\")","v":""},{"$f":"IFERROR(VLOOKUP(ProcurarAluno,PresençasEmDezembro[],30,FALSE),\"\")","v":""},{"$f":"IFERROR(VLOOKUP(ProcurarAluno,PresençasEmDezembro[],31,FALSE),\"\")","v":""},{"$f":"IFERROR(VLOOKUP(ProcurarAluno,PresençasEmDezembro[],32,FALSE),\"\")","v":""},{"$f":"IFERROR(VLOOKUP(ProcurarAluno,PresençasEmDezembro[],33,FALSE),\"\")","v":""}]
[null,"janeiro",1,2,3,4,5,6,7,8,9,10,11,12,13,14,15,16,17,18,19,20,21,22,23,24,25,26,27,28,29,30,31,{"$f":"COUNTIF($D27:$AH27,Código1)","v":0},{"$f":"COUNTIF($D27:$AH27,Código2)","v":0},{"$f":"COUNTIF($D27:$AH27,Código3)","v":0},{"$f":"COUNTIF($D27:$AH27,Código4)","v":0}]
[null,null,{"$f":"IFERROR(VLOOKUP(ProcurarAluno,PresençasEmJaneiro[],3,FALSE),\"\")","v":""},{"$f":"IFERROR(VLOOKUP(ProcurarAluno,PresençasEmJaneiro[],4,FALSE),\"\")","v":""},{"$f":"IFERROR(VLOOKUP(ProcurarAluno,PresençasEmJaneiro[],5,FALSE),\"\")","v":""},{"$f":"IFERROR(VLOOKUP(ProcurarAluno,PresençasEmJaneiro[],6,FALSE),\"\")","v":""},{"$f":"IFERROR(VLOOKUP(ProcurarAluno,PresençasEmJaneiro[],7,FALSE),\"\")","v":""},{"$f":"IFERROR(VLOOKUP(ProcurarAluno,PresençasEmJaneiro[],8,FALSE),\"\")","v":""},{"$f":"IFERROR(VLOOKUP(ProcurarAluno,PresençasEmJaneiro[],9,FALSE),\"\")","v":""},{"$f":"IFERROR(VLOOKUP(ProcurarAluno,PresençasEmJaneiro[],10,FALSE),\"\")","v":""},{"$f":"IFERROR(VLOOKUP(ProcurarAluno,PresençasEmJaneiro[],11,FALSE),\"\")","v":""},{"$f":"IFERROR(VLOOKUP(ProcurarAluno,PresençasEmJaneiro[],12,FALSE),\"\")","v":""},{"$f":"IFERROR(VLOOKUP(ProcurarAluno,PresençasEmJaneiro[],13,FALSE),\"\")","v":""},{"$f":"IFERROR(VLOOKUP(ProcurarAluno,PresençasEmJaneiro[],14,FALSE),\"\")","v":""},{"$f":"IFERROR(VLOOKUP(ProcurarAluno,PresençasEmJaneiro[],15,FALSE),\"\")","v":""},{"$f":"IFERROR(VLOOKUP(ProcurarAluno,PresençasEmJaneiro[],16,FALSE),\"\")","v":""},{"$f":"IFERROR(VLOOKUP(ProcurarAluno,PresençasEmJaneiro[],17,FALSE),\"\")","v":""},{"$f":"IFERROR(VLOOKUP(ProcurarAluno,PresençasEmJaneiro[],18,FALSE),\"\")","v":""},{"$f":"IFERROR(VLOOKUP(ProcurarAluno,PresençasEmJaneiro[],19,FALSE),\"\")","v":""},{"$f":"IFERROR(VLOOKUP(ProcurarAluno,PresençasEmJaneiro[],20,FALSE),\"\")","v":""},{"$f":"IFERROR(VLOOKUP(ProcurarAluno,PresençasEmJaneiro[],21,FALSE),\"\")","v":""},{"$f":"IFERROR(VLOOKUP(ProcurarAluno,PresençasEmJaneiro[],22,FALSE),\"\")","v":""},{"$f":"IFERROR(VLOOKUP(ProcurarAluno,PresençasEmJaneiro[],23,FALSE),\"\")","v":""},{"$f":"IFERROR(VLOOKUP(ProcurarAluno,PresençasEmJaneiro[],24,FALSE),\"\")","v":""},{"$f":"IFERROR(VLOOKUP(ProcurarAluno,PresençasEmJaneiro[],25,FALSE),\"\")","v":""},{"$f":"IFERROR(VLOOKUP(ProcurarAluno,PresençasEmJaneiro[],26,FALSE),\"\")","v":""},{"$f":"IFERROR(VLOOKUP(ProcurarAluno,PresençasEmJaneiro[],27,FALSE),\"\")","v":""},{"$f":"IFERROR(VLOOKUP(ProcurarAluno,PresençasEmJaneiro[],28,FALSE),\"\")","v":""},{"$f":"IFERROR(VLOOKUP(ProcurarAluno,PresençasEmJaneiro[],29,FALSE),\"\")","v":""},{"$f":"IFERROR(VLOOKUP(ProcurarAluno,PresençasEmJaneiro[],30,FALSE),\"\")","v":""},{"$f":"IFERROR(VLOOKUP(ProcurarAluno,PresençasEmJaneiro[],31,FALSE),\"\")","v":""},{"$f":"IFERROR(VLOOKUP(ProcurarAluno,PresençasEmJaneiro[],32,FALSE),\"\")","v":""},{"$f":"IFERROR(VLOOKUP(ProcurarAluno,PresençasEmJaneiro[],33,FALSE),\"\")","v":""}]
[null,"fevereiro",1,2,3,4,5,6,7,8,9,10,11,12,13,14,15,16,17,18,19,20,21,22,23,24,25,26,27,28,29,null,null,{"$f":"COUNTIF($D29:$AH29,Código1)","v":0},{"$f":"COUNTIF($D29:$AH29,Código2)","v":0},{"$f":"COUNTIF($D29:$AH29,Código3)","v":0},{"$f":"COUNTIF($D29:$AH29,Código4)","v":0}]
[null,null,{"$f":"IFERROR(VLOOKUP(ProcurarAluno,PresençasEmFevereiro[],3,FALSE),\"\")","v":""},{"$f":"IFERROR(VLOOKUP(ProcurarAluno,PresençasEmFevereiro[],4,FALSE),\"\")","v":""},{"$f":"IFERROR(VLOOKUP(ProcurarAluno,PresençasEmFevereiro[],5,FALSE),\"\")","v":""},{"$f":"IFERROR(VLOOKUP(ProcurarAluno,PresençasEmFevereiro[],6,FALSE),\"\")","v":""},{"$f":"IFERROR(VLOOKUP(ProcurarAluno,PresençasEmFevereiro[],7,FALSE),\"\")","v":""},{"$f":"IFERROR(VLOOKUP(ProcurarAluno,PresençasEmFevereiro[],8,FALSE),\"\")","v":""},{"$f":"IFERROR(VLOOKUP(ProcurarAluno,PresençasEmFevereiro[],9,FALSE),\"\")","v":""},{"$f":"IFERROR(VLOOKUP(ProcurarAluno,PresençasEmFevereiro[],10,FALSE),\"\")","v":""},{"$f":"IFERROR(VLOOKUP(ProcurarAluno,PresençasEmFevereiro[],11,FALSE),\"\")","v":""},{"$f":"IFERROR(VLOOKUP(ProcurarAluno,PresençasEmFevereiro[],12,FALSE),\"\")","v":""},{"$f":"IFERROR(VLOOKUP(ProcurarAluno,PresençasEmFevereiro[],13,FALSE),\"\")","v":""},{"$f":"IFERROR(VLOOKUP(ProcurarAluno,PresençasEmFevereiro[],14,FALSE),\"\")","v":""},{"$f":"IFERROR(VLOOKUP(ProcurarAluno,PresençasEmFevereiro[],15,FALSE),\"\")","v":""},{"$f":"IFERROR(VLOOKUP(ProcurarAluno,PresençasEmFevereiro[],16,FALSE),\"\")","v":""},{"$f":"IFERROR(VLOOKUP(ProcurarAluno,PresençasEmFevereiro[],17,FALSE),\"\")","v":""},{"$f":"IFERROR(VLOOKUP(ProcurarAluno,PresençasEmFevereiro[],18,FALSE),\"\")","v":""},{"$f":"IFERROR(VLOOKUP(ProcurarAluno,PresençasEmFevereiro[],19,FALSE),\"\")","v":""},{"$f":"IFERROR(VLOOKUP(ProcurarAluno,PresençasEmFevereiro[],20,FALSE),\"\")","v":""},{"$f":"IFERROR(VLOOKUP(ProcurarAluno,PresençasEmFevereiro[],21,FALSE),\"\")","v":""},{"$f":"IFERROR(VLOOKUP(ProcurarAluno,PresençasEmFevereiro[],22,FALSE),\"\")","v":""},{"$f":"IFERROR(VLOOKUP(ProcurarAluno,PresençasEmFevereiro[],23,FALSE),\"\")","v":""},{"$f":"IFERROR(VLOOKUP(ProcurarAluno,PresençasEmFevereiro[],24,FALSE),\"\")","v":""},{"$f":"IFERROR(VLOOKUP(ProcurarAluno,PresençasEmFevereiro[],25,FALSE),\"\")","v":""},{"$f":"IFERROR(VLOOKUP(ProcurarAluno,PresençasEmFevereiro[],26,FALSE),\"\")","v":""},{"$f":"IFERROR(VLOOKUP(ProcurarAluno,PresençasEmFevereiro[],27,FALSE),\"\")","v":""},{"$f":"IFERROR(VLOOKUP(ProcurarAluno,PresençasEmFevereiro[],28,FALSE),\"\")","v":""},{"$f":"IFERROR(VLOOKUP(ProcurarAluno,PresençasEmFevereiro[],29,FALSE),\"\")","v":""},{"$f":"IFERROR(VLOOKUP(ProcurarAluno,PresençasEmFevereiro[],30,FALSE),\"\")","v":""},{"$f":"IFERROR(VLOOKUP(ProcurarAluno,PresençasEmFevereiro[],31,FALSE),\"\")","v":""}]
[null,"março",1,2,3,4,5,6,7,8,9,10,11,12,13,14,15,16,17,18,19,20,21,22,23,24,25,26,27,28,29,30,31,{"$f":"COUNTIF($D31:$AH31,Código1)","v":0},{"$f":"COUNTIF($D31:$AH31,Código2)","v":0},{"$f":"COUNTIF($D31:$AH31,Código3)","v":0},{"$f":"COUNTIF($D31:$AH31,Código4)","v":0}]
[null,null,{"$f":"IFERROR(VLOOKUP(ProcurarAluno,PresençasEmMarço[],3,FALSE),\"\")","v":""},{"$f":"IFERROR(VLOOKUP(ProcurarAluno,PresençasEmMarço[],4,FALSE),\"\")","v":""},{"$f":"IFERROR(VLOOKUP(ProcurarAluno,PresençasEmMarço[],5,FALSE),\"\")","v":""},{"$f":"IFERROR(VLOOKUP(ProcurarAluno,PresençasEmMarço[],6,FALSE),\"\")","v":""},{"$f":"IFERROR(VLOOKUP(ProcurarAluno,PresençasEmMarço[],7,FALSE),\"\")","v":""},{"$f":"IFERROR(VLOOKUP(ProcurarAluno,PresençasEmMarço[],8,FALSE),\"\")","v":""},{"$f":"IFERROR(VLOOKUP(ProcurarAluno,PresençasEmMarço[],9,FALSE),\"\")","v":""},{"$f":"IFERROR(VLOOKUP(ProcurarAluno,PresençasEmMarço[],10,FALSE),\"\")","v":""},{"$f":"IFERROR(VLOOKUP(ProcurarAluno,PresençasEmMarço[],11,FALSE),\"\")","v":""},{"$f":"IFERROR(VLOOKUP(ProcurarAluno,PresençasEmMarço[],12,FALSE),\"\")","v":""},{"$f":"IFERROR(VLOOKUP(ProcurarAluno,PresençasEmMarço[],13,FALSE),\"\")","v":""},{"$f":"IFERROR(VLOOKUP(ProcurarAluno,PresençasEmMarço[],14,FALSE),\"\")","v":""},{"$f":"IFERROR(VLOOKUP(ProcurarAluno,PresençasEmMarço[],15,FALSE),\"\")","v":""},{"$f":"IFERROR(VLOOKUP(ProcurarAluno,PresençasEmMarço[],16,FALSE),\"\")","v":""},{"$f":"IFERROR(VLOOKUP(ProcurarAluno,PresençasEmMarço[],17,FALSE),\"\")","v":""},{"$f":"IFERROR(VLOOKUP(ProcurarAluno,PresençasEmMarço[],18,FALSE),\"\")","v":""},{"$f":"IFERROR(VLOOKUP(ProcurarAluno,PresençasEmMarço[],19,FALSE),\"\")","v":""},{"$f":"IFERROR(VLOOKUP(ProcurarAluno,PresençasEmMarço[],20,FALSE),\"\")","v":""},{"$f":"IFERROR(VLOOKUP(ProcurarAluno,PresençasEmMarço[],21,FALSE),\"\")","v":""},{"$f":"IFERROR(VLOOKUP(ProcurarAluno,PresençasEmMarço[],22,FALSE),\"\")","v":""},{"$f":"IFERROR(VLOOKUP(ProcurarAluno,PresençasEmMarço[],23,FALSE),\"\")","v":""},{"$f":"IFERROR(VLOOKUP(ProcurarAluno,PresençasEmMarço[],24,FALSE),\"\")","v":""},{"$f":"IFERROR(VLOOKUP(ProcurarAluno,PresençasEmMarço[],25,FALSE),\"\")","v":""},{"$f":"IFERROR(VLOOKUP(ProcurarAluno,PresençasEmMarço[],26,FALSE),\"\")","v":""},{"$f":"IFERROR(VLOOKUP(ProcurarAluno,PresençasEmMarço[],27,FALSE),\"\")","v":""},{"$f":"IFERROR(VLOOKUP(ProcurarAluno,PresençasEmMarço[],28,FALSE),\"\")","v":""},{"$f":"IFERROR(VLOOKUP(ProcurarAluno,PresençasEmMarço[],29,FALSE),\"\")","v":""},{"$f":"IFERROR(VLOOKUP(ProcurarAluno,PresençasEmMarço[],30,FALSE),\"\")","v":""},{"$f":"IFERROR(VLOOKUP(ProcurarAluno,PresençasEmMarço[],31,FALSE),\"\")","v":""},{"$f":"IFERROR(VLOOKUP(ProcurarAluno,PresençasEmMarço[],32,FALSE),\"\")","v":""},{"$f":"IFERROR(VLOOKUP(ProcurarAluno,PresençasEmMarço[],33,FALSE),\"\")","v":""}]
[null,"abril",1,2,3,4,5,6,7,8,9,10,11,12,13,14,15,16,17,18,19,20,21,22,23,24,25,26,27,28,29,30,null,{"$f":"COUNTIF($D33:$AH33,Código1)","v":0},{"$f":"COUNTIF($D33:$AH33,Código2)","v":0},{"$f":"COUNTIF($D33:$AH33,Código3)","v":0},{"$f":"COUNTIF($D33:$AH33,Código4)","v":0}]
[null,null,{"$f":"IFERROR(VLOOKUP(ProcurarAluno,PresençasEmAbril[],3,FALSE),\"\")","v":""},{"$f":"IFERROR(VLOOKUP(ProcurarAluno,PresençasEmAbril[],4,FALSE),\"\")","v":""},{"$f":"IFERROR(VLOOKUP(ProcurarAluno,PresençasEmAbril[],5,FALSE),\"\")","v":""},{"$f":"IFERROR(VLOOKUP(ProcurarAluno,PresençasEmAbril[],6,FALSE),\"\")","v":""},{"$f":"IFERROR(VLOOKUP(ProcurarAluno,PresençasEmAbril[],7,FALSE),\"\")","v":""},{"$f":"IFERROR(VLOOKUP(ProcurarAluno,PresençasEmAbril[],8,FALSE),\"\")","v":""},{"$f":"IFERROR(VLOOKUP(ProcurarAluno,PresençasEmAbril[],9,FALSE),\"\")","v":""},{"$f":"IFERROR(VLOOKUP(ProcurarAluno,PresençasEmAbril[],10,FALSE),\"\")","v":""},{"$f":"IFERROR(VLOOKUP(ProcurarAluno,PresençasEmAbril[],11,FALSE),\"\")","v":""},{"$f":"IFERROR(VLOOKUP(ProcurarAluno,PresençasEmAbril[],12,FALSE),\"\")","v":""},{"$f":"IFERROR(VLOOKUP(ProcurarAluno,PresençasEmAbril[],13,FALSE),\"\")","v":""},{"$f":"IFERROR(VLOOKUP(ProcurarAluno,PresençasEmAbril[],14,FALSE),\"\")","v":""},{"$f":"IFERROR(VLOOKUP(ProcurarAluno,PresençasEmAbril[],15,FALSE),\"\")","v":""},{"$f":"IFERROR(VLOOKUP(ProcurarAluno,PresençasEmAbril[],16,FALSE),\"\")","v":""},{"$f":"IFERROR(VLOOKUP(ProcurarAluno,PresençasEmAbril[],17,FALSE),\"\")","v":""},{"$f":"IFERROR(VLOOKUP(ProcurarAluno,PresençasEmAbril[],18,FALSE),\"\")","v":""},{"$f":"IFERROR(VLOOKUP(ProcurarAluno,PresençasEmAbril[],19,FALSE),\"\")","v":""},{"$f":"IFERROR(VLOOKUP(ProcurarAluno,PresençasEmAbril[],20,FALSE),\"\")","v":""},{"$f":"IFERROR(VLOOKUP(ProcurarAluno,PresençasEmAbril[],21,FALSE),\"\")","v":""},{"$f":"IFERROR(VLOOKUP(ProcurarAluno,PresençasEmAbril[],22,FALSE),\"\")","v":""},{"$f":"IFERROR(VLOOKUP(ProcurarAluno,PresençasEmAbril[],23,FALSE),\"\")","v":""},{"$f":"IFERROR(VLOOKUP(ProcurarAluno,PresençasEmAbril[],24,FALSE),\"\")","v":""},{"$f":"IFERROR(VLOOKUP(ProcurarAluno,PresençasEmAbril[],25,FALSE),\"\")","v":""},{"$f":"IFERROR(VLOOKUP(ProcurarAluno,PresençasEmAbril[],26,FALSE),\"\")","v":""},{"$f":"IFERROR(VLOOKUP(ProcurarAluno,PresençasEmAbril[],27,FALSE),\"\")","v":""},{"$f":"IFERROR(VLOOKUP(ProcurarAluno,PresençasEmAbril[],28,FALSE),\"\")","v":""},{"$f":"IFERROR(VLOOKUP(ProcurarAluno,PresençasEmAbril[],29,FALSE),\"\")","v":""},{"$f":"IFERROR(VLOOKUP(ProcurarAluno,PresençasEmAbril[],30,FALSE),\"\")","v":""},{"$f":"IFERROR(VLOOKUP(ProcurarAluno,PresençasEmAbril[],31,FALSE),\"\")","v":""},{"$f":"IFERROR(VLOOKUP(ProcurarAluno,PresençasEmAbril[],32,FALSE),\"\")","v":""}]
[null,"maio",1,2,3,4,5,6,7,8,9,10,11,12,13,14,15,16,17,18,19,20,21,22,23,24,25,26,27,28,29,30,31,{"$f":"COUNTIF($D35:$AH35,Código1)","v":0},{"$f":"COUNTIF($D35:$AH35,Código2)","v":0},{"$f":"COUNTIF($D35:$AH35,Código3)","v":0},{"$f":"COUNTIF($D35:$AH35,Código4)","v":0}]
[null,null,{"$f":"IFERROR(VLOOKUP(ProcurarAluno,PresençasEmMaio[],3,FALSE),\"\")","v":""},{"$f":"IFERROR(VLOOKUP(ProcurarAluno,PresençasEmMaio[],4,FALSE),\"\")","v":""},{"$f":"IFERROR(VLOOKUP(ProcurarAluno,PresençasEmMaio[],5,FALSE),\"\")","v":""},{"$f":"IFERROR(VLOOKUP(ProcurarAluno,PresençasEmMaio[],6,FALSE),\"\")","v":""},{"$f":"IFERROR(VLOOKUP(ProcurarAluno,PresençasEmMaio[],7,FALSE),\"\")","v":""},{"$f":"IFERROR(VLOOKUP(ProcurarAluno,PresençasEmMaio[],8,FALSE),\"\")","v":""},{"$f":"IFERROR(VLOOKUP(ProcurarAluno,PresençasEmMaio[],9,FALSE),\"\")","v":""},{"$f":"IFERROR(VLOOKUP(ProcurarAluno,PresençasEmMaio[],10,FALSE),\"\")","v":""},{"$f":"IFERROR(VLOOKUP(ProcurarAluno,PresençasEmMaio[],11,FALSE),\"\")","v":""},{"$f":"IFERROR(VLOOKUP(ProcurarAluno,PresençasEmMaio[],12,FALSE),\"\")","v":""},{"$f":"IFERROR(VLOOKUP(ProcurarAluno,PresençasEmMaio[],13,FALSE),\"\")","v":""},{"$f":"IFERROR(VLOOKUP(ProcurarAluno,PresençasEmMaio[],14,FALSE),\"\")","v":""},{"$f":"IFERROR(VLOOKUP(ProcurarAluno,PresençasEmMaio[],15,FALSE),\"\")","v":""},{"$f":"IFERROR(VLOOKUP(ProcurarAluno,PresençasEmMaio[],16,FALSE),\"\")","v":""},{"$f":"IFERROR(VLOOKUP(ProcurarAluno,PresençasEmMaio[],17,FALSE),\"\")","v":""},{"$f":"IFERROR(VLOOKUP(ProcurarAluno,PresençasEmMaio[],18,FALSE),\"\")","v":""},{"$f":"IFERROR(VLOOKUP(ProcurarAluno,PresençasEmMaio[],19,FALSE),\"\")","v":""},{"$f":"IFERROR(VLOOKUP(ProcurarAluno,PresençasEmMaio[],20,FALSE),\"\")","v":""},{"$f":"IFERROR(VLOOKUP(ProcurarAluno,PresençasEmMaio[],21,FALSE),\"\")","v":""},{"$f":"IFERROR(VLOOKUP(ProcurarAluno,PresençasEmMaio[],22,FALSE),\"\")","v":""},{"$f":"IFERROR(VLOOKUP(ProcurarAluno,PresençasEmMaio[],23,FALSE),\"\")","v":""},{"$f":"IFERROR(VLOOKUP(ProcurarAluno,PresençasEmMaio[],24,FALSE),\"\")","v":""},{"$f":"IFERROR(VLOOKUP(ProcurarAluno,PresençasEmMaio[],25,FALSE),\"\")","v":""},{"$f":"IFERROR(VLOOKUP(ProcurarAluno,PresençasEmMaio[],26,FALSE),\"\")","v":""},{"$f":"IFERROR(VLOOKUP(ProcurarAluno,PresençasEmMaio[],27,FALSE),\"\")","v":""},{"$f":"IFERROR(VLOOKUP(ProcurarAluno,PresençasEmMaio[],28,FALSE),\"\")","v":""},{"$f":"IFERROR(VLOOKUP(ProcurarAluno,PresençasEmMaio[],29,FALSE),\"\")","v":""},{"$f":"IFERROR(VLOOKUP(ProcurarAluno,PresençasEmMaio[],30,FALSE),\"\")","v":""},{"$f":"IFERROR(VLOOKUP(ProcurarAluno,PresençasEmMaio[],31,FALSE),\"\")","v":""},{"$f":"IFERROR(VLOOKUP(ProcurarAluno,PresençasEmMaio[],32,FALSE),\"\")","v":""},{"$f":"IFERROR(VLOOKUP(ProcurarAluno,PresençasEmMaio[],33,FALSE),\"\")","v":""}]
[null,"junho",1,2,3,4,5,6,7,8,9,10,11,12,13,14,15,16,17,18,19,20,21,22,23,24,25,26,27,28,29,30,null,{"$f":"COUNTIF($D37:$AH37,Código1)","v":0},{"$f":"COUNTIF($D37:$AH37,Código2)","v":0},{"$f":"COUNTIF($D37:$AH37,Código3)","v":0},{"$f":"COUNTIF($D37:$AH37,Código4)","v":0}]
[null,null,{"$f":"IFERROR(VLOOKUP(ProcurarAluno,PresençasEmJunho[],3,FALSE),\"\")","v":""},{"$f":"IFERROR(VLOOKUP(ProcurarAluno,PresençasEmJunho[],4,FALSE),\"\")","v":""},{"$f":"IFERROR(VLOOKUP(ProcurarAluno,PresençasEmJunho[],5,FALSE),\"\")","v":""},{"$f":"IFERROR(VLOOKUP(ProcurarAluno,PresençasEmJunho[],6,FALSE),\"\")","v":""},{"$f":"IFERROR(VLOOKUP(ProcurarAluno,PresençasEmJunho[],7,FALSE),\"\")","v":""},{"$f":"IFERROR(VLOOKUP(ProcurarAluno,PresençasEmJunho[],8,FALSE),\"\")","v":""},{"$f":"IFERROR(VLOOKUP(ProcurarAluno,PresençasEmJunho[],9,FALSE),\"\")","v":""},{"$f":"IFERROR(VLOOKUP(ProcurarAluno,PresençasEmJunho[],10,FALSE),\"\")","v":""},{"$f":"IFERROR(VLOOKUP(ProcurarAluno,PresençasEmJunho[],11,FALSE),\"\")","v":""},{"$f":"IFERROR(VLOOKUP(ProcurarAluno,PresençasEmJunho[],12,FALSE),\"\")","v":""},{"$f":"IFERROR(VLOOKUP(ProcurarAluno,PresençasEmJunho[],13,FALSE),\"\")","v":""},{"$f":"IFERROR(VLOOKUP(ProcurarAluno,PresençasEmJunho[],14,FALSE),\"\")","v":""},{"$f":"IFERROR(VLOOKUP(ProcurarAluno,PresençasEmJunho[],15,FALSE),\"\")","v":""},{"$f":"IFERROR(VLOOKUP(ProcurarAluno,PresençasEmJunho[],16,FALSE),\"\")","v":""},{"$f":"IFERROR(VLOOKUP(ProcurarAluno,PresençasEmJunho[],17,FALSE),\"\")","v":""},{"$f":"IFERROR(VLOOKUP(ProcurarAluno,PresençasEmJunho[],18,FALSE),\"\")","v":""},{"$f":"IFERROR(VLOOKUP(ProcurarAluno,PresençasEmJunho[],19,FALSE),\"\")","v":""},{"$f":"IFERROR(VLOOKUP(ProcurarAluno,PresençasEmJunho[],20,FALSE),\"\")","v":""},{"$f":"IFERROR(VLOOKUP(ProcurarAluno,PresençasEmJunho[],21,FALSE),\"\")","v":""},{"$f":"IFERROR(VLOOKUP(ProcurarAluno,PresençasEmJunho[],22,FALSE),\"\")","v":""},{"$f":"IFERROR(VLOOKUP(ProcurarAluno,PresençasEmJunho[],23,FALSE),\"\")","v":""},{"$f":"IFERROR(VLOOKUP(ProcurarAluno,PresençasEmJunho[],24,FALSE),\"\")","v":""},{"$f":"IFERROR(VLOOKUP(ProcurarAluno,PresençasEmJunho[],25,FALSE),\"\")","v":""},{"$f":"IFERROR(VLOOKUP(ProcurarAluno,PresençasEmJunho[],26,FALSE),\"\")","v":""},{"$f":"IFERROR(VLOOKUP(ProcurarAluno,PresençasEmJunho[],27,FALSE),\"\")","v":""},{"$f":"IFERROR(VLOOKUP(ProcurarAluno,PresençasEmJunho[],28,FALSE),\"\")","v":""},{"$f":"IFERROR(VLOOKUP(ProcurarAluno,PresençasEmJunho[],29,FALSE),\"\")","v":""},{"$f":"IFERROR(VLOOKUP(ProcurarAluno,PresençasEmJunho[],30,FALSE),\"\")","v":""},{"$f":"IFERROR(VLOOKUP(ProcurarAluno,PresençasEmJunho[],31,FALSE),\"\")","v":""},{"$f":"IFERROR(VLOOKUP(ProcurarAluno,PresençasEmJunho[],32,FALSE),\"\")","v":""}]
[null,"julho",1,2,3,4,5,6,7,8,9,10,11,12,13,14,15,16,17,18,19,20,21,22,23,24,25,26,27,28,29,30,31,{"$f":"COUNTIF($D39:$AH39,Código1)","v":0},{"$f":"COUNTIF($D39:$AH39,Código2)","v":0},{"$f":"COUNTIF($D39:$AH39,Código3)","v":0},{"$f":"COUNTIF($D39:$AH39,Código4)","v":0}]
[null,null,{"$f":"IFERROR(VLOOKUP(ProcurarAluno,PresençasEmJulho[],3,FALSE),\"\")","v":""},{"$f":"IFERROR(VLOOKUP(ProcurarAluno,PresençasEmJulho[],4,FALSE),\"\")","v":""},{"$f":"IFERROR(VLOOKUP(ProcurarAluno,PresençasEmJulho[],5,FALSE),\"\")","v":""},{"$f":"IFERROR(VLOOKUP(ProcurarAluno,PresençasEmJulho[],6,FALSE),\"\")","v":""},{"$f":"IFERROR(VLOOKUP(ProcurarAluno,PresençasEmJulho[],7,FALSE),\"\")","v":""},{"$f":"IFERROR(VLOOKUP(ProcurarAluno,PresençasEmJulho[],8,FALSE),\"\")","v":""},{"$f":"IFERROR(VLOOKUP(ProcurarAluno,PresençasEmJulho[],9,FALSE),\"\")","v":""},{"$f":"IFERROR(VLOOKUP(ProcurarAluno,PresençasEmJulho[],10,FALSE),\"\")","v":""},{"$f":"IFERROR(VLOOKUP(ProcurarAluno,PresençasEmJulho[],11,FALSE),\"\")","v":""},{"$f":"IFERROR(VLOOKUP(ProcurarAluno,PresençasEmJulho[],12,FALSE),\"\")","v":""},{"$f":"IFERROR(VLOOKUP(ProcurarAluno,PresençasEmJulho[],13,FALSE),\"\")","v":""},{"$f":"IFERROR(VLOOKUP(ProcurarAluno,PresençasEmJulho[],14,FALSE),\"\")","v":""},{"$f":"IFERROR(VLOOKUP(ProcurarAluno,PresençasEmJulho[],15,FALSE),\"\")","v":""},{"$f":"IFERROR(VLOOKUP(ProcurarAluno,PresençasEmJulho[],16,FALSE),\"\")","v":""},{"$f":"IFERROR(VLOOKUP(ProcurarAluno,PresençasEmJulho[],17,FALSE),\"\")","v":""},{"$f":"IFERROR(VLOOKUP(ProcurarAluno,PresençasEmJulho[],18,FALSE),\"\")","v":""},{"$f":"IFERROR(VLOOKUP(ProcurarAluno,PresençasEmJulho[],19,FALSE),\"\")","v":""},{"$f":"IFERROR(VLOOKUP(ProcurarAluno,PresençasEmJulho[],20,FALSE),\"\")","v":""},{"$f":"IFERROR(VLOOKUP(ProcurarAluno,PresençasEmJulho[],21,FALSE),\"\")","v":""},{"$f":"IFERROR(VLOOKUP(ProcurarAluno,PresençasEmJulho[],22,FALSE),\"\")","v":""},{"$f":"IFERROR(VLOOKUP(ProcurarAluno,PresençasEmJulho[],23,FALSE),\"\")","v":""},{"$f":"IFERROR(VLOOKUP(ProcurarAluno,PresençasEmJulho[],24,FALSE),\"\")","v":""},{"$f":"IFERROR(VLOOKUP(ProcurarAluno,PresençasEmJulho[],25,FALSE),\"\")","v":""},{"$f":"IFERROR(VLOOKUP(ProcurarAluno,PresençasEmJulho[],26,FALSE),\"\")","v":""},{"$f":"IFERROR(VLOOKUP(ProcurarAluno,PresençasEmJulho[],27,FALSE),\"\")","v":""},{"$f":"IFERROR(VLOOKUP(ProcurarAluno,PresençasEmJulho[],28,FALSE),\"\")","v":""},{"$f":"IFERROR(VLOOKUP(ProcurarAluno,PresençasEmJulho[],29,FALSE),\"\")","v":""},{"$f":"IFERROR(VLOOKUP(ProcurarAluno,PresençasEmJulho[],30,FALSE),\"\")","v":""},{"$f":"IFERROR(VLOOKUP(ProcurarAluno,PresençasEmJulho[],31,FALSE),\"\")","v":""},{"$f":"IFERROR(VLOOKUP(ProcurarAluno,PresençasEmJulho[],32,FALSE),\"\")","v":""},{"$f":"IFERROR(VLOOKUP(ProcurarAluno,PresençasEmJulho[],33,FALSE),\"\")","v":""}]
[{"$nulls":30},"Totais",null,null,{"$f":"SUM(AH16:AH39)","v":2},{"$f":"SUM(AI16:AI39)","v":1},{"$f":"SUM(AJ16:AJ39)","v":0},{"$f":"SUM(AK16:AK39)","v":19}]